Workbook

Sheet Introduction
A2: Introduction to the Tariff Analysis Tool
A6: Before You Start
B9: 1 | C9: This file has macros. Make sure to download this file in your system and open in MS Excel, and not Google Sheets.
B11: 2 | C11: After opening the file, you may receive a prompt suggesting some active content has been disabled.
C12: Please click the "Enable Content" option and click on "Connect" with the dialogue box that opens
C13: This will ensure that the file is connected with the latest market data, which we update monthly.
B15: 3 | C15: Macros may be disabled in your Excel by default. You will receive a prompt stating that Microsoft has blocked macros from running. If that's the case, kindly take the following steps
C16: File --> Options --> Trust Centre --> Trust Centre Settings --> Macro Settings --> Enable Macros
B18: 4 | C18: Sometimes, due to your organization's admin settings, some features of the downloaded file may be blocked and macros will remain disabled.
C19: In that case, please follow these steps to unblock the file
C20: Close the file. Right click on downloaded or saved file name --> Properties --> In the dialogue box: General tab --> At the bottom, there will be a security section, Tick the box next to unblock --> Apply --> OK
B22: 5 | C22: Some of the calculations have circular referencing. Please enable iterative calculation by
C23: File --> Options --> Formulas --> Calculation Options --> Enable Iterative Calculation
A25: Overview of the Tool
B28: This tool has three chapters
K30: Purpose | AG30: Intended for
B31: 1 | C31: Tariff calculation | K31: Analyze tariffs for projects under different components of the PM-KUSUM scheme | AG31: Developers, state nodal agencies designing their tenders or Electricity Regulatory Commissions hearing a tariff petition under PM KUSUM
B34: 2 | C34: Financing | K34: Provides details on risk reduction instruments and alternative financing mechanisms that can be used for solar projects | AG34: State policy-makers and financing institutions who wish to catalyze investment under PM-KUSUM in a state through alternative financial mechanisms
B37: 3 | C37: Costs and benefits | K37: Outlines the costs and benefits of solarizing agricultural power demand | AG37: Officials of the state nodal agency and the DISCOMs to analyse the benefits of solarizing agricultural power demand
A41: General Instructions
B44: > | C44: User input cells are highlighted in orange colours as shown here ==>
B46: > | C46: Cells that display outputs of calculations are highlighted in blue colour as shown here ==>
B48: > | C48: In some places the output will automatically update when input is changed, but in other places you'll have to click the | BB48: button to update the outputs
A50: Sheet-wise Instructions
A52: Tariff Calculation | X52: Financing | AU52: Costs and Benefits
B55: 1 | C55: The "Input" section lists the critical parameters for tariff calculation. If you are unsure about certain factors or costs, click the "default" button to use the default values. | Y55: 1 | Z55: The Financing sheet showcases two categories of financing instruments and their impacts on tariffs: A. Risk reduction instruments B. Alternative financing | AV55: 1 | AW55: Under the "DISCOM statistics" section, use the dropdowns to select a state and a DISCOM from the selected state. This automatically updates the "Assumptions" section based on preloaded data.
B60: 2 | C60: The "Calculate Tariff (LCOE)" section shows the expected tariff for each Component based on the given inputs. | Y60: 2 | Z60: Press the Click Here button to expand or collapse individual instruments | AV60: 2 | AW60: Currently data of six most agriculturally intensive states have been pre-loaded. The "India" option in the state dropdown corresponds to the aggregate value of these six states only. The "All" option in the DISCOM section corresponds to the aggregate value of all DISCOMs in the selected state.
Y63: 3 | Z63: Under each instrument, the "What are the costs and benefits" section estimates the savings. Enter the required inputs and click the Calculate button to evaluate the savings through the respective instrument.
B64: 3 | C64: The "Tariff sensitivity to different parameters" section shows how the expected tariff varies with changes in different input parameters. Enter the upper and lower limit of the range within which you want to see the variation in tariff for any variable and click the calculate button to see how the expected tariff varies. The calculation takes a few seconds, during which the workbook may freeze.
AV67: 3 | AW67: Under the "Ambition on solarizing agricultural load" section, enter the total capacity targeted under each component/deployment model.
AV71: 4 | AW71: Under the "Costs and Benefits" section, the table shows NPV values of costs and benefits over 25 years in INR crores. The charts that follow present a per-unit cost and benefit comparison and help the user do a comparative analysis of benefits under each component.
A79: Methodology and Data Sources
A81: Tariff Calculation
B84: 1 | C84: The calculation of tariff for a solar plant under the PM KUSUM scheme is based on the levelized cost of energy (LCOE) method of tariff determination. It is defined as the ratio of the net present value of total capital and operating costs of a plant to the net present value of the electricity generated by that plant over its operating life. The present value of all costs is calculated by discounting all costs, including depreciation and interest payments, to the base year and then calculating their sum.
C87: The guidelines for calculating the levelized cost of energy for renewable energy sources are provided by CERC regulations on tariff determination for renewable energy sources.
C88: Central Electricity Regulatory Commission (Terms and Conditions for Tariff determination from Renewable Energy Sources) Regulations, 2024.
B90: 2 | C90: The data sources for calculating the capital cost of a solar power plant are listed below:
D91: Cost of PV modules | R91: Market prices gathered from JMK Research. | AS91: (JMK Research RE Monthly Update)
D92: Cost of inverters | R92: Analysis of tariff orders and stakeholder consultations.
D93: Cost of mounting structure | R93: Analysis of tariff orders and stakeholder consultations.
D94: BOS and other civil work costs | R94: Analysis of tariff orders and stakeholder consultations.
D95: Connectivity cost | R95: Analysis of tariff orders and stakeholder consultations.
B97: 3 | C97: The sources for values of operational aspects of the solar power plant are as follows:
D98: Capacity utilization factor (CUF) | R98: Default value is based on review of tenders released under PM KUSUM. | AS98: (MSKVY 2.0 Tender Maharashtra)
D99: Annual O&M expenses | R99: Analysis of tariff orders by SERCs under the PM KUSUM scheme. | AS99: (MP Tariff order)
D100: Land rent | R100: Analysis of tariff orders by SERCs under the PM KUSUM scheme.
D101: Land rent annual escalation | R101: Default value is based on review of tenders released under PM KUSUM. | AS101: (MSKVY 2.0 Tender Maharashtra)
D102: Grid unavailability | R102: Default value is based on review of tenders released under PM KUSUM. | AS102: (MSKVY 2.0 Tender Maharashtra)
B104: 4 | C104: The parameters for the calculation of tariff through levelized cost of energy (LCOE) method are provided in the
C105: Central Electricity Regulatory Commission (Terms and Conditions for Tariff determination from Renewable Energy Sources) Regulations, 2024.
D106: Debt: Equity ratio
D107: Return on equity (RoE)
D108: Interest rate for debt repayment
D109: Loan tenure
D110: Depreciation considerations
D111: O&M escalation rate
D112: Working capital requirements
D113: Discount rate
A114: Financing
B117: The Financing section involves an analysis of the impact on LCOE tariff if certain risk reduction instruments and alternative financing models are used to finance the projects under PM KUSUM. Please go through the financing sheet for more details on these instruments.
A119: Costs and Benefits
C122: 1 | D122: The methodology for the cost-benefit analysis is the utility cost test (UCT) method which reflects the perspective of DISCOMs on solarizing their agricultural power demand. The cost-benefit analysis draws parallel with a CEEW study conducted to analyze the costs and benefits of grid-connected rooftop solar cited below.
D124: Kuldeep, N., Ramesh, K., Tyagi, A., & Saji, S. (2019). Valuing Grid-connected Rooftop Solar: A framework to assess costs and benefits to discoms. Council on Energy, Environment and Water.
C127: 2 | D127: The major costs and benefits of solarization under PM KUSUM are listed below:
D129: Parameter | M129: Description | AN129: Formula
D130: Avoided generation capacity cost (AGCC) | M130: DISCOMs procure power mainly from generation companies through PPAs and they have to make fixed payments toward capacity procurement. Generation from KUSUM can decrease the contracted capacity for a new PPA, reducing fixed expenses significantly. | AN130: AGCC = | AR130: KUSUM Output | AW130: x System Coincidence Factor x Degradation Factor x Capacity Cost
AS131: (1-TL%)
AN132: KUSUM Output: Rated capacity of the KUSUM plant
AN133: System coincidence factor: Ratio of KUSUM output (kW) at the DISCOM’s peak supply hour to its rated output (kW)
AN134: Degradation factor: Factor to account for the decrease in the plant's performance over the years
AN135: Capacity cost (INR/kW): Fixed cost of additional contracted capacity as decided by the regulatory commission
AN136: TL%: Transmission loss per cent
D137: Avoided power purchase cost (APCC) | M137: It is the cost of power purchase incurred by the DISCOM for the actual quantum of electricity procured from a genco. Solar generation will be procured at a lower tariff, reducing power purchase cost. | AN137: APCC = | AR137: KUSUM Energy | AW137: x Variable Power Purchase Cost
AR138: (1-TL%)(1-DL%)
AN139: KUSUM energy: Actual electricity produced by KUSUM plant
AN140: Variable power purchase cost (INR/kWh): Variable component of the power purchase cost of the DISCOM as set by the ERC
D141: Avoided transmission Capacity Cost (ATCC) | M141: These are fixed payments made by DISCOMs for using the transmission network. KUSUM plants, being located close to the source of consumption, will reduce the need for transmission capacity. | AN141: ATCC = | AR141: KUSUM Output | AW141: x Transmission Coincidence Factor x Degradation Factor x Transmission Capacity Cost
AR142: (1-TL%)(1-DL%)
AN143: DL%: Distribution loss per cent
AN144: Transmission coincidence factor: Ratio of KUSUM plant output (kW) at transmission load’s peak hours to its rated output (kW)
AN145: Transmission capacity cost (INR/kW): Fixed capacity charge payable to transmission licensee as per the commission
D146: Performance-based incentive (PBI) | M146: MNRE provides DISCOMs PBI for progress Component A of PM KUSUM for 5 years from date of commissioning, which the DISCOM can keep with themselves or transfer to the plant owner. | AN146: PBI = 0.40 x No of units of electricity produced per year x 5
D149: Feed-in tariff cost (FIT) | M149: This is a loss to the DISCOM as there is a financial outgo in terms of the power purchase cost from solar developers at the feed-in tariff. | AN149: FIT = Tariff discovered after competitive bidding
C153: 3 | D153: Each of the costs and benefits parameter is calculated annually and discounted to the present year. The table in the "Costs and Benefits" sheet shows the net present values (NPV) of the total costs and benefits of solarizing agricultural power demand in INR crores.
C156: 4 | D156: The sources for DISCOM-level data are as follows:
E158: Variable | X158: Source
E159: Total electricity consumption (MU) | X159: ARR true-up orders for DISCOMs
E160: Total agricultural consumption (MU)
E161: Transmission losses (%)
E162: Distribution losses up to 11 kV substation
E163: Fixed cost of generating stations (INR crores)
E164: Capacity allotted to generating stations (MW)
E165: Total variable cost of power purchase (INR crores)
E166: Total energy units purchased (MU)
E167: Fixed transmission charges (INR crores) | X167: Transmission MYT orders
E168: Transmission capacity (MW)
C170: 5 | D170: The formulae used for calculating other variables are listed below:
E172: Variable | X172: Method of calculation
E173: Discount rate formula (DR) | X173: DR = | AA173: [(Debt component X Interest on debt) X (1 – Corporate Tax)] + (Equity component X RoE)
E175: Average fixed capacity charges (AFCC) | X175: AFCC = | AA175: Fixed charges for each generating station (INR crores) Capacity allocated to each generating station (MW)
E177: Average variable cost of power (AVCP) | X177: AVCP = | AA177: Total variable cost of power purchase (INR crores) Total energy units purchased (MU)
E179: Average fixed transmission charges (AFTC) | X179: AFTC = | AA179: Fixed transmission charges (INR crores) Transmission capacity (MW)
C182: 6 | D182: To calculate the coincidence factors, the total power demand and VRE generation in 15-minute time periods for each state over a 1-year period have been taken. The net demand in these time intervals is calculated by subtracting VRE generation from total demand. Top 5% of net power demand is identified as peak demand.
D185: i. | E185: System coincidence factor is the average of the VRE generation during time intervals corresponding to top 5% of net power demand in the respective state.
D186: ii. | E186: Transmission coincidence factor is the average of the VRE generation during time intervals corresponding to top 5% of total power demand in the respective state.
D187: iii. | E187: The data for total power has been acquired from respective state departments and | AK187: MERIT portal
D188: iv. | E188: The data for VRE generation has been acquired from respective state departments.

Sheet Tariff Calculation
A1: PM-KUSUM Tariff Analysis
A5: Input
B8: Project capacity - - - - - - - - - - - - - - - | L8: 1 | O8: MW
B10: Total capital cost/MW - - - - - - - - - | L10: DCR-based - - - - - - - - - - - - - | V10: Non-DCR-based
L12: 3.98562 | O12: INR Crores | V12: 3.04076664 | Y12: INR Crores
AI16: — The "default" button changes parameter values to pre-loaded data
AE18: — | AF18: PV modules - - - - - - - - - - - | AM18: DCR modules - - - - - - - - - - - | AV18: non-DCR modules
AF19: — Enter post-tax module price
AM20: 2.1276 | AP20: INR Crores | AV20: 1.2686424 | AY20: INR Crores
N21: To change the capital cost, either directly change the total capital cost or change the individual components
AF22: Wholesale module price | AM22: =_xlfn.CONCAT("(INR ",ROUND('Capital cost'!D3*10,2), "/watt)") -> (INR 17.73/watt) | AV22: =_xlfn.CONCAT("(INR ",ROUND('Capital cost'!$D$2*10,2), "/watt)") -> (INR 10.57/watt)
AE24: — | AF24: Oversizing - - - - - - - - - - - - - - - | AM24: 0.1
AE26: — | AF26: Inverter - - - - - - - - - - - - - - - | AM26: 0.25036 | AP26: INR Crores
AE28: — | AF28: Mounting structure - - - - - - - - - | AM28: 0.3983 | AP28: INR Crores
B30: Capacity utilization factor - - - - - - - - - - | L30: 0.21 | AE30: — | AF30: BOS and civil works - - - - - - - - - - | AM30: 0.7966 | AP30: INR Crores
B32: Return on equity - - - - - - - - - - - | L32: 0.14 | AE32: — | AF32: Evacuation line- - - - - - - - - - - | AM32: 0.2 | AP32: INR Crores | AT32: — The default option for transmission voltage is 11 kV for power plants ≤ 2 MW and 33 kV for > 2MW
B34: Annual O&M expenses - - - - - - - - - - | L34: 7 | O34: INR Lakhs
B36: Land rent - - - - - - - - - - - - - - - - - - - - - - - | L36: 30000 | O36: INR/acre
B38: Land rent annual escalation - - - - - | L38: 0.03
B40: Grid unavailability - - - - - - - - - - - - - - | L40: 0.02
B42: Interest Rate - - - - - - - - - - - - - - | L42: 0.11
A44: Calculated Tariff (LCOE)
B48: Without subsidy | W48: PM-KUSUM Component A | AW48: PM-KUSUM Component C (FLS)
W51: How will the performance-based incentive (PBI) be managed? | AW51: Capacity eligible for CFA | BG51: 1 | BJ51: MW
BG52: — Under Component C, only the capacity corresponding to the agricultural load is eligible for the CFA. By default, this tool assumes that the entire capacity is eligible, but the user can change the value here
W55: 3
W57: Will interest subvention under AIF be availed? | AI57: — The Agriculture Infrastructure Fund (AIF) scheme provides a 3% interest subvention for agriculture infrastructure projects up to 7 years. PM-KUSUM Component A has been made eligible under the scheme.
G63: =LCOE_no_subsidy -> 3.141653044 | AK63: =IF(AND(plant_capacity>=0.5,plant_capacity<=2),LCOE_Component_A,"Only 0.5-2 MW plants in KUSUM A") -> 3.141653044 | BE63: =LCOE_Component_C -> 3.058517482
D64: Tariff = | AH64: Tariff = | BB64: Tariff =
A82: Tariff Sensitivity to Different Parameters
B85: A. Sensitivity to annual O&M expenses (INR lakhs/MW/year)
AV86: Annual O&M expenses | AW86: Component A | AX86: Component C
AV87: =LCOE!H74*10 -> 4 | AW87: =LCOE!I74 -> 2.867396346 | AX87: =LCOE!J74 -> 2.784260784
F88: Upper bound | K88: 10 | N88: —Change the lower and upper bounds to see maximum and minimum tariff when O&M changes in this range | AV88: =LCOE!H75*10 -> 4.75 | AW88: =LCOE!I75 -> 2.935960521 | AX88: =LCOE!J75 -> 2.852824959
L89: | | AV89: =LCOE!H76*10 -> 5.5 | AW89: =LCOE!I76 -> 3.004524695 | AX89: =LCOE!J76 -> 2.921389133
L90: | | AV90: =LCOE!H77*10 -> 6.25 | AW90: =LCOE!I77 -> 3.07308887 | AX90: =LCOE!J77 -> 2.989953308
C91: Current value - - - - - - - - - - - | K91: =OnM -> 7 | AV91: =LCOE!H78*10 -> 7 | AW91: =LCOE!I78 -> 3.141653044 | AX91: =LCOE!J78 -> 3.058517482
L92: | | AV92: =LCOE!H79*10 -> 7.75 | AW92: =LCOE!I79 -> 3.210217219 | AX92: =LCOE!J79 -> 3.127081657
L93: | | AV93: =LCOE!H80*10 -> 8.5 | AW93: =LCOE!I80 -> 3.278781393 | AX93: =LCOE!J80 -> 3.195645831
F94: Lower Bound | K94: 4 | AV94: =LCOE!H81*10 -> 9.25 | AW94: =LCOE!I81 -> 3.347345567 | AX94: =LCOE!J81 -> 3.264210006
AV95: =LCOE!H82*10 -> 10 | AW95: =LCOE!I82 -> 3.415909742 | AX95: =LCOE!J82 -> 3.33277418
K96: The standard O&M cost for utility-scale plants is INR 4 lakhs/MW/annum, while the same for solar rooftops is about INR 10.5 lakhs/MW/annum. The O&M cost of a PM-KUSUM power plant can be expected to lie between these bounds
AK102: For every INR 1 lakh/MW/year change in O&M cost, corresponding change in tariff for the two components is: | AY102: Component A | BG102: =_xlfn.CONCAT("INR ", ROUND(INDEX(LINEST(AW87:AW95, AV87:AV95),1),3)) -> INR 0.091
AW104: Component C (FLS) | BG104: =_xlfn.CONCAT("INR ", ROUND(INDEX(LINEST(AX87:AX95, AV87:AV95),1),3)) -> INR 0.091
B110: B. Sensitivity to land rent (INR/acre/year)
F112: Upper bound | K112: 50000 | AT112: Annual Land Rent | AU112: Component A | AV112: Component C
L113: | | AT113: =LCOE!M74 -> 10000 | AU113: =LCOE!N74 -> 3.076653738 | AV113: =LCOE!O74 -> 2.993518176
L114: | | AT114: =LCOE!M75 -> 15000 | AU114: =LCOE!N75 -> 3.092903565 | AV114: =LCOE!O75 -> 3.009768003
C115: Current value - - - - - - - - - - - | K115: =LandRent -> 30000 | AT115: =LCOE!M76 -> 20000 | AU115: =LCOE!N76 -> 3.109153391 | AV115: =LCOE!O76 -> 3.026017829
L116: | | AT116: =LCOE!M77 -> 25000 | AU116: =LCOE!N77 -> 3.125403218 | AV116: =LCOE!O77 -> 3.042267656
L117: | | AT117: =LCOE!M78 -> 30000 | AU117: =LCOE!N78 -> 3.141653044 | AV117: =LCOE!O78 -> 3.058517482
F118: Lower Bound | K118: 10000 | AT118: =LCOE!M79 -> 35000 | AU118: =LCOE!N79 -> 3.157902871 | AV118: =LCOE!O79 -> 3.074767309
AT119: =LCOE!M80 -> 40000 | AU119: =LCOE!N80 -> 3.174152697 | AV119: =LCOE!O80 -> 3.091017135
K120: The default land lease rate has been taken based on a review of land rent assumptions in official documents. These rates have wide variation even within a state | AT120: =LCOE!M81 -> 45000 | AU120: =LCOE!N81 -> 3.190402524 | AV120: =LCOE!O81 -> 3.107266962
AT121: =LCOE!M82 -> 50000 | AU121: =LCOE!N82 -> 3.20665235 | AV121: =LCOE!O82 -> 3.123516788
AM127: Impact of land rent on final tariff: | BA127: Tariff without any land rent | BG127: Change with additional INR 10,000/acre/year
AT130: Component A | BA130: =_xlfn.CONCAT("INR ", ROUND(INDEX(LINEST(AU113:AU121,AT113:AT121),2),2)) -> INR 3.04 | BG130: =_xlfn.CONCAT("INR ", ROUND(INDEX(LINEST(AU113:AU121,AT113:AT121),1),7)*10000) -> INR 0.032
AR132: Component C (FLS) | BA132: =_xlfn.CONCAT("INR ", ROUND(INDEX(LINEST(AV113:AV121,AT113:AT121),2),2)) -> INR 2.96 | BG132: =_xlfn.CONCAT("INR ", ROUND(INDEX(LINEST(AV113:AV121,AT113:AT121),1),7)*10000) -> INR 0.032
B137: C. Sensitivity to grid unavailability (%)
F139: Upper bound | K139: 0.05 | AT139: Annual Land Rent | AU139: Component A | AV139: Component C
L140: | | AT140: =LCOE!R74 -> 0.01 | AU140: =LCOE!S74 -> 3.105555508 | AV140: =LCOE!T74 -> 2.984787821
L141: | | AT141: =LCOE!R75 -> 0.015 | AU141: =LCOE!S75 -> 3.122395712 | AV141: =LCOE!T75 -> 3.000179455
C142: Current value - - - - - - - - - - - | K142: =GridUnavail -> 0.02 | AT142: =LCOE!R76 -> 0.02 | AU142: =LCOE!S76 -> 3.139410495 | AV142: =LCOE!T76 -> 3.015730652
L143: | | AT143: =LCOE!R77 -> 0.025 | AU143: =LCOE!S77 -> 3.156602587 | AV143: =LCOE!T77 -> 3.031443905
L144: | | AT144: =LCOE!R78 -> 0.03 | AU144: =LCOE!S78 -> 3.173974774 | AV144: =LCOE!T78 -> 3.047321762
F145: Lower Bound | K145: 0.01 | AT145: =LCOE!R79 -> 0.035 | AU145: =LCOE!S79 -> 3.191529901 | AV145: =LCOE!T79 -> 3.063366822
AT146: =LCOE!R80 -> 0.04 | AU146: =LCOE!S80 -> 3.209270871 | AV146: =LCOE!T80 -> 3.079581741
K147: The default grid unavailability has been chosen based on the grid availability guaranteed in most of the state tenders, i.e., 98%. | AT147: =LCOE!R81 -> 0.045 | AU147: =LCOE!S81 -> 3.227200654 | AV147: =LCOE!T81 -> 3.095969229
AT148: =LCOE!R82 -> 0.05 | AU148: =LCOE!S82 -> 3.245322277 | AV148: =LCOE!T82 -> 3.112532057
B157: D. Sensitivity to module cost (INR crore/MW)
AP158: Module Price | AR158: Component A | AS158: Component C
AP159: DCR | AQ159: non-DCR | AR159: non-DCR | AS159: DCR
K160: DCR modules | Q160: Non-DCR modules | AP160: =LCOE!W74 -> 1 | AQ160: =LCOE!X74 -> 0.4 | AR160: =LCOE!Y74 -> 2.546550369 | AS160: =LCOE!Z74 -> 2.206450048
F161: Upper bound | K161: 2 | Q161: 1.8 | AP161: =LCOE!W75 -> 1.175 | AQ161: =LCOE!X75 -> 0.575 | AR161: =LCOE!Y75 -> 2.714420399 | AS161: =LCOE!Z75 -> 2.374320078
L162: | | R162: | | AP162: =LCOE!W76 -> 1.35 | AQ162: =LCOE!X76 -> 0.75 | AR162: =LCOE!Y76 -> 2.88229043 | AS162: =LCOE!Z76 -> 2.542190108
L163: | | R163: | | AP163: =LCOE!W77 -> 1.525 | AQ163: =LCOE!X77 -> 0.925 | AR163: =LCOE!Y77 -> 3.05016046 | AS163: =LCOE!Z77 -> 2.710060139
C164: Current value - - - - - - - - - - - | K164: =module_cost_DCR -> 2.1276 | N164: - - - - - - - - | Q164: =module_cost_nonDCR -> 1.2686424 | T164: — The default module prices are taken from publicly available database | AP164: =LCOE!W78 -> 1.7 | AQ164: =LCOE!X78 -> 1.1 | AR164: =LCOE!Y78 -> 3.21803049 | AS164: =LCOE!Z78 -> 2.877930169
L165: | | R165: | | AP165: =LCOE!W79 -> 1.875 | AQ165: =LCOE!X79 -> 1.275 | AR165: =LCOE!Y79 -> 3.385900521 | AS165: =LCOE!Z79 -> 3.0458002
L166: | | R166: | | AP166: =LCOE!W80 -> 2.05 | AQ166: =LCOE!X80 -> 1.45 | AR166: =LCOE!Y80 -> 3.553770551 | AS166: =LCOE!Z80 -> 3.21367023
F167: Lower Bound | K167: 1 | Q167: 0.4 | AP167: =LCOE!W81 -> 2.225 | AQ167: =LCOE!X81 -> 1.625 | AR167: =LCOE!Y81 -> 3.721640581 | AS167: =LCOE!Z81 -> 3.38154026
AP168: =LCOE!W82 -> 2 | AQ168: =LCOE!X82 -> 1.8 | AR168: =LCOE!Y82 -> 3.889510612 | AS168: =LCOE!Z82 -> 3.165707364
F172: Module prices have fluctuated significantly in the last few years, as shown below, but the tariffs set by states have remained relatively static for many months.
AL176: For every INR 10 lakh/MW change in the module cost, the corresponding change in tariff for the two components is: | AY176: Component A | BH176: =_xlfn.CONCAT("— INR ", ROUND(INDEX(LINEST(AR160:AR168,AQ160:AQ168),1)/10,3)) -> — INR 0.096
AY178: Component C (FLS) | BH178: =_xlfn.CONCAT("— INR ", ROUND(INDEX(LINEST(AS160:AS168,AP160:AP168),1)/10,3)) -> — INR 0.096
B186: E. Sensitivity to CUF (%)
F188: Upper bound | K188: 0.23 | AT188: CUF | AU188: Component A | AV188: Component C
L189: | | AT189: =LCOE!AD74 -> 0.17 | AU189: =LCOE!AE74 -> 3.73360712 | AV189: =LCOE!AF74 -> 3.367580392
L190: | | AT190: =LCOE!AD75 -> 0.1775 | AU190: =LCOE!AE75 -> 3.575849073 | AV190: =LCOE!AF75 -> 3.225288263
C191: Current value - - - - - - - - - - - | K191: =CUF -> 0.21 | AT191: =LCOE!AD76 -> 0.185 | AU191: =LCOE!AE76 -> 3.430882218 | AV191: =LCOE!AF76 -> 3.094533333
L192: | | AT192: =LCOE!AD77 -> 0.1925 | AU192: =LCOE!AE77 -> 3.297211483 | AV192: =LCOE!AF77 -> 2.9739671
L193: | | AT193: =LCOE!AD78 -> 0.2 | AU193: =LCOE!AE78 -> 3.173566052 | AV193: =LCOE!AF78 -> 2.862443333
F194: Lower Bound | K194: 0.17 | AT194: =LCOE!AD79 -> 0.2075 | AU194: =LCOE!AE79 -> 3.058858845 | AV194: =LCOE!AF79 -> 2.758981526
AT195: =LCOE!AD80 -> 0.215 | AU195: =LCOE!AE80 -> 2.952154467 | AV195: =LCOE!AF80 -> 2.662737984
AT196: =LCOE!AD81 -> 0.2225 | AU196: =LCOE!AE81 -> 2.852643642 | AV196: =LCOE!AF81 -> 2.572982771
F198: While most PM-KUSUM scheme state tenders mandate 19% CUF, the observed CUF from many pilot plants has been lower due to grid-related and plant-related issues.

Sheet Financing
A1: Financing
B5: In this section, we analyze the scope of different financing options available for PM-KUSUM
B7: There are two broad financing options for states:
C8: a. | D8: Risk reduction instruments that can reduce cost of financing for developers under the RESCO model, thereby reducing the tariff
C9: b. | D9: Alternative financing models to RESCO projects
B11: We analyzed the following instruments/models for PM-KUSUM
B13: A. Risk reduction instruments (for RESCO projects) | P13: B. Alternative financing options (for CAPEX projects)
B15: 1 | C15: Revolving fund for payment guarantee | P15: 1 | Q15: Hybrid annuity model
B17: 2 | C17: Credit default guarantee
B20: A1. Revolving Fund for Payment Guarantee
B22: A corpus fund that can be accessed by developers/financiers in the event of delay in tariff payment by the DISCOM
B23: To read more about this mechanism or to collapse the details,
B25: What is the challenge? | X25: What are the costs and benefits
B26: Timely payment from DISCOM is a key investment risk factor for solar developers and financiers given the past payment delays. This leads to a risk premium in the interest rate offered by the banks for Component A and Component C (FLS). In Component A, where the bank uses PPAs as the loan collateral, this becomes a major issue for the banks.
X27: Inputs | Y27: Expected capacity to be contracted under:
AB29: Component A (MW) | AK29: 0
AB31: Component C (FLS) (MW) | AK31: 0
B33: How does the instrument work?
B34: > | C34: The state government or a development partner, such as a multilateral development bank, sets up a corpus fund with a bank. | Y34: Months of payment in corpus | AK34: 3
Y36: Reduction in interest rate (%) | AK36: 0.0015 | AO36: — This depends on multiple factors like the DISCOM's past records etc. A default value of 0.15% is assumed based on literature review.
B37: > | C37: The fund value is equivalent to the total payables to the developers under the scheme for a certain number of months – typically two or three months.
B40: > | C40: A nodal agency (other than DISCOM) is assigned to operate the fund.
AS41: KUSUM A | AW41: KUSUM C
B42: > | C42: If the DISCOM delays the payments to any or all developers for a certain period--typically 2 to 3 months--the nodal agency can make the payments from the corpus fund.
X43: Estimates | Z43: Estimated size of the revolving fund (INR crores)
Z45: Estimated reduction in tariff for DISCOM (INR/unit)
B46: > | C46: The state government replenishes the fund shortly after its utilization. The government deducts the corresponding amount from its regular transfer to the DISCOMs, like subsidies etc.
Z47: Annual savings for DISCOM from reduced tariff (INR crores)
Z49: Lifetime savings for the DISCOM due to the Fund (INR crores)
B50: > | C50: This mechanism ensures the payment to the developers does not go beyond a pre-decided number of months and correspondingly reduces the risk premium | Z50: (calculated as a simple summation over 25 years)
Z52: Total investment attracted (INR crores)
B55: Who are the stakeholders and what are their roles?
B57: State government | K57: · Initial funding of the revolving fund (if a multilateral development bank is not involved)
K58: · Identify nodal agency for fund management
K59: · Create guidelines for fund operation including tripartite agreement with DISCOM and the nodal agency (if needed)
K60: · Replenishment of used fund
B61: DISCOM | K61: · Agreement with the state government and the nodal agency
B62: A designated bank | K62: · Hold the corpus fund
K63: · Release payment to developers on instruction from the nodal agency
B64: Nodal agency (other than DISCOM) | K64: · Agreement with the state government and DISCOM
K65: · Operate the fund based on guidelines
B67: A multilateral development bank (optional) | K67: · Support the state government with the formation of corpus
K68: · Can gradually withdraw if the state government commits to increase their share in the corpus over the years.
B70: Examples
B72: Maharashtra's Mukhya Mantri Saur Krishi Vahini Yajona (MSKVY) 2.0 scheme
B73: > | C73: Revolving fund corpus of 100 crore/GW
B74: > | C74: Fund manager: MSEB Holding company which receives 1% as fees
B75: > | C75: Initial source of fund: Green Energy Cess Fund
B76: > | C76: Operations: Payment from the revolving fund will be sanctioned by the nodal agency in the event of payment delay of 3 months or more
B77: > | C77: Fund is replenished by diverting the government subsidy transfer to the DISCOM
B79: A2. Credit Guarantee Fund for Risk Reduction
B80: A corpus fund that can be accessed by the financing institutions (banks/NBFCs) who have advanced loans for solar power plants in case of payment default by developers
B81: To read more about this mechanism or to collapse the details,
B83: What is the challenge? | X83: What are the costs and benefits?
B84: Several participants in the PM-KUSUM scheme, especially Component A, are first-time entrepreneurs or have higher risk profiles due to limited experience and credit records. Banks put a higher premium on interest rates due to default risks despite long-term PPAs. This leads to higher tariff discovery for the schemes.
X85: Inputs | Z85: Expected capacity to be covered under the scheme
AI87: Capacity under guarantee (MW)
AO88: % of projects covered (%)
B90: How does the instrument work? | Z90: Component A | AI90: 0 | AO90: 0.25
B91: > | C91: The state government or a multilateral development bank sets up the credit guarantee fund with a bank.
Z92: Component C (FLS) | AI92: 0 | AO92: 0.25
B94: > | C94: The fund value is equivalent to a certain proportion (e.g., 25%) of the total debt financing required for the targeted capacity of projects. This means that the outstanding debt for this proportion of the total projects will be guaranteed for repayment to the bank/ financial institution in case of default. | Z94: Reduction in interest rate | AI94: 0.01 | AM94: — This depends on multiple factors like the history of defaults, extent of coverage under the guarantee, etc. A default value of 1% is assumed based on literature review
B99: > | C99: A bank/fund manager operates the guarantee fund.
B101: > | C101: It can be invoked if the developer defaults on repayment of loan financed by the bank/financing institution.
X102: Estimates | Z102: Estimated size of the credit guarantee fund (INR crores)
B104: > | C104: The banks extend loans for the installation of solar projects. In case of repayment default, the banks can access this guarantee fund to recover the outstanding default amount. | Z104: Estimated reduction in tariff for DISCOM in
AE106: Component A (INR/unit)
B108: > | C108: This mechanism ensures that the financing institutions are repaid the outstanding principal amount for projects covered under this fund in case of developer default. This reduces the risk premium associated with this sector, thereby also reducing the cost of finance for developers. | AD108: Component C(FLS) (INR/unit)
Z110: Estimated annual savings for DISCOM (INR crores)
B113: Who are the stakeholders and what are their roles?
B115: State government | K115: · Initial funding of the guarantee fund (if a multilateral development bank is not involved)
K116: · Identify nodal agency for fund management
K117: · Create guidelines for fund operationalization including tripartite agreement with DISCOM and the nodal agency (if needed)
K118: · Replenishment of used fund
B119: DISCOM | K119: · Agreement with the state government and the nodal agency
B120: A designated bank | K120: · Hold the corpus fund
K121: · Release payment to financing institution on instruction from the nodal agency
B122: Nodal agency (other than DISCOM) | K122: · Agreement with the state government and DISCOM
K123: · Operate the fund based on guidelines
B124: A multilateral development bank (optional) | K124: · Support the state government with the formation of corpus
K125: · Can gradually withdraw if the state government commits to increase their share in the corpus over the years.
B127: Examples
B128: Green Climate Fund's (GCF) Credit Guarantee Fund for Pakistan's Distributed Solar Project
B129: > | C129: A total investment of USD 54 million was envisioned under this project for financing distributed solar projects in the country.
B130: > | C130: Accredited entity for this guarantee fund is JS Bank, a regulated bank in Pakistan.
B131: > | C131: Initial source of fund: USD 10 million grant from GCF and USD 44 million in co-financing leveraged from other sources using this fund.
B132: > | C132: Operations: JS Bank does due diligence on certified solar vendors and makes payments for the installation of solar projects directly to the vendor.
B133: > | C133: In case of default, the fund covers the lending portfolio amount, thereby reducing lender risk in the sector.
B134: > | C134: As a result of the guarantee, JS Bank agreed to reduce its spread by 1% for financing RE projects, thereby reducing the cost of financing.
B135: > | C135: The GCF assumes that a maximum of 20% of the loans disbursed will default, hence covering 20% of the total sanctioned projects under the credit guarantee.
B137: B1. Hybrid Annuity Model (HAM)
B139: The hybrid annuity model (HAM) is a Public-Private Partnership (PPP) approach where the government and private sector share financial and operational risks.
B140: To read more about this mechanism or to collapse the details,
B142: What is the challenge? | X142: What are the costs and benefits
B143: One reason for low interest among potential developers is the long-term investment risks with tariff-based payment. Improved revenue stability may make the scheme more attractive for potential developers.
X144: Inputs | Z144: Total planned capacity (in MW) | AK144: 1000
Z146: Subsidy in the form of annuity | AK146: 0.3
B147: How does the instrument work?
B148: > | C148: Apart from the Central Financial Assistance, the state/DISCOM also provides an additional payment. | Z148: Number of annuity payments | AK148: 10
B150: > | C150: This is made as annuity payments spread over fixed years with a fixed interest rate. | Z150: Interest rate on annuity payments | AK150: 0.1
B153: > | C153: If the state government is making the annuity payment they can potentially compensate it from the subsidy transfer to the DISCOM.
AK154: KUSUM A | AO154: KUSUM C
X155: Estimates | Z155: Estimated tariff (INR/unit)
B156: > | C156: The remaining revenue is recovered through a competitively discovered feed-in tariff (FIT) over 25 years.
Z157: Total annuity amount | AR157: crores
Z159: Annuity payment/ year | AR159: crores
AK161: The estimated tariff and annuity have been calculated for the total planned capacity entered by the user for the each of the two components separately.
B165: Who are the stakeholders and what are their roles?
B167: Developers | K167: · Build and operate the solar plant, recover costs through annuities and FIT.
B168: DISCOM | K168: · Procure power under FIT agreements over a 25-year period.
K169: · Provide annuity payments for 12 years, ensuring predictable cash flows.
B170: Central Government | K170: · Providing CFA
B171: Banks/financiers | K171: · Offer project loans based on the secure revenue structure
B173: Examples
B174: > | C174: Highway Development in India: HAM is widely used in highway projects like the Eastern Peripheral Expressway, where costs are split between annuities and toll revenues.
B177: > | C177: Moray Offshore Wind Farm (Scotland): Combines annuities with long-term tariff mechanisms for stable renewable energy revenues.

Sheet Costs and Benefits
A1: Cost-Benefit Analysis
B5: DISCOM statistics | X5: Ambition on solarizing agricultural load | AW5: Assumptions
AW6: Technical
C7: State | H7: Karnataka | N7: =HYPERLINK("#H7", CHAR(128)) -> € | O7: — Select the state and the DISCOM | Y7: Component-wise targeted capacity addition | AO7: —Input component-wise targets in MW | AW7: Transmission losses | BL7: =INDEX(Data!$F$2:$F$22,MATCH(1,($H$7=Data!$A$2:$A$22)*($H$9=Data!$B$2:$B$22),0)) -> 0.0527
AW8: Annual transmission loss reduction | BL8: 0 | BP8: — | BQ8: User can specify the loss reduction targets
C9: Discom | H9: All | N9: =HYPERLINK("#H9",CHAR(128)) -> € | AA9: > | AB9: Component A | AK9: 100 | AW9: Distribution losses up to 11 kV substation | BL9: =INDEX(Data!$G$2:$G$22,MATCH(1,($H$7=Data!$A$2:$A$22)*($H$9=Data!$B$2:$B$22),0)) -> 0.114
AW10: Annual distribution loss reduction | BL10: 0 | BP10: —
AA11: > | AB11: Component C (FLS) | AK11: 100 | AW11: System coincidence factor | BL11: =INDEX(Data!$N$2:$N$22,MATCH(1,($H$7=Data!$A$2:$A$22)*($H$9=Data!$B$2:$B$22),0)) -> 0.3
C12: Total electricity consumption | N12: =INDEX(Data!$C$2:$C$22,MATCH(1,($H$7=Data!$A$2:$A$22)*($H$9=Data!$B$2:$B$22),0)) -> 58542.46 | R12: MU | AW12: Transmission coincidence factor | BL12: =INDEX(Data!$O$2:$O$22,MATCH(1,($H$7=Data!$A$2:$A$22)*($H$9=Data!$B$2:$B$22),0)) -> 0.7010486301
AA13: > | AB13: Other decentralized solar | AK13: 100 | AW13: Financial
C14: Total agricultural consumption | N14: =INDEX(Data!$D$2:$D$22,MATCH(1,($H$7=Data!$A$2:$A$22)*($H$9=Data!$B$2:$B$22),0)) -> 22060.4 | R14: MU | AW14: Average fixed capacity charges | BL14: =INDEX(Data!$H$2:$H$22,MATCH(1,($H$7=Data!$A$2:$A$22)*($H$9=Data!$B$2:$B$22),0)) -> 8686 | BO14: INR/kW
AA15: > | AB15: Utility-scale solar | AK15: 100 | AW15: Average fixed transmission charges | BL15: =INDEX(Data!$I$2:$I$22,MATCH(1,($H$7=Data!$A$2:$A$22)*($H$9=Data!$B$2:$B$22),0)) -> 1818 | BO15: INR/kW
C16: Solar capacity corresponding to 100% agricultural power demand solarization | N16: =$N$14/0.19/365/24*1000 -> 13254.2658 | R16: MW | AW16: Average variable cost of power | BL16: =INDEX(Data!$J$2:$J$22,MATCH(1,($H$7=Data!$A$2:$A$22)*($H$9=Data!$B$2:$B$22),0)) -> 3 | BO16: INR/kWh
AW17: Discount rate | BL17: =INDEX(Data!$K$2:$K$22,MATCH(1,($H$7=Data!$A$2:$A$22)*($H$9=Data!$B$2:$B$22),0)) -> 0.12
AW18: Substation upgradation
AW19: Substations targeted under Comp. A | BL19: 33.33333333
AW20: Substations targeted under Comp. C | BL20: 33.33333333
AW21: Substations targeted under other DRE | BL21: 33.33333333
Y23: Total new solar capacity addition (MW) | AK23: =SUM(Capacity_Addition_A,Capacity_Addition_C,Capacity_Addition_Other,Capacity_Addition_Utility) -> 400 | AW23: Expenses for substation upgrade | BL23: 30 | BO23: INR Lakhs
AW24: Solar power plant
AW25: Capacity utilization factor (decentralized) | BL25: =CUF -> 0.21
Y26: % agricultural load targeted for solarization | AK26: =New_Capacity_Addition/Total_Agri_SolarDemand -> 0.03017896321 | AW26: Capacity utilization factor (utility-scale) | BL26: 0.2
AW27: Annual degradation rate | BL27: 0.005
AW28: Tariff component A | BL28: =Tariff_KUSUMA -> 3.141653044 | BO28: INR/kWh
AW29: Tariff component C (FLS) | BL29: =Tariff_KUSUMC -> 3.058517482 | BO29: INR/kWh
AW30: Tariff other decentralized | BL30: =Tariff_nosubsidy -> 3.141653044 | BO30: INR/kWh
AW31: Tariff for utility-scale solar power plants | BL31: 2.5 | BO31: INR/kWh
A35: Costs and Benefits
A38: A. Shifting agricultural load from conventional sources to solar power
A39: Following are the net present values (INR crores) of different costs and benefits to the state/DISCOM over 25 years calculated based on discounted cash flow model
B41: Parameters | P41: Component A | W41: Component C (FLS) | AF41: Other distributed solar | AP41: Utility-scale solar
B43: Benefits (INR crores)
B44: Avoided generation capacity cost | S44: =NPV($BL$17,CBA!H10:AF10)/10000000 -> 215.7463517 | AB44: =NPV($BL$17,CBA!H27:AF27)/10000000 -> 215.7463517 | AL44: =NPV($BL$17,CBA!H43:AF43)/10000000 -> 215.7463517 | AU44: =NPV($BL$17,CBA!I57:AG57)/10000000 -> 202.8437013
B45: Avoided power purchase cost | S45: =NPV($BL$17,CBA!H11:AF11)/10000000 -> 351.327615 | AB45: =NPV($BL$17,CBA!H28:AF28)/10000000 -> 351.327615 | AL45: =NPV($BL$17,CBA!H44:AF44)/10000000 -> 351.327615 | AU45: =NPV($BL$17,CBA!H58:AF58)/10000000 -> 342.138784
B46: Avoided transmission capacity cost | S46: =NPV($BL$17,CBA!H13:AF13)/10000000 -> 119.0997042 | AB46: =NPV($BL$17,CBA!H30:AF30)/10000000 -> 119.0997042 | AL46: =NPV($BL$17,CBA!H46:AF46)/10000000 -> 119.0997042
B47: Performance-based incentive (PBI) | S47: =NPV($BL$17,CBA!H16:L16)/10000000 -> 26.2911315
B49: Costs (INR crores)
B50: Feed-in tariff | S50: =NPV($BL$17,CBA!H15:AF15)/10000000 -> -438.357049 | AB50: =NPV($BL$17,CBA!H32:AF32)/10000000 -> -426.7570858 | AL50: =NPV($BL$17,CBA!H48:AF48)/10000000 -> -438.357049 | AU50: =NPV($BL$17,CBA!H59:AF59)/10000000 -> -332.2159528
B51: Substation Upgradation cost | S51: =CBA!H17/10000000 -> -10 | AB51: =CBA!H33/10000000 -> -10 | AL51: =CBA!H49/10000000 -> -10
B53: Net benefits | S53: =SUM(S44,S45,S46,S47,S50,S51) -> 264.1077534 | AB53: =SUM(AB44,AB45,AB46,AB47,AB50,AB51) -> 249.4165851 | AL53: =SUM(AL44,AL45,AL46,AL47,AL50,AL51) -> 237.8166219 | AU53: =SUM(AU44,AU45,AU46,AU47,AU50) -> 212.7665324
B55: Following charts represent the costs and benefits on a per-unit generated basis
N58: Component A | O58: Component C(FLS) | P58: Other distributed solar | Q58: Utility-scale solar
C59: Avoided Generation Capacity Cost | N59: =S44/CBA!$AG$4*10000000 -> 0.4978739572 | O59: =AB44/CBA!$AG$21*10000000 -> 0.4978739572 | P59: =AL44/CBA!$AG$37*10000000 -> 0.4978739572 | Q59: =AU44/CBA!$AG$53*10000000 -> 0.4915036811
C60: Avoided Power Purchase Cost | N60: =S45/CBA!$AG$4*10000000 -> 0.8107523885 | O60: =AB45/CBA!$AG$21*10000000 -> 0.8107523885 | P60: =AL45/CBA!$AG$37*10000000 -> 0.8107523885 | Q60: =AU45/CBA!$AG$53*10000000 -> 0.8290248636
C61: Avoided Transmission Capacity Cost | N61: =S46/CBA!$AG$4*10000000 -> 0.2748442351 | O61: =AB46/CBA!$AG$21*10000000 -> 0.2748442351 | P61: =AL46/CBA!$AG$37*10000000 -> 0.2748442351 | Q61: =AU46/CBA!$AG$53*10000000 -> 0
C62: Incentives from PM-KUSUM | N62: =S47/CBA!$AG$4*10000000 -> 0.06067156906 | O62: =AB47/CBA!$AG$21*10000000 -> 0 | P62: =AL47/CBA!$AG$37*10000000 -> 0 | Q62: =AU47/CBA!$AG$53*10000000 -> 0
C63: Feed-in Tariff | N63: =S50/CBA!$AG$4*10000000 -> -1.011588641 | O63: =AB50/CBA!$AG$21*10000000 -> -0.9848196152 | P63: =AL50/CBA!$AG$37*10000000 -> -1.011588641 | Q63: =AU50/CBA!$AG$53*10000000 -> -0.8049811886
C64: Substation Upgrade Cost | N64: =S51/CBA!$AG$4*10000000 -> -0.02307681929 | O64: =AB51/CBA!$AG$21*10000000 -> -0.02307681929 | P64: =AL51/CBA!$AG$37*10000000 -> -0.02307681929
C65: Net benefits | N65: =S53/CBA!$AG$4*10000000 -> 0.60947669 | O65: =AB53/CBA!$AG$21*10000000 -> 0.5755741463 | P65: =AL53/CBA!$AG$37*10000000 -> 0.548805121 | Q65: =AU53/CBA!$AG$53*10000000 -> 0.5155473561

Sheet CBA (hidden)
B1: Assumptions | G1: Year | H1: 1 | I1: 2 | J1: 3 | K1: 4 | L1: 5 | M1: 6 | N1: 7 | O1: 8 | P1: 9 | Q1: 10 | R1: 11 | S1: 12 | T1: 13 | U1: 14 | V1: 15 | W1: 16 | X1: 17 | Y1: 18 | Z1: 19 | AA1: 20 | AB1: 21 | AC1: 22 | AD1: 23 | AE1: 24 | AF1: 25
B2: Technical | G2: Distributed solar power plants: Component A
B3: Transmission losses | D3: ='Costs and Benefits'!BL7 -> 0.0527 | G3: Component A | H3: =Capacity_Addition_A -> 100 | I3: 100 | J3: 100 | K3: 100 | L3: 100 | M3: 100 | N3: 100 | O3: 100 | P3: 100 | Q3: 100 | R3: 100 | S3: 100 | T3: 100 | U3: 100 | V3: 100 | W3: 100 | X3: 100 | Y3: 100 | Z3: 100 | AA3: 100 | AB3: 100 | AC3: 100 | AD3: 100 | AE3: 100 | AF3: 100
B4: Annual transmission loss reduction (targeted) | D4: ='Costs and Benefits'!BL8 -> 0 | G4: Component A generation | H4: =H3*365*24*$D$17*1000 -> 183960000 | I4: =H4*(1-$D$19) -> 183040200 | J4: =I4*(1-$D$19) -> 182124999 | K4: 181214374 | L4: 180308302.1 | M4: 179406760.6 | N4: 178509726.8 | O4: 177617178.2 | P4: 176729092.3 | Q4: 175845446.8 | R4: 174966219.6 | S4: 174091388.5 | T4: 173220931.6 | U4: 172354826.9 | V4: 171493052.8 | W4: 170635587.5 | X4: 169782409.6 | Y4: 168933497.5 | Z4: 168088830 | AA4: 167248385.9 | AB4: 166412144 | AC4: 165580083.2 | AD4: 164752182.8 | AE4: 163928421.9 | AF4: 163108779.8 | AG4: =SUM(H4:AF4) -> 4333352821
B5: Distribution losses upto 11 kV substation | D5: ='Costs and Benefits'!BL9 -> 0.114 | G5: Transmission Loss (%) | H5: =$D$3-$D$4 -> 0.0527 | I5: =H5-$D$4 -> 0.0527 | J5: =I5-$D$4 -> 0.0527 | K5: 0.0527 | L5: 0.0527 | M5: 0.0527 | N5: 0.0527 | O5: 0.0527 | P5: 0.0527 | Q5: 0.0527 | R5: 0.0527 | S5: 0.0527 | T5: 0.0527 | U5: 0.0527 | V5: 0.0527 | W5: 0.0527 | X5: 0.0527 | Y5: 0.0527 | Z5: 0.0527 | AA5: 0.0527 | AB5: 0.0527 | AC5: 0.0527 | AD5: 0.0527 | AE5: 0.0527 | AF5: 0.0527
B6: Annual distribution loss reduction (targeted) | D6: ='Costs and Benefits'!BL10 -> 0 | G6: Distribution Loss up to 11 kV (%) | H6: =$D$5-$D$6 -> 0.114 | I6: =H6-$D$4 -> 0.114 | J6: =I6-$D$4 -> 0.114 | K6: 0.114 | L6: 0.114 | M6: 0.114 | N6: 0.114 | O6: 0.114 | P6: 0.114 | Q6: 0.114 | R6: 0.114 | S6: 0.114 | T6: 0.114 | U6: 0.114 | V6: 0.114 | W6: 0.114 | X6: 0.114 | Y6: 0.114 | Z6: 0.114 | AA6: 0.114 | AB6: 0.114 | AC6: 0.114 | AD6: 0.114 | AE6: 0.114 | AF6: 0.114
B7: System Coincidence Factor | D7: ='Costs and Benefits'!BL11 -> 0.3 | G7: System Coincidence Factor (%) | H7: =$D$7 -> 0.3 | I7: 0.3 | J7: 0.3 | K7: 0.3 | L7: 0.3 | M7: 0.3 | N7: 0.3 | O7: 0.3 | P7: 0.3 | Q7: 0.3 | R7: 0.3 | S7: 0.3 | T7: 0.3 | U7: 0.3 | V7: 0.3 | W7: 0.3 | X7: 0.3 | Y7: 0.3 | Z7: 0.3 | AA7: 0.3 | AB7: 0.3 | AC7: 0.3 | AD7: 0.3 | AE7: 0.3 | AF7: 0.3
B8: Transmission Coincidence Factor | D8: ='Costs and Benefits'!BL12 -> 0.7010486301 | G8: Transmission Coincidence Factor (%) | H8: =$D$8 -> 0.7010486301 | I8: 0.7010486301 | J8: 0.7010486301 | K8: 0.7010486301 | L8: 0.7010486301 | M8: 0.7010486301 | N8: 0.7010486301 | O8: 0.7010486301 | P8: 0.7010486301 | Q8: 0.7010486301 | R8: 0.7010486301 | S8: 0.7010486301 | T8: 0.7010486301 | U8: 0.7010486301 | V8: 0.7010486301 | W8: 0.7010486301 | X8: 0.7010486301 | Y8: 0.7010486301 | Z8: 0.7010486301 | AA8: 0.7010486301 | AB8: 0.7010486301 | AC8: 0.7010486301 | AD8: 0.7010486301 | AE8: 0.7010486301 | AF8: 0.7010486301
B9: Financial | G9: Avoided Generation Capacity | H9: =H3*$D$7/(1-H5) -> 31.66895387 | I9: =I3*$D$7/(1-I5) -> 31.66895387 | J9: 31.66895387 | K9: 31.66895387 | L9: 31.66895387 | M9: 31.66895387 | N9: 31.66895387 | O9: 31.66895387 | P9: 31.66895387 | Q9: 31.66895387 | R9: 31.66895387 | S9: 31.66895387 | T9: 31.66895387 | U9: 31.66895387 | V9: 31.66895387 | W9: 31.66895387 | X9: 31.66895387 | Y9: 31.66895387 | Z9: 31.66895387 | AA9: 31.66895387 | AB9: 31.66895387 | AC9: 31.66895387 | AD9: 31.66895387 | AE9: 31.66895387 | AF9: 31.66895387
B10: Average Fixed Capacity Charges | D10: ='Costs and Benefits'!BL14 -> 8686 | E10: INR/kW | G10: Avoided Generation Capacity Cost | H10: =H9*$D$10*1000 -> 275076533.3 | I10: 275076533.3 | J10: 275076533.3 | K10: 275076533.3 | L10: 275076533.3 | M10: 275076533.3 | N10: 275076533.3 | O10: 275076533.3 | P10: 275076533.3 | Q10: 275076533.3 | R10: 275076533.3 | S10: 275076533.3 | T10: 275076533.3 | U10: 275076533.3 | V10: 275076533.3 | W10: 275076533.3 | X10: 275076533.3 | Y10: 275076533.3 | Z10: 275076533.3 | AA10: 275076533.3 | AB10: 275076533.3 | AC10: 275076533.3 | AD10: 275076533.3 | AE10: 275076533.3 | AF10: 275076533.3
B11: Average Fixed Transmission Charges | D11: ='Costs and Benefits'!BL15 -> 1818 | E11: INR/kW | G11: Avoided Power Purchase Cost | H11: =H4*(1-H5)*(1-H6)*$D$12 -> 463197188.7 | I11: =I4*(1-I5)*(1-I6)*$D$12 -> 460881202.7 | J11: 458576796.7 | K11: 456283912.7 | L11: 454002493.2 | M11: 451732480.7 | N11: 449473818.3 | O11: 447226449.2 | P11: 444990317 | Q11: 442765365.4 | R11: 440551538.5 | S11: 438348780.8 | T11: 436157036.9 | U11: 433976251.8 | V11: 431806370.5 | W11: 429647338.6 | X11: 427499102 | Y11: 425361606.4 | Z11: 423234798.4 | AA11: 421118624.4 | AB11: 419013031.3 | AC11: 416917966.1 | AD11: 414833376.3 | AE11: 412759209.4 | AF11: 410695413.4
B12: Average Variable Cost of Power | D12: ='Costs and Benefits'!BL16 -> 3 | E12: INR/kWh | G12: Avoided Transmission Capacity | H12: =H3*H8/(1-H5)/(1-H6) -> 83.52700048 | I12: =I3*I8/(1-I5)/(1-I6) -> 83.52700048 | J12: 83.52700048 | K12: 83.52700048 | L12: 83.52700048 | M12: 83.52700048 | N12: 83.52700048 | O12: 83.52700048 | P12: 83.52700048 | Q12: 83.52700048 | R12: 83.52700048 | S12: 83.52700048 | T12: 83.52700048 | U12: 83.52700048 | V12: 83.52700048 | W12: 83.52700048 | X12: 83.52700048 | Y12: 83.52700048 | Z12: 83.52700048 | AA12: 83.52700048 | AB12: 83.52700048 | AC12: 83.52700048 | AD12: 83.52700048 | AE12: 83.52700048 | AF12: 83.52700048
B13: Discount rate | D13: ='Costs and Benefits'!BL17 -> 0.12 | G13: Avoided Transmission Capacity Cost | H13: =H12*$D$11*1000 -> 151852086.9 | I13: 151852086.9 | J13: 151852086.9 | K13: 151852086.9 | L13: 151852086.9 | M13: 151852086.9 | N13: 151852086.9 | O13: 151852086.9 | P13: 151852086.9 | Q13: 151852086.9 | R13: 151852086.9 | S13: 151852086.9 | T13: 151852086.9 | U13: 151852086.9 | V13: 151852086.9 | W13: 151852086.9 | X13: 151852086.9 | Y13: 151852086.9 | Z13: 151852086.9 | AA13: 151852086.9 | AB13: 151852086.9 | AC13: 151852086.9 | AD13: 151852086.9 | AE13: 151852086.9 | AF13: 151852086.9
G14: Component A tariff | H14: =H4*$D$20 -> 577938494 | I14: =I4*$D$20 -> 575048801.5 | J14: 572173557.5 | K14: 569312689.7 | L14: 566466126.3 | M14: 563633795.6 | N14: 560815626.7 | O14: 558011548.5 | P14: 555221490.8 | Q14: 552445383.3 | R14: 549683156.4 | S14: 546934740.6 | T14: 544200066.9 | U14: 541479066.6 | V14: 538771671.3 | W14: 536077812.9 | X14: 533397423.8 | Y14: 530730436.7 | Z14: 528076784.5 | AA14: 525436400.6 | AB14: 522809218.6 | AC14: 520195172.5 | AD14: 517594196.7 | AE14: 515006225.7 | AF14: 512431194.5
G15: Feed-in-Tariff Cost | H15: =-SUM(H14:H14) -> -577938494 | I15: -575048801.5 | J15: -572173557.5 | K15: -569312689.7 | L15: -566466126.3 | M15: -563633795.6 | N15: -560815626.7 | O15: -558011548.5 | P15: -555221490.8 | Q15: -552445383.3 | R15: -549683156.4 | S15: -546934740.6 | T15: -544200066.9 | U15: -541479066.6 | V15: -538771671.3 | W15: -536077812.9 | X15: -533397423.8 | Y15: -530730436.7 | Z15: -528076784.5 | AA15: -525436400.6 | AB15: -522809218.6 | AC15: -520195172.5 | AD15: -517594196.7 | AE15: -515006225.7 | AF15: -512431194.5
B16: Solar Power plant | G16: Component-A incentive | H16: =IF(PBI_selection=1,CBA!H4*0.4,0) -> 73584000 | I16: =IF(PBI_selection=1,CBA!I4*0.4,0) -> 73216080 | J16: =IF(PBI_selection=1,CBA!J4*0.4,0) -> 72849999.6 | K16: =IF(PBI_selection=1,CBA!K4*0.4,0) -> 72485749.6 | L16: =IF(PBI_selection=1,CBA!L4*0.4,0) -> 72123320.85
B17: Capacity Utilization Factor (Decentralized) | D17: ='Costs and Benefits'!BL25 -> 0.21 | G17: Substation Upgradation Cost | H17: =-'Costs and Benefits'!BL23*100000*Substation_Count_A -> -100000000
B18: Capacity Utilization Factor (Utility-scale) | D18: ='Costs and Benefits'!BL26 -> 0.2
B19: Annual degradation Rate | D19: ='Costs and Benefits'!BL27 -> 0.005 | G19: Distributed solar power plants: Component C (FLS)
B20: Tariff Component A | D20: ='Costs and Benefits'!BL28 -> 3.141653044 | G20: Component C(FLS) | H20: =Capacity_Addition_C -> 100 | I20: 100 | J20: 100 | K20: 100 | L20: 100 | M20: 100 | N20: 100 | O20: 100 | P20: 100 | Q20: 100 | R20: 100 | S20: 100 | T20: 100 | U20: 100 | V20: 100 | W20: 100 | X20: 100 | Y20: 100 | Z20: 100 | AA20: 100 | AB20: 100 | AC20: 100 | AD20: 100 | AE20: 100 | AF20: 100
B21: Tariff Component C (FLS) | D21: ='Costs and Benefits'!BL29 -> 3.058517482 | E21: INR/kWh | G21: Component C(FLS) generation | H21: =H20*365*24*$D$17*1000 -> 183960000 | I21: =H21*(1-$D$19) -> 183040200 | J21: =I21*(1-$D$19) -> 182124999 | K21: 181214374 | L21: 180308302.1 | M21: 179406760.6 | N21: 178509726.8 | O21: 177617178.2 | P21: 176729092.3 | Q21: 175845446.8 | R21: 174966219.6 | S21: 174091388.5 | T21: 173220931.6 | U21: 172354826.9 | V21: 171493052.8 | W21: 170635587.5 | X21: 169782409.6 | Y21: 168933497.5 | Z21: 168088830 | AA21: 167248385.9 | AB21: 166412144 | AC21: 165580083.2 | AD21: 164752182.8 | AE21: 163928421.9 | AF21: 163108779.8 | AG21: =SUM(H21:AF21) -> 4333352821
B22: Tariff other decentralized | D22: ='Costs and Benefits'!BL30 -> 3.141653044 | G22: Transmission Loss (%) | H22: =$D$3-$D$4 -> 0.0527 | I22: =H22-$D$4 -> 0.0527 | J22: =I22-$D$4 -> 0.0527 | K22: 0.0527 | L22: 0.0527 | M22: 0.0527 | N22: 0.0527 | O22: 0.0527 | P22: 0.0527 | Q22: 0.0527 | R22: 0.0527 | S22: 0.0527 | T22: 0.0527 | U22: 0.0527 | V22: 0.0527 | W22: 0.0527 | X22: 0.0527 | Y22: 0.0527 | Z22: 0.0527 | AA22: 0.0527 | AB22: 0.0527 | AC22: 0.0527 | AD22: 0.0527 | AE22: 0.0527 | AF22: 0.0527
B23: Tariff for utility-scale solar power plants | D23: ='Costs and Benefits'!BL31 -> 2.5 | E23: INR/kWh | G23: Distribution Loss up to 11 kV (%) | H23: =$D$5-$D$6 -> 0.114 | I23: =H23-$D$6 -> 0.114 | J23: =I23-$D$6 -> 0.114 | K23: 0.114 | L23: 0.114 | M23: 0.114 | N23: 0.114 | O23: 0.114 | P23: 0.114 | Q23: 0.114 | R23: 0.114 | S23: 0.114 | T23: 0.114 | U23: 0.114 | V23: 0.114 | W23: 0.114 | X23: 0.114 | Y23: 0.114 | Z23: 0.114 | AA23: 0.114 | AB23: 0.114 | AC23: 0.114 | AD23: 0.114 | AE23: 0.114 | AF23: 0.114
G24: System Coincidence Factor (%) | H24: =$D$7 -> 0.3 | I24: =$D$7 -> 0.3 | J24: 0.3 | K24: 0.3 | L24: 0.3 | M24: 0.3 | N24: 0.3 | O24: 0.3 | P24: 0.3 | Q24: 0.3 | R24: 0.3 | S24: 0.3 | T24: 0.3 | U24: 0.3 | V24: 0.3 | W24: 0.3 | X24: 0.3 | Y24: 0.3 | Z24: 0.3 | AA24: 0.3 | AB24: 0.3 | AC24: 0.3 | AD24: 0.3 | AE24: 0.3 | AF24: 0.3
G25: Transmission Coincidence Factor (%) | H25: =$D$8 -> 0.7010486301 | I25: =$D$8 -> 0.7010486301 | J25: 0.7010486301 | K25: 0.7010486301 | L25: 0.7010486301 | M25: 0.7010486301 | N25: 0.7010486301 | O25: 0.7010486301 | P25: 0.7010486301 | Q25: 0.7010486301 | R25: 0.7010486301 | S25: 0.7010486301 | T25: 0.7010486301 | U25: 0.7010486301 | V25: 0.7010486301 | W25: 0.7010486301 | X25: 0.7010486301 | Y25: 0.7010486301 | Z25: 0.7010486301 | AA25: 0.7010486301 | AB25: 0.7010486301 | AC25: 0.7010486301 | AD25: 0.7010486301 | AE25: 0.7010486301 | AF25: 0.7010486301
G26: Avoided Generation Capacity | H26: =H20*$D$7/(1-H22) -> 31.66895387 | I26: =I20*$D$7/(1-I22) -> 31.66895387 | J26: 31.66895387 | K26: 31.66895387 | L26: 31.66895387 | M26: 31.66895387 | N26: 31.66895387 | O26: 31.66895387 | P26: 31.66895387 | Q26: 31.66895387 | R26: 31.66895387 | S26: 31.66895387 | T26: 31.66895387 | U26: 31.66895387 | V26: 31.66895387 | W26: 31.66895387 | X26: 31.66895387 | Y26: 31.66895387 | Z26: 31.66895387 | AA26: 31.66895387 | AB26: 31.66895387 | AC26: 31.66895387 | AD26: 31.66895387 | AE26: 31.66895387 | AF26: 31.66895387
G27: Avoided Generation Capacity Cost | H27: =H26*$D$10*1000 -> 275076533.3 | I27: =I26*$D$10*1000 -> 275076533.3 | J27: 275076533.3 | K27: 275076533.3 | L27: 275076533.3 | M27: 275076533.3 | N27: 275076533.3 | O27: 275076533.3 | P27: 275076533.3 | Q27: 275076533.3 | R27: 275076533.3 | S27: 275076533.3 | T27: 275076533.3 | U27: 275076533.3 | V27: 275076533.3 | W27: 275076533.3 | X27: 275076533.3 | Y27: 275076533.3 | Z27: 275076533.3 | AA27: 275076533.3 | AB27: 275076533.3 | AC27: 275076533.3 | AD27: 275076533.3 | AE27: 275076533.3 | AF27: 275076533.3
G28: Avoided Power Purchase Cost | H28: =H21*(1-H22)*(1-H23)*$D$12 -> 463197188.7 | I28: =I21*(1-I22)*(1-I23)*$D$12 -> 460881202.7 | J28: 458576796.7 | K28: 456283912.7 | L28: 454002493.2 | M28: 451732480.7 | N28: 449473818.3 | O28: 447226449.2 | P28: 444990317 | Q28: 442765365.4 | R28: 440551538.5 | S28: 438348780.8 | T28: 436157036.9 | U28: 433976251.8 | V28: 431806370.5 | W28: 429647338.6 | X28: 427499102 | Y28: 425361606.4 | Z28: 423234798.4 | AA28: 421118624.4 | AB28: 419013031.3 | AC28: 416917966.1 | AD28: 414833376.3 | AE28: 412759209.4 | AF28: 410695413.4
G29: Avoided Transmission Capacity | H29: =H20*H25/(1-H22)/(1-H23) -> 83.52700048 | I29: =I20*I25/(1-I22)/(1-I23) -> 83.52700048 | J29: 83.52700048 | K29: 83.52700048 | L29: 83.52700048 | M29: 83.52700048 | N29: 83.52700048 | O29: 83.52700048 | P29: 83.52700048 | Q29: 83.52700048 | R29: 83.52700048 | S29: 83.52700048 | T29: 83.52700048 | U29: 83.52700048 | V29: 83.52700048 | W29: 83.52700048 | X29: 83.52700048 | Y29: 83.52700048 | Z29: 83.52700048 | AA29: 83.52700048 | AB29: 83.52700048 | AC29: 83.52700048 | AD29: 83.52700048 | AE29: 83.52700048 | AF29: 83.52700048
G30: Avoided Transmission Capacity Cost | H30: =H29*$D$11*1000 -> 151852086.9 | I30: =I29*$D$11*1000 -> 151852086.9 | J30: 151852086.9 | K30: 151852086.9 | L30: 151852086.9 | M30: 151852086.9 | N30: 151852086.9 | O30: 151852086.9 | P30: 151852086.9 | Q30: 151852086.9 | R30: 151852086.9 | S30: 151852086.9 | T30: 151852086.9 | U30: 151852086.9 | V30: 151852086.9 | W30: 151852086.9 | X30: 151852086.9 | Y30: 151852086.9 | Z30: 151852086.9 | AA30: 151852086.9 | AB30: 151852086.9 | AC30: 151852086.9 | AD30: 151852086.9 | AE30: 151852086.9 | AF30: 151852086.9
G31: Component C tariff | H31: =H21*$D$21 -> 562644876 | I31: =I21*$D$21 -> 559831651.7 | J31: 557032493.4 | K31: 554247330.9 | L31: 551476094.3 | M31: 548718713.8 | N31: 545975120.2 | O31: 543245244.6 | P31: 540529018.4 | Q31: 537826373.3 | R31: 535137241.4 | S31: 532461555.2 | T31: 529799247.5 | U31: 527150251.2 | V31: 524514500 | W31: 521891927.5 | X31: 519282467.8 | Y31: 516686055.5 | Z31: 514102625.2 | AA31: 511532112.1 | AB31: 508974451.5 | AC31: 506429579.3 | AD31: 503897431.4 | AE31: 501377944.2 | AF31: 498871054.5
G32: Feed-in-Tariff Cost | H32: =-H31 -> -562644876 | I32: =-I31 -> -559831651.7 | J32: -557032493.4 | K32: -554247330.9 | L32: -551476094.3 | M32: -548718713.8 | N32: -545975120.2 | O32: -543245244.6 | P32: -540529018.4 | Q32: -537826373.3 | R32: -535137241.4 | S32: -532461555.2 | T32: -529799247.5 | U32: -527150251.2 | V32: -524514500 | W32: -521891927.5 | X32: -519282467.8 | Y32: -516686055.5 | Z32: -514102625.2 | AA32: -511532112.1 | AB32: -508974451.5 | AC32: -506429579.3 | AD32: -503897431.4 | AE32: -501377944.2 | AF32: -498871054.5
G33: Substation Upgradation Cost | H33: =-'Costs and Benefits'!BL23*100000*Substation_Count_C -> -100000000
G35: Distributed solar power plants: Other decentralized solar
G36: Other decentralized solar | H36: =Capacity_Addition_Other -> 100 | I36: 100 | J36: 100 | K36: 100 | L36: 100 | M36: 100 | N36: 100 | O36: 100 | P36: 100 | Q36: 100 | R36: 100 | S36: 100 | T36: 100 | U36: 100 | V36: 100 | W36: 100 | X36: 100 | Y36: 100 | Z36: 100 | AA36: 100 | AB36: 100 | AC36: 100 | AD36: 100 | AE36: 100 | AF36: 100
G37: Other decentralized solar generation | H37: =H36*365*24*$D$17*1000 -> 183960000 | I37: =H37*(1-$D$19) -> 183040200 | J37: =I37*(1-$D$19) -> 182124999 | K37: 181214374 | L37: 180308302.1 | M37: 179406760.6 | N37: 178509726.8 | O37: 177617178.2 | P37: 176729092.3 | Q37: 175845446.8 | R37: 174966219.6 | S37: 174091388.5 | T37: 173220931.6 | U37: 172354826.9 | V37: 171493052.8 | W37: 170635587.5 | X37: 169782409.6 | Y37: 168933497.5 | Z37: 168088830 | AA37: 167248385.9 | AB37: 166412144 | AC37: 165580083.2 | AD37: 164752182.8 | AE37: 163928421.9 | AF37: 163108779.8 | AG37: =SUM(H37:AF37) -> 4333352821
G38: Transmission Loss (%) | H38: =$D$3-$D$4 -> 0.0527 | I38: =H38-$D$4 -> 0.0527 | J38: =I38-$D$4 -> 0.0527 | K38: 0.0527 | L38: 0.0527 | M38: 0.0527 | N38: 0.0527 | O38: 0.0527 | P38: 0.0527 | Q38: 0.0527 | R38: 0.0527 | S38: 0.0527 | T38: 0.0527 | U38: 0.0527 | V38: 0.0527 | W38: 0.0527 | X38: 0.0527 | Y38: 0.0527 | Z38: 0.0527 | AA38: 0.0527 | AB38: 0.0527 | AC38: 0.0527 | AD38: 0.0527 | AE38: 0.0527 | AF38: 0.0527
G39: Distribution Loss up to 11 kV (%) | H39: =$D$5-$D$6 -> 0.114 | I39: =H39-$D$6 -> 0.114 | J39: =I39-$D$6 -> 0.114 | K39: 0.114 | L39: 0.114 | M39: 0.114 | N39: 0.114 | O39: 0.114 | P39: 0.114 | Q39: 0.114 | R39: 0.114 | S39: 0.114 | T39: 0.114 | U39: 0.114 | V39: 0.114 | W39: 0.114 | X39: 0.114 | Y39: 0.114 | Z39: 0.114 | AA39: 0.114 | AB39: 0.114 | AC39: 0.114 | AD39: 0.114 | AE39: 0.114 | AF39: 0.114
G40: System Coincidence Factor (%) | H40: =$D$7 -> 0.3 | I40: =$D$7 -> 0.3 | J40: 0.3 | K40: 0.3 | L40: 0.3 | M40: 0.3 | N40: 0.3 | O40: 0.3 | P40: 0.3 | Q40: 0.3 | R40: 0.3 | S40: 0.3 | T40: 0.3 | U40: 0.3 | V40: 0.3 | W40: 0.3 | X40: 0.3 | Y40: 0.3 | Z40: 0.3 | AA40: 0.3 | AB40: 0.3 | AC40: 0.3 | AD40: 0.3 | AE40: 0.3 | AF40: 0.3
G41: Transmission Coincidence Factor (%) | H41: =$D$8 -> 0.7010486301 | I41: =$D$8 -> 0.7010486301 | J41: 0.7010486301 | K41: 0.7010486301 | L41: 0.7010486301 | M41: 0.7010486301 | N41: 0.7010486301 | O41: 0.7010486301 | P41: 0.7010486301 | Q41: 0.7010486301 | R41: 0.7010486301 | S41: 0.7010486301 | T41: 0.7010486301 | U41: 0.7010486301 | V41: 0.7010486301 | W41: 0.7010486301 | X41: 0.7010486301 | Y41: 0.7010486301 | Z41: 0.7010486301 | AA41: 0.7010486301 | AB41: 0.7010486301 | AC41: 0.7010486301 | AD41: 0.7010486301 | AE41: 0.7010486301 | AF41: 0.7010486301
G42: Avoided Generation Capacity | H42: =H36*$D$7/(1-H38) -> 31.66895387 | I42: =I36*$D$7/(1-I38) -> 31.66895387 | J42: 31.66895387 | K42: 31.66895387 | L42: 31.66895387 | M42: 31.66895387 | N42: 31.66895387 | O42: 31.66895387 | P42: 31.66895387 | Q42: 31.66895387 | R42: 31.66895387 | S42: 31.66895387 | T42: 31.66895387 | U42: 31.66895387 | V42: 31.66895387 | W42: 31.66895387 | X42: 31.66895387 | Y42: 31.66895387 | Z42: 31.66895387 | AA42: 31.66895387 | AB42: 31.66895387 | AC42: 31.66895387 | AD42: 31.66895387 | AE42: 31.66895387 | AF42: 31.66895387
G43: Avoided Generation Capacity Cost | H43: =H42*$D$10*1000 -> 275076533.3 | I43: 275076533.3 | J43: 275076533.3 | K43: 275076533.3 | L43: 275076533.3 | M43: 275076533.3 | N43: 275076533.3 | O43: 275076533.3 | P43: 275076533.3 | Q43: 275076533.3 | R43: 275076533.3 | S43: 275076533.3 | T43: 275076533.3 | U43: 275076533.3 | V43: 275076533.3 | W43: 275076533.3 | X43: 275076533.3 | Y43: 275076533.3 | Z43: 275076533.3 | AA43: 275076533.3 | AB43: 275076533.3 | AC43: 275076533.3 | AD43: 275076533.3 | AE43: 275076533.3 | AF43: 275076533.3
G44: Avoided Power Purchase Cost | H44: =H37*(1-H38)*(1-H39)*$D$12 -> 463197188.7 | I44: =I37*(1-I38)*(1-I39)*$D$12 -> 460881202.7 | J44: 458576796.7 | K44: 456283912.7 | L44: 454002493.2 | M44: 451732480.7 | N44: 449473818.3 | O44: 447226449.2 | P44: 444990317 | Q44: 442765365.4 | R44: 440551538.5 | S44: 438348780.8 | T44: 436157036.9 | U44: 433976251.8 | V44: 431806370.5 | W44: 429647338.6 | X44: 427499102 | Y44: 425361606.4 | Z44: 423234798.4 | AA44: 421118624.4 | AB44: 419013031.3 | AC44: 416917966.1 | AD44: 414833376.3 | AE44: 412759209.4 | AF44: 410695413.4
G45: Avoided Transmission Capacity | H45: =H36*H41/(1-H38)/(1-H39) -> 83.52700048 | I45: =I36*I41/(1-I38)/(1-I39) -> 83.52700048 | J45: 83.52700048 | K45: 83.52700048 | L45: 83.52700048 | M45: 83.52700048 | N45: 83.52700048 | O45: 83.52700048 | P45: 83.52700048 | Q45: 83.52700048 | R45: 83.52700048 | S45: 83.52700048 | T45: 83.52700048 | U45: 83.52700048 | V45: 83.52700048 | W45: 83.52700048 | X45: 83.52700048 | Y45: 83.52700048 | Z45: 83.52700048 | AA45: 83.52700048 | AB45: 83.52700048 | AC45: 83.52700048 | AD45: 83.52700048 | AE45: 83.52700048 | AF45: 83.52700048
G46: Avoided Transmission Capacity Cost | H46: =H45*$D$11*1000 -> 151852086.9 | I46: 151852086.9 | J46: 151852086.9 | K46: 151852086.9 | L46: 151852086.9 | M46: 151852086.9 | N46: 151852086.9 | O46: 151852086.9 | P46: 151852086.9 | Q46: 151852086.9 | R46: 151852086.9 | S46: 151852086.9 | T46: 151852086.9 | U46: 151852086.9 | V46: 151852086.9 | W46: 151852086.9 | X46: 151852086.9 | Y46: 151852086.9 | Z46: 151852086.9 | AA46: 151852086.9 | AB46: 151852086.9 | AC46: 151852086.9 | AD46: 151852086.9 | AE46: 151852086.9 | AF46: 151852086.9
G47: Other decentralized solar tariff | H47: =H37*$D$22 -> 577938494 | I47: =I37*$D$22 -> 575048801.5 | J47: 572173557.5 | K47: 569312689.7 | L47: 566466126.3 | M47: 563633795.6 | N47: 560815626.7 | O47: 558011548.5 | P47: 555221490.8 | Q47: 552445383.3 | R47: 549683156.4 | S47: 546934740.6 | T47: 544200066.9 | U47: 541479066.6 | V47: 538771671.3 | W47: 536077812.9 | X47: 533397423.8 | Y47: 530730436.7 | Z47: 528076784.5 | AA47: 525436400.6 | AB47: 522809218.6 | AC47: 520195172.5 | AD47: 517594196.7 | AE47: 515006225.7 | AF47: 512431194.5
G48: Feed-in-Tariff Cost | H48: =-H47 -> -577938494 | I48: -575048801.5 | J48: -572173557.5 | K48: -569312689.7 | L48: -566466126.3 | M48: -563633795.6 | N48: -560815626.7 | O48: -558011548.5 | P48: -555221490.8 | Q48: -552445383.3 | R48: -549683156.4 | S48: -546934740.6 | T48: -544200066.9 | U48: -541479066.6 | V48: -538771671.3 | W48: -536077812.9 | X48: -533397423.8 | Y48: -530730436.7 | Z48: -528076784.5 | AA48: -525436400.6 | AB48: -522809218.6 | AC48: -520195172.5 | AD48: -517594196.7 | AE48: -515006225.7 | AF48: -512431194.5
G49: Substation Upgradation Cost | H49: =-'Costs and Benefits'!BL23*100000*Substation_Count_Other -> -100000000
G51: Utility-scale power plants
G52: Total new capactiy in MW | H52: =Capacity_Addition_Utility -> 100 | I52: 100 | J52: 100 | K52: 100 | L52: 100 | M52: 100 | N52: 100 | O52: 100 | P52: 100 | Q52: 100 | R52: 100 | S52: 100 | T52: 100 | U52: 100 | V52: 100 | W52: 100 | X52: 100 | Y52: 100 | Z52: 100 | AA52: 100 | AB52: 100 | AC52: 100 | AD52: 100 | AE52: 100 | AF52: 100
G53: Total Generation | H53: =H52*365*24*$D$18*1000 -> 175200000 | I53: =H53*(1-$D$19) -> 174324000 | J53: =I53*(1-$D$19) -> 173452380 | K53: 172585118.1 | L53: 171722192.5 | M53: 170863581.5 | N53: 170009263.6 | O53: 169159217.3 | P53: 168313421.2 | Q53: 167471854.1 | R53: 166634494.9 | S53: 165801322.4 | T53: 164972315.8 | U53: 164147454.2 | V53: 163326716.9 | W53: 162510083.3 | X53: 161697532.9 | Y53: 160889045.3 | Z53: 160084600 | AA53: 159284177 | AB53: 158487756.1 | AC53: 157695317.4 | AD53: 156906840.8 | AE53: 156122306.6 | AF53: 155341695 | AG53: =SUM(H53:AF53) -> 4127002687
G54: Transmission Loss (%) | H54: =$D$3-$D$4 -> 0.0527 | I54: =$D$3-$D$4 -> 0.0527 | J54: 0.0527 | K54: 0.0527 | L54: 0.0527 | M54: 0.0527 | N54: 0.0527 | O54: 0.0527 | P54: 0.0527 | Q54: 0.0527 | R54: 0.0527 | S54: 0.0527 | T54: 0.0527 | U54: 0.0527 | V54: 0.0527 | W54: 0.0527 | X54: 0.0527 | Y54: 0.0527 | Z54: 0.0527 | AA54: 0.0527 | AB54: 0.0527 | AC54: 0.0527 | AD54: 0.0527 | AE54: 0.0527 | AF54: 0.0527
G55: Distribution Loss up to 11 kV (%) | H55: =$D$5-$D$6 -> 0.114 | I55: =$D$5-$D$6 -> 0.114 | J55: 0.114 | K55: 0.114 | L55: 0.114 | M55: 0.114 | N55: 0.114 | O55: 0.114 | P55: 0.114 | Q55: 0.114 | R55: 0.114 | S55: 0.114 | T55: 0.114 | U55: 0.114 | V55: 0.114 | W55: 0.114 | X55: 0.114 | Y55: 0.114 | Z55: 0.114 | AA55: 0.114 | AB55: 0.114 | AC55: 0.114 | AD55: 0.114 | AE55: 0.114 | AF55: 0.114
G56: Avoided Generation Capacity | H56: =H52*$D$7 -> 30 | I56: =I52*$D$7 -> 30 | J56: 30 | K56: 30 | L56: 30 | M56: 30 | N56: 30 | O56: 30 | P56: 30 | Q56: 30 | R56: 30 | S56: 30 | T56: 30 | U56: 30 | V56: 30 | W56: 30 | X56: 30 | Y56: 30 | Z56: 30 | AA56: 30 | AB56: 30 | AC56: 30 | AD56: 30 | AE56: 30 | AF56: 30
G57: Avoided Generation Capacity Cost | H57: =H56*$D$10*1000 -> 260580000 | I57: =I56*$D$10*1000 -> 260580000 | J57: 260580000 | K57: 260580000 | L57: 260580000 | M57: 260580000 | N57: 260580000 | O57: 260580000 | P57: 260580000 | Q57: 260580000 | R57: 260580000 | S57: 260580000 | T57: 260580000 | U57: 260580000 | V57: 260580000 | W57: 260580000 | X57: 260580000 | Y57: 260580000 | Z57: 260580000 | AA57: 260580000 | AB57: 260580000 | AC57: 260580000 | AD57: 260580000 | AE57: 260580000 | AF57: 260580000
G58: Avoided Power Purchase Cost | H58: =H53*D12 -> 525600000 | I58: =I53*(1-I54)*(1-I55)*$D$12 -> 438934478.8 | J58: =J53*(1-J54)*(1-J55)*$D$12 -> 436739806.4 | K58: 434556107.4 | L58: 432383326.8 | M58: 430221410.2 | N58: 428070303.1 | O58: 425929951.6 | P58: 423800301.9 | Q58: 421681300.4 | R58: 419572893.8 | S58: 417475029.4 | T58: 415387654.2 | U58: 413310716 | V58: 411244162.4 | W58: 409187941.6 | X58: 407142001.9 | Y58: 405106291.9 | Z58: 403080760.4 | AA58: 401065356.6 | AB58: 399060029.8 | AC58: 397064729.7 | AD58: 395079406 | AE58: 393104009 | AF58: 391138488.9
G59: Feed-in-Tariff Cost | H59: =-(H53*$D$23) -> -438000000 | I59: =-(I53*$D$23) -> -435810000 | J59: -433630950 | K59: -431462795.2 | L59: -429305481.3 | M59: -427158953.9 | N59: -425023159.1 | O59: -422898043.3 | P59: -420783553.1 | Q59: -418679635.3 | R59: -416586237.1 | S59: -414503306 | T59: -412430789.4 | U59: -410368635.5 | V59: -408316792.3 | W59: -406275208.3 | X59: -404243832.3 | Y59: -402222613.1 | Z59: -400211500.1 | AA59: -398210442.6 | AB59: -396219390.4 | AC59: -394238293.4 | AD59: -392267101.9 | AE59: -390305766.4 | AF59: -388354237.6
G61: Other
G62: Avoided REC
W64: =W3/(1-W5)*#REF!*#REF!*1000 -> 
W65: =W10-#REF!/(1-W5)*#REF!*#REF!*1000 -> 

Sheet Data (hidden)
A1: State | B1: Discom | C1: Total_Cons (MU) | D1: Total_Agri_Cons (MU) | E1: Agri_Cons_Solarized (MU) | F1: Transmission_Loss (%) | G1: Distribution_Loss_11kV (%) | H1: Average_Fixed_Capacity_Charges | I1: Average_Fixed_Transmission_Charges | J1: Average_Variable_Cost_of_Power | K1: Discount_Rate | L1: Tariff_distributed | M1: Tariff_utility | N1: System Coincidence Factor | O1: Transmission Coincidence Factor | S1: =_xlfn._xlws.FILTER(Data!$B$2:$B987,Data!$A$2:$A987='Costs and Benefits'!H7) -> BESCOM
A2: India | B2: All | C2: =SUMIF($B$3:$B$200, "All", C3:C300) -> 436696.33 | D2: =SUMIF($B$3:$B$200, "All", D3:D300) -> 125785.79 | E2: =SUMIF($B$3:$B$200, "All", E3:E300) -> 0 | F2: =AVERAGEIF($B$3:$B$200, "All", F3:F300) -> 0.03953333333 | G2: =AVERAGEIF($B$3:$B$200, "All", G3:G300) -> 0.09263333333 | H2: =AVERAGEIF($B$3:$B$200, "All", H3:H300) -> 7669.790833 | I2: 2289.430122 | J2: 2.927666667 | K2: 0.1161666667 | L2: 3.0475 | M2: 2.656666667 | N2: 0.2832309741 | O2: 0.4945837519 | S2: GESCOM
A3: Rajasthan | B3: JVVNL | C3: 26534.11 | D3: 9099.65 | E3: 0 | F3: 0.0699 | G3: 0.1681 | H3: 6899.73 | I3: 3609.73 | J3: 2.96 | K3: 0.11 | L3: 3.14 | M3: 2.5 | N3: 0.2177 | O3: 0.4055 | S3: HESCOM
A4: Rajasthan | B4: JdVVNL | C4: 23174.86 | D4: 13252.74 | E4: 0 | F4: 0.0698 | G4: 0.2188 | H4: 7231.3 | I4: 3963.87 | J4: 2.89 | K4: 0.11 | L4: 3.14 | M4: 2.5 | N4: 0.2177 | O4: 0.4055 | S4: CESC
A5: Rajasthan | B5: AVVNL | C5: 19987.54 | D5: 6499.62 | E5: 0 | F5: 0.0574 | G5: 0.1515 | H5: 7437.51 | I5: 3425.14 | J5: 2.51 | K5: 0.11 | L5: 3.14 | M5: 2.5 | N5: 0.2177 | O5: 0.4055 | S5: MESCOM
A6: Rajasthan | B6: All | C6: 69696.51 | D6: 28852.01 | E6: 0 | F6: 0.0657 | G6: 0.1795 | H6: 7189.51 | I6: 3666.25 | J6: 2.79 | K6: 0.11 | L6: 3.14 | M6: 2.5 | N6: 0.2177 | O6: 0.4055 | S6: All
A7: Punjab | B7: All | C7: 58709 | D7: 13763 | E7: 0 | F7: 0.0244 | G7: 0.1276 | H7: 9747.32 | I7: 1221.39 | J7: 3.53 | K7: 0.16 | L7: 2.75 | M7: 2.36 | N7: 0.3338 | O7: 0.3714
A8: Karnataka | B8: BESCOM | C8: 26684.73 | D8: 6474.58 | E8: 0 | F8: 0.0501 | G8: 0.113 | H8: 8217 | I8: 1818 | J8: 3 | K8: 0.12 | L8: 3.17 | M8: 3.1 | N8: =AVERAGE(N9:N13) -> 0.3037461187 | O8: =AVERAGE(O9:O13) -> 0.7010486301
A9: Karnataka | B9: GESCOM | C9: 7827.3 | D9: 3612.57 | E9: 0 | F9: 0.0298 | G9: 0.1102 | H9: 5884 | I9: 1818 | J9: 3 | K9: 0.12 | L9: 3.17 | M9: 3.1 | N9: 0.3046826484 | O9: 0.7010486301
A10: Karnataka | B10: HESCOM | C10: 11761.98 | D10: 7042.95 | E10: 0 | F10: 0.0383 | G10: 0.1415 | H10: 14684 | I10: 1818 | J10: 3 | K10: 0.12 | L10: 3.17 | M10: 3.1 | N10: 0.3046826484 | O10: 0.7010486301
A11: Karnataka | B11: CESC | C11: 7167.89 | D11: 3346.86 | E11: 0 | F11: 0.1017 | G11: 0.1132 | H11: 9616 | I11: 1818 | J11: 3 | K11: 0.12 | L11: 3.17 | M11: 3.1 | N11: 0.3046826484 | O11: 0.7010486301
A12: Karnataka | B12: MESCOM | C12: 5100.56 | D12: 1583.44 | E12: 0 | F12: 0.0437 | G12: 0.0902 | H12: 7518 | I12: 1818 | J12: 3 | K12: 0.12 | L12: 3.17 | M12: 3.1 | N12: 0.3046826484 | O12: 0.7010486301
A13: Karnataka | B13: All | C13: 58542.46 | D13: 22060.4 | E13: 0 | F13: 0.0527 | G13: 0.114 | H13: 8686 | I13: 1818 | J13: 3 | K13: 0.12 | L13: 3.17 | M13: 3.1 | N13: 0.3 | O13: 0.7010486301
A14: Madhya Pradesh | B14: East DISCOM | C14: 19857.89 | D14: 7285.47 | E14: 0 | F14: 0.0263 | G14: 0.0755 | H14: 7911 | I14: 1710.724784 | J14: 2.22 | K14: 0.09 | L14: 3.125 | M14: 2.5 | N14: =AVERAGE(N15:N17) -> 0.574956621 | O14: =AVERAGE(O15:O17) -> 0.606283105
A15: Madhya Pradesh | B15: West DISCOM | C15: 28178.23 | D15: 11566.55 | E15: 0 | F15: 0.0263 | G15: 0.0755 | H15: 7911 | I15: 1710.72002 | J15: 2.22 | K15: 0.0916 | L15: 3.125 | M15: 2.5 | N15: 0.574956621 | O15: 0.606283105
A16: Madhya Pradesh | B16: Central DISCOM | C16: 24100.35 | D16: 10125.32 | E16: 0 | F16: 0.0263 | G16: 0.0755 | H16: 7911 | I16: 1710.718634 | J16: 2.22 | K16: 0.0919 | L16: 3.125 | M16: 2.5 | N16: 0.574956621 | O16: 0.606283105
A17: Madhya Pradesh | B17: All | C17: 72136.47 | D17: 28977.33 | E17: 0 | F17: 0.0263 | G17: 0.0755 | H17: 7911 | I17: 1710.720956 | J17: 2.22 | K17: 0.092 | L17: 3.125 | M17: 2.5 | N17: 0.574956621 | O17: 0.606283105
A18: Tamil Nadu | B18: All | C18: 83867 | D18: 16456 | E18: 0 | F18: 0.0381 | G18: 0.0562 | H18: 4919.4 | I18: 4193.055 | J18: 3.6 | K18: 0.105 | L18: 3 | M18: 2.5 | N18: 0.002929223744 | O18: 0.4932707763
A19: Uttar Pradesh | B19: All | C19: 93744.89 | D19: 15677.05 | E19: 0 | F19: 0.03 | G19: 0.003 | H19: 7565.515 | I19: 1127.164778 | J19: 2.426 | K19: 0.11 | L19: 3.1 | M19: 2.98 | N19: 0.27 | O19: 0.39

Sheet LCOE (hidden)
A1: Key assumptions | E1: No subsidy | F1: Year | G1: 1 | H1: 2 | I1: 3 | J1: 4 | K1: 5 | L1: 6 | M1: 7 | N1: 8 | O1: 9 | P1: 10 | Q1: 11 | R1: 12 | S1: 13 | T1: 14 | U1: 15 | V1: 16 | W1: 17 | X1: 18 | Y1: 19 | Z1: 20 | AA1: 21 | AB1: 22 | AC1: 23 | AD1: 24 | AE1: 25
A2: Power generation | B2: Capacity (MW) | C2: =plant_capacity -> 1 | F2: Potential Generation (MWh) | G2: =$C$2*8760*$C$3/1000 -> 1.8396 | H2: =$C$2*8760*$C$3/1000 -> 1.8396 | I2: 1.8396 | J2: 1.8396 | K2: 1.8396 | L2: 1.8396 | M2: 1.8396 | N2: 1.8396 | O2: 1.8396 | P2: 1.8396 | Q2: 1.8396 | R2: 1.8396 | S2: 1.8396 | T2: 1.8396 | U2: 1.8396 | V2: 1.8396 | W2: 1.8396 | X2: 1.8396 | Y2: 1.8396 | Z2: 1.8396 | AA2: 1.8396 | AB2: 1.8396 | AC2: 1.8396 | AD2: 1.8396 | AE2: 1.8396
B3: Capacity Factor (%) | C3: =CUF -> 0.21 | F3: Actual Generation (MWh) | G3: =G2*(1-$C$4) -> 1.802808 | H3: =H2*(1-$C$4) -> 1.802808 | I3: 1.802808 | J3: 1.802808 | K3: 1.802808 | L3: 1.802808 | M3: 1.802808 | N3: 1.802808 | O3: 1.802808 | P3: 1.802808 | Q3: 1.802808 | R3: 1.802808 | S3: 1.802808 | T3: 1.802808 | U3: 1.802808 | V3: 1.802808 | W3: 1.802808 | X3: 1.802808 | Y3: 1.802808 | Z3: 1.802808 | AA3: 1.802808 | AB3: 1.802808 | AC3: 1.802808 | AD3: 1.802808 | AE3: 1.802808 | AF3: Nominal
B4: Grid availability | C4: =GridUnavail -> 0.02 | F4: Return on Equity (INR Millions) | G4: =IF(G$1<=20,$C$19*$C$24,$C$19*$C$25) -> 1.547463939 | H4: =IF(H$1<=20,$C$19*$C$24,$C$19*$C$25) -> 1.547463939 | I4: 1.547463939 | J4: 1.547463939 | K4: 1.547463939 | L4: 1.547463939 | M4: 1.547463939 | N4: 1.547463939 | O4: 1.547463939 | P4: 1.547463939 | Q4: 1.547463939 | R4: 1.547463939 | S4: 1.547463939 | T4: 1.547463939 | U4: 1.547463939 | V4: 1.547463939 | W4: 1.547463939 | X4: 1.547463939 | Y4: 1.547463939 | Z4: 1.547463939 | AA4: 1.962991068 | AB4: 1.962991068 | AC4: 1.962991068 | AD4: 1.962991068 | AE4: 1.962991068 | AJ4: Tariff head | AK4: Contri per cost head
A5: Project Cost | B5: Capital cost w/ DCR modules (INR Millions) | C5: =((C2*capital_cost_DCR)-(transmission_cost*(plant_capacity-1)))*10 -> 39.8562 | F5: Discounted per unit Return on Equity (INR Millions) | G5: =G4*G18/LCOE_Actual_Generation -> 0.8583631418 | H5: 0.7859775923 | I5: 0.7196962981 | J5: 0.6590044889 | K5: 0.6034308048 | L5: 0.5525436356 | M5: 0.5059477687 | N5: 0.4632813196 | O5: 0.4242129216 | P5: 0.3884391518 | Q5: 0.355682175 | R5: 0.325687586 | S5: 0.2982224331 | T5: 0.2730734098 | U5: 0.2500451973 | V5: 0.2289589482 | W5: 0.2096508972 | X5: 0.1919710894 | Y5: 0.1757822153 | Z5: 0.160958545 | AA5: 0.1869609593 | AB5: 0.1711945882 | AC5: 0.1567577913 | AD5: 0.1435384459 | AE5: 0.1314338846 | AJ5: Return on Equity | AK5: =SUM(G5:AE5)/AF18 -> 0.8742155222
B6: Capital cost w/ non-DCR modules (INR Millions) | C6: =((C2*capital_cost_nonDCR)-(transmission_cost*(plant_capacity-1)))*10 -> 30.4076664 | F6: Depreciation (INR Millions) | G6: =IF(G$1<=$C$26,$C$6*$C$27,$C$6*$C$28) -> 1.420038021 | H6: =IF(H$1<=$C$26,$C$6*$C$27,$C$6*$C$28) -> 1.420038021 | I6: 1.420038021 | J6: 1.420038021 | K6: 1.420038021 | L6: 1.420038021 | M6: 1.420038021 | N6: 1.420038021 | O6: 1.420038021 | P6: 1.420038021 | Q6: 1.420038021 | R6: 1.420038021 | S6: 1.420038021 | T6: 1.420038021 | U6: 1.420038021 | V6: 0.608153328 | W6: 0.608153328 | X6: 0.608153328 | Y6: 0.608153328 | Z6: 0.608153328 | AA6: 0.608153328 | AB6: 0.608153328 | AC6: 0.608153328 | AD6: 0.608153328 | AE6: 0.608153328
B7: Component A - PBI type | C7: 1 | F7: Discounted per unit Depreciation (INR Millions) | G7: =G6*G18/LCOE_Actual_Generation -> 0.7876812289 | H7: 0.7212562674 | I7: 0.6604329064 | J7: 0.6047387642 | K7: 0.5537412951 | L7: 0.5070444299 | M7: 0.4642854997 | N7: 0.4251324194 | O7: 0.3892811085 | P7: 0.3564531298 | Q7: 0.3263935263 | R7: 0.2988688417 | S7: 0.2736653069 | T7: 0.2505871798 | U7: 0.2294552255 | V7: 0.08998086664 | W7: 0.08239280261 | X7: 0.07544463813 | Y7: 0.06908241062 | Z7: 0.06325670817 | AA7: 0.05792228576 | AB7: 0.05303771386 | AC7: 0.04856505668 | AD7: 0.04446957757 | AE7: 0.0407194692 | AJ7: Depreciation | AK7: =SUM(G7:AE7)/AF18 -> 0.7085912983
B8: Component C subsidy | C8: =CFA_capacity*10.5 -> 10.5 | F8: Interest on loan (INR Miilions) | G8: ='Interest rate & loan'!AI13 -> 2.312184967 | H8: ='Interest rate & loan'!AJ13 -> 2.243799658 | I8: ='Interest rate & loan'!AK13 -> 2.167500882 | J8: ='Interest rate & loan'!AL13 -> 2.082372899 | K8: ='Interest rate & loan'!AM13 -> 1.987394006 | L8: ='Interest rate & loan'!AN13 -> 1.881424265 | M8: ='Interest rate & loan'!AO13 -> 1.763191829 | N8: ='Interest rate & loan'!AP13 -> 1.631277674 | O8: ='Interest rate & loan'!AQ13 -> 1.484098566 | P8: ='Interest rate & loan'!AR13 -> 1.319888063 | Q8: ='Interest rate & loan'!AS13 -> 1.136675311 | R8: ='Interest rate & loan'!AT13 -> 0.9322613934 | S8: ='Interest rate & loan'!AU13 -> 0.7041929349 | T8: ='Interest rate & loan'!AV13 -> 0.4497326599 | U8: ='Interest rate & loan'!AW13 -> 0.1592538886 | V8: ='Interest rate & loan'!AX13 -> 0 | W8: ='Interest rate & loan'!AY13 -> 0 | X8: ='Interest rate & loan'!AZ13 -> 0 | Y8: ='Interest rate & loan'!BA13 -> 0 | Z8: ='Interest rate & loan'!BB13 -> 0 | AA8: ='Interest rate & loan'!BC13 -> 0 | AB8: ='Interest rate & loan'!BD13 -> 0 | AC8: ='Interest rate & loan'!BE13 -> 0 | AD8: ='Interest rate & loan'!BF13 -> 0 | AE8: ='Interest rate & loan'!BG13 -> 0
B9: Component C capital cost | C9: =$C$5-$C$8 -> 29.3562 | F9: Discounted per unit Interest on loan (INR Miilions) | G9: =G8*G18/LCOE_Actual_Generation -> 1.282546431 | H9: 1.1396558 | I9: 1.008063788 | J9: 0.8868013357 | K9: 0.7749807501 | L9: 0.6717888393 | M9: 0.5764806206 | N9: 0.4883735604 | O9: 0.4068423003 | P9: 0.3313138268 | Q9: 0.2612630491 | R9: 0.1962087484 | S9: 0.1357098703 | T9: 0.07936212782 | U9: 0.02573285813 | V9: 0 | W9: 0 | X9: 0 | Y9: 0 | Z9: 0 | AA9: 0 | AB9: 0 | AC9: 0 | AD9: 0 | AE9: 0 | AJ9: Interest on loan | AK9: =SUM(G9:AE9)/AF18 -> 0.7836074562
A10: Financial Assumptions | B10: Debt (%) | C10: 0.7 | F10: O&M expenses (INR Millions) | G10: =$C$31*((1+$C$32)^(G$1-1)) -> 0.7 | H10: 0.73675 | I10: 0.775429375 | J10: 0.8161394172 | K10: 0.8589867366 | L10: 0.9040835403 | M10: 0.9515479261 | N10: 1.001504192 | O10: 1.054083162 | P10: 1.109422528 | Q10: 1.167667211 | R10: 1.22896974 | S10: 1.293490651 | T10: 1.36139891 | U10: 1.432872353 | V10: 1.508098152 | W10: 1.587273304 | X10: 1.670605153 | Y10: 1.758311923 | Z10: 1.850623299 | AA10: 1.947781023 | AB10: 2.050039526 | AC10: 2.157666602 | AD10: 2.270944098 | AE10: 2.390168663
B11: Equity (%) | C11: 0.3 | F11: Discounted per unit O&M expenses (INR Millions) | G11: =G10*G18/LCOE_Actual_Generation -> 0.3882831671 | H11: 0.3742051602 | I11: 0.3606375803 | J11: 0.3475619211 | K11: 0.3349603469 | L11: 0.3228156687 | M11: 0.3111113209 | N11: 0.2998313383 | O11: 0.2889603348 | P11: 0.2784834819 | Q11: 0.268386489 | R11: 0.2586555833 | S11: 0.2492774917 | T11: 0.2402394221 | U11: 0.2315290464 | V11: 0.2231344834 | W11: 0.2150442825 | X11: 0.2072474085 | Y11: 0.1997332263 | Z11: 0.1924914863 | AA11: 0.1855123105 | AB11: 0.1787861791 | AC11: 0.1723039174 | AD11: 0.1660566835 | AE11: 0.160035956 | AJ11: O&M expenses | AK11: =SUM(G11:AE11)/AF18 -> 0.6120185197
A12: Debt Component | B12: Debt Amount - Component A (INR Millions) | C12: =$C$10*$C$6 -> 21.28536648 | F12: Interest on working capital (INR Millions) | G12: =((G$2/365*$C$33*$AF$20)+(G$10/12)+(G$10*$C$35))*$C$36 -> 0.1094825305 | H12: 0.1105544055 | I12: 0.1116825539 | J12: 0.1128699301 | K12: 0.1141196436 | L12: 0.1154349671 | M12: 0.116819345 | N12: 0.1182764027 | O12: 0.119809956 | P12: 0.1214240209 | Q12: 0.1231228241 | R12: 0.1249108145 | S12: 0.1267926745 | T12: 0.128773332 | U12: 0.1308579741 | V12: 0.1330520599 | W12: 0.1353613352 | X12: 0.1377918474 | Y12: 0.1403499616 | Z12: 0.1430423767 | AA12: 0.1458761436 | AB12: 0.1488586833 | AC12: 0.1519978063 | AD12: 0.1553017333 | AE12: 0.1587791165
B13: Debt Amount - Component C (INR Millions) | C13: =$C$10*$C$9 -> 20.54934 | F13: Discounted per unit Interest on working capital (INR Millions) | G13: =G12*G18/G4 -> 0.07074964897 | H13: =H12*H18/H4 -> 0.06541760199 | I13: 0.06051220904 | J13: 0.05599832426 | K13: 0.05184373542 | L13: 0.04801891759 | M13: 0.04449680758 | N13: 0.0412525974 | O13: 0.03826354502 | P13: 0.0355088011 | Q13: 0.0329692503 | R13: 0.03062736594 | S13: 0.02846707685 | T13: 0.02647364546 | U13: 0.02463355613 | V13: 0.02293441284 | W13: 0.02136484552 | X13: 0.01991442422 | Y13: 0.01857358055 | Z13: 0.01733353561 | AA13: 0.01275992234 | AB13: 0.01192276639 | AC13: 0.01114754632 | AD13: 0.01042935313 | AE13: 0.009763680389 | AJ13: Interest on working capital | AK13: =SUM(G13:AE13)/AF18 -> 0.07692578986
B14: Repayment period (Years) | C14: 15 | F14: Land lease (INR Millions) | G14: =$C$38*$C$37/1000000*((1+$C$39)^(G$1-1)) -> 0.135 | H14: 0.13905 | I14: 0.1432215 | J14: 0.147518145 | K14: 0.1519436893 | L14: 0.156502 | M14: 0.16119706 | N14: 0.1660329718 | O14: 0.171013961 | P14: 0.1761443798 | Q14: 0.1814287112 | R14: 0.1868715725 | S14: 0.1924777197 | T14: 0.1982520513 | U14: 0.2041996129 | V14: 0.2103256012 | W14: 0.2166353693 | X14: 0.2231344304 | Y14: 0.2298284633 | Z14: 0.2367233172 | AA14: 0.2438250167 | AB14: 0.2511397672 | AC14: 0.2586739602 | AD14: 0.266434179 | AE14: 0.2744272044 | AH14: =LCOE_no_subsidy*LCOE_Actual_Generation*25 -> 141.594931 | AI14: 25-year cost without HAM in A
B15: SBI MCLR Rate 6 month average | C15: =LOOKUP(2,1/(Monthly_data[Interest rate (6-month-average)]>0),Monthly_data[Interest rate (6-month-average)]) -> 0.09 | F15: Discounted per unit Land lease (INR Millions) | G15: =G14*G18/LCOE_Actual_Generation -> 0.07488318224 | H15: 0.07062535123 | I15: 0.06660961898 | J15: 0.06282221982 | K15: 0.05925017084 | L15: 0.05588122728 | M15: 0.05270384065 | N15: 0.04970711909 | O15: 0.04688079004 | P15: 0.04421516506 | Q15: 0.04170110656 | R15: 0.03932999653 | S15: 0.03709370697 | T15: 0.03498457204 | U15: 0.03299536176 | V15: 0.03111925727 | W15: 0.02934982742 | X15: 0.02768100671 | Y15: 0.02610707455 | Z15: 0.02462263561 | AA15: 0.02322260134 | AB15: 0.02190217252 | AC15: 0.02065682281 | AD15: 0.01948228324 | AE15: 0.01837452757 | AJ15: Land lease | AK15: =SUM(G15:AE15)/AF18 -> 0.09596574229
B16: AIF Selection | C16: 2 | F16: Total (INR Millions) | G16: =SUM(G4,G6,G8,G10,G12,G14) -> 6.224169457 | H16: 6.197656024 | I16: 6.16533627 | J16: 6.126402351 | K16: 6.079946035 | L16: 6.024946732 | M16: 5.96025812 | N16: 5.8845932 | O16: 5.796507605 | P16: 5.694380952 | Q16: 5.576396017 | R16: 5.44051548 | S16: 5.28445594 | T16: 5.105658913 | U16: 4.894685788 | V16: 4.00709308 | W16: 4.094887276 | X16: 4.187148698 | Y16: 4.284107615 | Z16: 4.38600626 | AA16: 4.908626579 | AB16: 5.021182373 | AC16: 5.139482764 | AD16: 5.263824406 | AE16: 5.39451938 | AK16: =SUM(AK5:AK15) -> 3.151324329
B17: Interest rate (%) [SBI MCLR + 200bp] (without AIF) | C17: =C15+2% -> 0.11 | F17: Total cost per unit (INR/kWh) | G17: =G16/G3 -> 3.452486042 | H17: 3.4377793 | I17: 3.419851848 | J17: 3.398255583 | K17: 3.372486718 | L17: 3.341979142 | M17: 3.306097 | N17: 3.264126408 | O17: 3.215266188 | P17: 3.15861753 | Q17: 3.093172438 | R17: 3.017800831 | S17: 2.931236127 | T17: 2.832059162 | U17: 2.715034429 | V17: 2.222695417 | W17: 2.271394001 | X17: 2.322570511 | Y17: 2.376352676 | Z17: 2.43287486 | AA17: 2.722767249 | AB17: 2.785200849 | AC17: 2.850820922 | AD17: 2.919792017 | AE17: 2.992287243
B18: Interest rate (%) [SBI MCLR - 100bp] (With AIF) | C18: =C17-3% -> 0.08 | F18: Discount factor | G18: =1/((1+$C$30)^(G$1-1)) -> 1 | H18: 0.9156702496 | I18: 0.8384520059 | J18: 0.7677455575 | K18: 0.7030017663 | L18: 0.6437178027 | M18: 0.5894332411 | N18: 0.539726483 | O18: 0.4942114834 | P18: 0.4525347523 | Q18: 0.4143726096 | R18: 0.3794286708 | S18: 0.3474315457 | T18: 0.3181327302 | U18: 0.2913046764 | V18: 0.2667390258 | W18: 0.2442449903 | X18: 0.2236478712 | Y18: 0.204787702 | Z18: 0.1875180062 | AA18: 0.1717046596 | AB18: 0.1572248485 | AC18: 0.1439661162 | AD18: 0.1318254896 | AE18: 0.1207086789 | AF18: =SUM(G18:AE18) -> 10.54753096
A19: Equity Component | B19: Equity Amount - Component A (INR Millions) | C19: =$C$6-$C$12 -> 9.12229992 | F19: Total cost per unit - discounted (INR/kWh) | G19: =G$17*G$18 -> 3.452486042 | H19: 3.147872229 | I19: 2.867381642 | J19: 2.608995627 | K19: 2.370864119 | L19: 2.15129147 | M19: 1.94872347 | N19: 1.761735466 | O19: 1.589021472 | P19: 1.429384201 | Q19: 1.281725935 | R19: 1.145040158 | S19: 1.018403898 | T19: 0.9009707131 | U19: 0.7909022257 | V19: 0.5928796101 | W19: 0.5547766057 | X19: 0.5194379505 | Y19: 0.4866478038 | Z19: 0.4562078431 | AA19: 0.4675118236 | AB19: 0.4379027815 | AC19: 0.4104216162 | AD19: 0.3849030121 | AE19: 0.3611950401 | AF19: =SUM(G19:AE19) -> 33.13668276
B20: Equity Amount - Component C (INR Millions) | C20: =$C$9-$C$13 -> 8.80686 | AF20: =AF19/AF18 -> 3.141653044
B21: Normative Return on Equity (%) | C21: =RoE -> 0.14
B22: Minimum Alternative Tax [MAT] (%) | C22: 0.1747
B23: Corporate Tax (%) | C23: 0.3494
B24: RoE for up to 20 years | C24: =C21/(1-C22) -> 0.1696352841
B25: RoE for 20+ years | C25: =C21/(1-C23) -> 0.2151859822 | E25: Component-A | F25: Year | G25: 1 | H25: 2 | I25: 3 | J25: 4 | K25: 5 | L25: 6 | M25: 7 | N25: 8 | O25: 9 | P25: 10 | Q25: 11 | R25: 12 | S25: 13 | T25: 14 | U25: 15 | V25: 16 | W25: 17 | X25: 18 | Y25: 19 | Z25: 20 | AA25: 21 | AB25: 22 | AC25: 23 | AD25: 24 | AE25: 25
A26: Depreciation | B26: Depreciation first differential period | C26: 15 | F26: Potential Generation (MWh) | G26: =$C$2*8760*$C$3/1000 -> 1.8396 | H26: =$C$2*8760*$C$3/1000 -> 1.8396 | I26: 1.8396 | J26: 1.8396 | K26: 1.8396 | L26: 1.8396 | M26: 1.8396 | N26: 1.8396 | O26: 1.8396 | P26: 1.8396 | Q26: 1.8396 | R26: 1.8396 | S26: 1.8396 | T26: 1.8396 | U26: 1.8396 | V26: 1.8396 | W26: 1.8396 | X26: 1.8396 | Y26: 1.8396 | Z26: 1.8396 | AA26: 1.8396 | AB26: 1.8396 | AC26: 1.8396 | AD26: 1.8396 | AE26: 1.8396
B27: Depreciation rate in the first period (%) | C27: 0.0467 | F27: Actual Generation (MWh) | G27: =G26*(1-$C$4) -> 1.802808 | H27: =H26*(1-$C$4) -> 1.802808 | I27: 1.802808 | J27: 1.802808 | K27: 1.802808 | L27: 1.802808 | M27: 1.802808 | N27: 1.802808 | O27: 1.802808 | P27: 1.802808 | Q27: 1.802808 | R27: 1.802808 | S27: 1.802808 | T27: 1.802808 | U27: 1.802808 | V27: 1.802808 | W27: 1.802808 | X27: 1.802808 | Y27: 1.802808 | Z27: 1.802808 | AA27: 1.802808 | AB27: 1.802808 | AC27: 1.802808 | AD27: 1.802808 | AE27: 1.802808 | AF27: Nominal
B28: Depreciation rate in remaining years | C28: 0.02 | F28: Return on Equity (INR Millions) | G28: =IF(G$25<=20,$C$19*$C$24,$C$19*$C$25) -> 1.547463939 | H28: 1.547463939 | I28: 1.547463939 | J28: 1.547463939 | K28: 1.547463939 | L28: 1.547463939 | M28: 1.547463939 | N28: 1.547463939 | O28: 1.547463939 | P28: 1.547463939 | Q28: 1.547463939 | R28: 1.547463939 | S28: 1.547463939 | T28: 1.547463939 | U28: 1.547463939 | V28: 1.547463939 | W28: 1.547463939 | X28: 1.547463939 | Y28: 1.547463939 | Z28: 1.547463939 | AA28: 1.962991068 | AB28: 1.962991068 | AC28: 1.962991068 | AD28: 1.962991068 | AE28: 1.962991068 | AJ28: Tariff head | AK28: Contri per cost head
B29: Residual value | C29: 0.1 | F29: Discounted per unit Return on Equity (INR Millions) | G29: =G28*G45/G27 -> 0.8583631418 | H29: =H28*H45/H27 -> 0.7859775923 | I29: 0.7196962981 | J29: 0.6590044889 | K29: 0.6034308048 | L29: 0.5525436356 | M29: 0.5059477687 | N29: 0.4632813196 | O29: 0.4242129216 | P29: 0.3884391518 | Q29: 0.355682175 | R29: 0.325687586 | S29: 0.2982224331 | T29: 0.2730734098 | U29: 0.2500451973 | V29: 0.2289589482 | W29: 0.2096508972 | X29: 0.1919710894 | Y29: 0.1757822153 | Z29: 0.160958545 | AA29: 0.1869609593 | AB29: 0.1711945882 | AC29: 0.1567577913 | AD29: 0.1435384459 | AE29: 0.1314338846 | AJ29: Return on Equity | AK29: =SUM(G29:AE29)/$AF$45 -> 0.8742155222
B30: Discount rate | C30: =((C17*C10)*(1-C23))+(C21*C11) -> 0.0920962 | F30: Depreciation (INR Millions) | G30: =IF(G$25<=$C$26,$C$6*$C$27,$C$6*$C$28) -> 1.420038021 | H30: 1.420038021 | I30: 1.420038021 | J30: 1.420038021 | K30: 1.420038021 | L30: 1.420038021 | M30: 1.420038021 | N30: 1.420038021 | O30: 1.420038021 | P30: 1.420038021 | Q30: 1.420038021 | R30: 1.420038021 | S30: 1.420038021 | T30: 1.420038021 | U30: 1.420038021 | V30: 0.608153328 | W30: 0.608153328 | X30: 0.608153328 | Y30: 0.608153328 | Z30: 0.608153328 | AA30: 0.608153328 | AB30: 0.608153328 | AC30: 0.608153328 | AD30: 0.608153328 | AE30: 0.608153328
A31: O&M | B31: O&M expenses (INR MIllion/year) | C31: =OnM/10*C2 -> 0.7 | F31: Discounted per unit Depreciation (INR Millions) | G31: =G30*G45/G27 -> 0.7876812289 | H31: =H30*H45/H27 -> 0.7212562674 | I31: 0.6604329064 | J31: 0.6047387642 | K31: 0.5537412951 | L31: 0.5070444299 | M31: 0.4642854997 | N31: 0.4251324194 | O31: 0.3892811085 | P31: 0.3564531298 | Q31: 0.3263935263 | R31: 0.2988688417 | S31: 0.2736653069 | T31: 0.2505871798 | U31: 0.2294552255 | V31: 0.08998086664 | W31: 0.08239280261 | X31: 0.07544463813 | Y31: 0.06908241062 | Z31: 0.06325670817 | AA31: 0.05792228576 | AB31: 0.05303771386 | AC31: 0.04856505668 | AD31: 0.04446957757 | AE31: 0.0407194692 | AJ31: Depreciation | AK31: =SUM(G31:AE31)/$AF$45 -> 0.7085912983
B32: O&M escalation | C32: 0.0525 | F32: Interest on loan (INR Miilions) | G32: ='Interest rate & loan'!AI$3 -> 2.312184967 | H32: ='Interest rate & loan'!AJ$3 -> 2.243799658 | I32: ='Interest rate & loan'!AK$3 -> 2.167500882 | J32: ='Interest rate & loan'!AL$3 -> 2.082372899 | K32: ='Interest rate & loan'!AM$3 -> 1.987394006 | L32: ='Interest rate & loan'!AN$3 -> 1.881424265 | M32: ='Interest rate & loan'!AO$3 -> 1.763191829 | N32: ='Interest rate & loan'!AP$3 -> 1.631277674 | O32: ='Interest rate & loan'!AQ$3 -> 1.484098566 | P32: ='Interest rate & loan'!AR$3 -> 1.319888063 | Q32: ='Interest rate & loan'!AS$3 -> 1.136675311 | R32: ='Interest rate & loan'!AT$3 -> 0.9322613934 | S32: ='Interest rate & loan'!AU$3 -> 0.7041929349 | T32: ='Interest rate & loan'!AV$3 -> 0.4497326599 | U32: ='Interest rate & loan'!AW$3 -> 0.1592538886 | V32: ='Interest rate & loan'!AX$3 -> 0 | W32: ='Interest rate & loan'!AY$3 -> 0 | X32: ='Interest rate & loan'!AZ$3 -> 0 | Y32: ='Interest rate & loan'!BA$3 -> 0 | Z32: ='Interest rate & loan'!BB$3 -> 0 | AA32: ='Interest rate & loan'!BC$3 -> 0 | AB32: ='Interest rate & loan'!BD$3 -> 0 | AC32: ='Interest rate & loan'!BE$3 -> 0 | AD32: ='Interest rate & loan'!BF$3 -> 0 | AE32: ='Interest rate & loan'!BG$3 -> 0
A33: Working Capital | B33: Receivables (days) | C33: 45 | F33: Discounted per unit Interest on loan (INR Miilions) | G33: =G32*G45/G27 -> 1.282546431 | H33: =H32*H45/H27 -> 1.1396558 | I33: 1.008063788 | J33: 0.8868013357 | K33: 0.7749807501 | L33: 0.6717888393 | M33: 0.5764806206 | N33: 0.4883735604 | O33: 0.4068423003 | P33: 0.3313138268 | Q33: 0.2612630491 | R33: 0.1962087484 | S33: 0.1357098703 | T33: 0.07936212782 | U33: 0.02573285813 | V33: 0 | W33: 0 | X33: 0 | Y33: 0 | Z33: 0 | AA33: 0 | AB33: 0 | AC33: 0 | AD33: 0 | AE33: 0 | AJ33: Interest on loan | AK33: =SUM(G33:AE33)/$AF$45 -> 0.7836074562
B34: O&M working capital (months) | C34: 1 | F34: O&M expenses (INR Millions) | G34: =$C$31*((1+$C$32)^(G$25-1)) -> 0.7 | H34: 0.73675 | I34: 0.775429375 | J34: 0.8161394172 | K34: 0.8589867366 | L34: 0.9040835403 | M34: 0.9515479261 | N34: 1.001504192 | O34: 1.054083162 | P34: 1.109422528 | Q34: 1.167667211 | R34: 1.22896974 | S34: 1.293490651 | T34: 1.36139891 | U34: 1.432872353 | V34: 1.508098152 | W34: 1.587273304 | X34: 1.670605153 | Y34: 1.758311923 | Z34: 1.850623299 | AA34: 1.947781023 | AB34: 2.050039526 | AC34: 2.157666602 | AD34: 2.270944098 | AE34: 2.390168663 | AH34: =(LCOE_Component_A*G27*25)+(Annuity_A*C44) -> 156.4410541 | AI34: 25-year cost with HAM in A
B35: Spares (% of O&M expense) | C35: 0.15 | F35: Discounted per unit O&M expenses (INR Millions) | G35: =G34*G45/G27 -> 0.3882831671 | H35: =H34*H45/H27 -> 0.3742051602 | I35: 0.3606375803 | J35: 0.3475619211 | K35: 0.3349603469 | L35: 0.3228156687 | M35: 0.3111113209 | N35: 0.2998313383 | O35: 0.2889603348 | P35: 0.2784834819 | Q35: 0.268386489 | R35: 0.2586555833 | S35: 0.2492774917 | T35: 0.2402394221 | U35: 0.2315290464 | V35: 0.2231344834 | W35: 0.2150442825 | X35: 0.2072474085 | Y35: 0.1997332263 | Z35: 0.1924914863 | AA35: 0.1855123105 | AB35: 0.1787861791 | AC35: 0.1723039174 | AD35: 0.1660566835 | AE35: 0.160035956 | AJ35: O&M expenses | AK35: =SUM(G35:AE35)/$AF$45 -> 0.6120185197
B36: Interest rate (%) [SBI MCLR + 350bp] | C36: =$C$15+3.5% -> 0.125 | F36: Interest on working capital (INR Millions) | G36: =((G$26/365*$C$33*$AF$47)+(G$34/12)+(G$34*$C$35))*$C$36 -> 0.1094825305 | H36: 0.1105544055 | I36: 0.1116825539 | J36: 0.1128699301 | K36: 0.1141196436 | L36: 0.1154349671 | M36: 0.116819345 | N36: 0.1182764027 | O36: 0.119809956 | P36: 0.1214240209 | Q36: 0.1231228241 | R36: 0.1249108145 | S36: 0.1267926745 | T36: 0.128773332 | U36: 0.1308579741 | V36: 0.1330520599 | W36: 0.1353613352 | X36: 0.1377918474 | Y36: 0.1403499616 | Z36: 0.1430423767 | AA36: 0.1458761436 | AB36: 0.1488586833 | AC36: 0.1519978063 | AD36: 0.1553017333 | AE36: 0.1587791165
A37: Land lease rate | B37: Area required (acre) | C37: =4.5*$C$2 -> 4.5 | F37: Discounted per unit Interest on working capital (INR Millions) | G37: =G36*G45/G27 -> 0.06072889097 | H37: =H36*H45/H27 -> 0.05615205837 | I37: 0.05194144987 | J37: 0.04806689755 | K37: 0.04450075162 | L37: 0.04121766897 | M37: 0.03819441956 | N37: 0.03540970911 | O37: 0.03284401672 | P37: 0.03047944607 | Q37: 0.02829958927 | R37: 0.02628940205 | S37: 0.02443508952 | T37: 0.02272400149 | U37: 0.02114453663 | V37: 0.01968605466 | W37: 0.01833879592 | X37: 0.01709380774 | Y37: 0.01594287695 | Z37: 0.01487846808 | AA37: 0.01389366676 | AB37: 0.01298212784 | AC37: 0.01213802793 | AD37: 0.01135602184 | AE37: 0.01063120277 | AJ37: Interest on working capital | AK37: =SUM(G37:AE37)/$AF$45 -> 0.06725450542
B38: Land lease rate (INR/acre) | C38: =LandRent -> 30000 | F38: Land lease (INR Millions) | G38: =$C$38*$C$37/1000000*((1+$C$39)^(G$25-1)) -> 0.135 | H38: 0.13905 | I38: 0.1432215 | J38: 0.147518145 | K38: 0.1519436893 | L38: 0.156502 | M38: 0.16119706 | N38: 0.1660329718 | O38: 0.171013961 | P38: 0.1761443798 | Q38: 0.1814287112 | R38: 0.1868715725 | S38: 0.1924777197 | T38: 0.1982520513 | U38: 0.2041996129 | V38: 0.2103256012 | W38: 0.2166353693 | X38: 0.2231344304 | Y38: 0.2298284633 | Z38: 0.2367233172 | AA38: 0.2438250167 | AB38: 0.2511397672 | AC38: 0.2586739602 | AD38: 0.266434179 | AE38: 0.2744272044
B39: Land lease yearly escalation | C39: =RentEscln -> 0.03 | F39: Discounted per unit Land lease (INR Millions) | G39: =G38*G45/G27 -> 0.07488318224 | H39: =H38*H45/H27 -> 0.07062535123 | I39: 0.06660961898 | J39: 0.06282221982 | K39: 0.05925017084 | L39: 0.05588122728 | M39: 0.05270384065 | N39: 0.04970711909 | O39: 0.04688079004 | P39: 0.04421516506 | Q39: 0.04170110656 | R39: 0.03932999653 | S39: 0.03709370697 | T39: 0.03498457204 | U39: 0.03299536176 | V39: 0.03111925727 | W39: 0.02934982742 | X39: 0.02768100671 | Y39: 0.02610707455 | Z39: 0.02462263561 | AA39: 0.02322260134 | AB39: 0.02190217252 | AC39: 0.02065682281 | AD39: 0.01948228324 | AE39: 0.01837452757 | AJ39: Land lease | AK39: =SUM(G39:AE39)/$AF$45 -> 0.09596574229
A40: Annuity | B40: HAM currently being considered | C40: No | F40: Performance Based Incentive (INR Millions) | G40: =MIN(IF(G$25<=5,IF($C$7=3,G$27*0.4,0),0),0.66) -> 0 | H40: =MIN(IF(H$25<=5,IF($C$7=3,H$27*0.4,0),0),0.66) -> 0 | I40: 0 | J40: 0 | K40: 0 | L40: 0 | M40: 0 | N40: 0 | O40: 0 | P40: 0 | Q40: 0 | R40: 0 | S40: 0 | T40: 0 | U40: 0 | V40: 0 | W40: 0 | X40: 0 | Y40: 0 | Z40: 0 | AA40: 0 | AB40: 0 | AC40: 0 | AD40: 0 | AE40: 0 | AF40: =SUM(G40:AE40) -> 0
B41: State government subsidy (Annuity) (%) | C41: =Annuity_Percentage_User -> 0.3 | F41: Discounted per unit Performance Based Incentive (INR Millions) | G41: =G40*G45/G27 -> 0 | H41: =H40*H45/H27 -> 0 | I41: 0 | J41: 0 | K41: 0 | L41: 0 | M41: 0 | N41: 0 | O41: 0 | P41: 0 | Q41: 0 | R41: 0 | S41: 0 | T41: 0 | U41: 0 | V41: 0 | W41: 0 | X41: 0 | Y41: 0 | Z41: 0 | AA41: 0 | AB41: 0 | AC41: 0 | AD41: 0 | AE41: 0 | AJ41: PBI | AK41: =-SUM(G41:AE41)/$AF$45 -> 0
B42: Total State Subsidy (Component A) (INR millions) | C42: =CapitalCost_nonDCR_sens*$C$41 -> 9.12229992 | F42: Total (INR Millions) | G42: =SUM(G28,G30,G32,G34,G36,G38)-G40 -> 6.224169457 | H42: =SUM(H28,H30,H32,H34,H36,H38)-H40 -> 6.197656024 | I42: 6.16533627 | J42: 6.126402351 | K42: 6.079946035 | L42: 6.024946732 | M42: 5.96025812 | N42: 5.8845932 | O42: 5.796507605 | P42: 5.694380952 | Q42: 5.576396017 | R42: 5.44051548 | S42: 5.28445594 | T42: 5.105658913 | U42: 4.894685788 | V42: 4.00709308 | W42: 4.094887276 | X42: 4.187148698 | Y42: 4.284107615 | Z42: 4.38600626 | AA42: 4.908626579 | AB42: 5.021182373 | AC42: 5.139482764 | AD42: 5.263824406 | AE42: 5.39451938 | AF42: 0
B43: Total State Subsidy (Component C) (INR millions) | C43: =CapitalCost_DCR_sens*$C$41 -> 11.95686 | F43: Annuity Payments (INR millions) | G43: =IF(G25<=$C$44,IF($C$40="Yes",$C$46,0)) -> 0 | H43: 0 | I43: 0 | J43: 0 | K43: 0 | L43: 0 | M43: 0 | N43: 0 | O43: 0 | P43: 0 | Q43: =IF(Q25<=$C$44,IF($C$40="Yes",$C$46,0),0) -> 0 | R43: 0 | S43: 0 | T43: 0 | U43: 0 | V43: 0 | W43: 0 | X43: 0 | Y43: 0 | Z43: 0 | AA43: 0 | AB43: 0 | AC43: 0 | AD43: 0 | AE43: 0
B44: Annuity Period (years) | C44: =Annuity_Years_User -> 10 | F44: Total cost per unit (INR/kWh) | G44: =(G42-G43)/G27 -> 3.452486042 | H44: 3.4377793 | I44: 3.419851848 | J44: 3.398255583 | K44: 3.372486718 | L44: 3.341979142 | M44: 3.306097 | N44: 3.264126408 | O44: 3.215266188 | P44: 3.15861753 | Q44: 3.093172438 | R44: 3.017800831 | S44: 2.931236127 | T44: 2.832059162 | U44: 2.715034429 | V44: 2.222695417 | W44: 2.271394001 | X44: 2.322570511 | Y44: 2.376352676 | Z44: 2.43287486 | AA44: 2.722767249 | AB44: 2.785200849 | AC44: 2.850820922 | AD44: 2.919792017 | AE44: 2.992287243
B45: Annuity Interest | C45: =Annuity_Interest_User -> 0.1 | F45: Discount factor | G45: =1/((1+$C$30)^(G$25-1)) -> 1 | H45: 0.9156702496 | I45: 0.8384520059 | J45: 0.7677455575 | K45: 0.7030017663 | L45: 0.6437178027 | M45: 0.5894332411 | N45: 0.539726483 | O45: 0.4942114834 | P45: 0.4525347523 | Q45: 0.4143726096 | R45: 0.3794286708 | S45: 0.3474315457 | T45: 0.3181327302 | U45: 0.2913046764 | V45: 0.2667390258 | W45: 0.2442449903 | X45: 0.2236478712 | Y45: 0.204787702 | Z45: 0.1875180062 | AA45: 0.1717046596 | AB45: 0.1572248485 | AC45: 0.1439661162 | AD45: 0.1318254896 | AE45: 0.1207086789 | AF45: =SUM(G45:AE45) -> 10.54753096
B46: Annuity (KUSUM A) (INR Millions) | C46: =PMT(C45,C44,-C42) -> 1.484612303 | F46: Total cost per unit - discounted (INR/kWh) | G46: =G$44*G$45 -> 3.452486042 | H46: 3.147872229 | I46: 2.867381642 | J46: 2.608995627 | K46: 2.370864119 | L46: 2.15129147 | M46: 1.94872347 | N46: 1.761735466 | O46: 1.589021472 | P46: 1.429384201 | Q46: 1.281725935 | R46: 1.145040158 | S46: 1.018403898 | T46: 0.9009707131 | U46: 0.7909022257 | V46: 0.5928796101 | W46: 0.5547766057 | X46: 0.5194379505 | Y46: 0.4866478038 | Z46: 0.4562078431 | AA46: 0.4675118236 | AB46: 0.4379027815 | AC46: 0.4104216162 | AD46: 0.3849030121 | AE46: 0.3611950401 | AF46: =SUM(G46:AE46) -> 33.13668276
B47: Annuity (KUSUM C) (INR Millions) | C47: =PMT(C45,C44,-C43) -> 1.945923902 | AF47: =AF46/AF45 -> 3.141653044
E50: Component-C (FLS) | F50: Year | G50: 1 | H50: 2 | I50: 3 | J50: 4 | K50: 5 | L50: 6 | M50: 7 | N50: 8 | O50: 9 | P50: 10 | Q50: 11 | R50: 12 | S50: 13 | T50: 14 | U50: 15 | V50: 16 | W50: 17 | X50: 18 | Y50: 19 | Z50: 20 | AA50: 21 | AB50: 22 | AC50: 23 | AD50: 24 | AE50: 25
B51: Changes with location | F51: Potential Generation (MWh) | G51: =$C$2*8760*$C$3/1000 -> 1.8396 | H51: =$C$2*8760*$C$3/1000 -> 1.8396 | I51: 1.8396 | J51: 1.8396 | K51: 1.8396 | L51: 1.8396 | M51: 1.8396 | N51: 1.8396 | O51: 1.8396 | P51: 1.8396 | Q51: 1.8396 | R51: 1.8396 | S51: 1.8396 | T51: 1.8396 | U51: 1.8396 | V51: 1.8396 | W51: 1.8396 | X51: 1.8396 | Y51: 1.8396 | Z51: 1.8396 | AA51: 1.8396 | AB51: 1.8396 | AC51: 1.8396 | AD51: 1.8396 | AE51: 1.8396
B52: Changes with time | F52: Actual Generation (MWh) | G52: =G51*(1-$C$4) -> 1.802808 | H52: =H51*(1-$C$4) -> 1.802808 | I52: 1.802808 | J52: 1.802808 | K52: 1.802808 | L52: 1.802808 | M52: 1.802808 | N52: 1.802808 | O52: 1.802808 | P52: 1.802808 | Q52: 1.802808 | R52: 1.802808 | S52: 1.802808 | T52: 1.802808 | U52: 1.802808 | V52: 1.802808 | W52: 1.802808 | X52: 1.802808 | Y52: 1.802808 | Z52: 1.802808 | AA52: 1.802808 | AB52: 1.802808 | AC52: 1.802808 | AD52: 1.802808 | AE52: 1.802808 | AF52: Nominal
F53: Return on Equity (INR Millions) | G53: =IF(G$50<=20,$C$20*$C$24,$C$20*$C$25) -> 1.493954198 | H53: 1.493954198 | I53: 1.493954198 | J53: 1.493954198 | K53: 1.493954198 | L53: 1.493954198 | M53: 1.493954198 | N53: 1.493954198 | O53: 1.493954198 | P53: 1.493954198 | Q53: 1.493954198 | R53: 1.493954198 | S53: 1.493954198 | T53: 1.493954198 | U53: 1.493954198 | V53: 1.493954198 | W53: 1.493954198 | X53: 1.493954198 | Y53: 1.493954198 | Z53: 1.493954198 | AA53: 1.895112819 | AB53: 1.895112819 | AC53: 1.895112819 | AD53: 1.895112819 | AE53: 1.895112819 | AJ53: Tariff head | AK53: Contri per cost head
F54: Discounted per unit Return on Equity (INR Millions) | G54: =G53*G68/G52 -> 0.8286818111 | H54: =H53*H68/H52 -> 0.7587992808 | I54: 0.6948099268 | J54: 0.6362167791 | K54: 0.5825647769 | L54: 0.5334372346 | M54: 0.4884526057 | N54: 0.4472615194 | O54: 0.4095440671 | P54: 0.3750073181 | Q54: 0.3433830446 | R54: 0.3144256381 | S54: 0.2879102025 | T54: 0.263630807 | U54: 0.2413988868 | V54: 0.2210417789 | W54: 0.2024013809 | X54: 0.185332923 | Y54: 0.1697038438 | Z54: 0.155392761 | AA54: 0.1804960381 | AB54: 0.1652748522 | AC54: 0.1513372652 | AD54: 0.1385750314 | AE54: 0.1268890336 | AJ54: Return on Equity | AK54: =SUM(G54:AE54)/$AF$68 -> 0.8439860322
F55: Depreciation (INR Millions) | G55: =IF(G$50<=$C$26,$C$9*$C$27,$C$9*$C$28) -> 1.37093454 | H55: 1.37093454 | I55: 1.37093454 | J55: 1.37093454 | K55: 1.37093454 | L55: 1.37093454 | M55: 1.37093454 | N55: 1.37093454 | O55: 1.37093454 | P55: 1.37093454 | Q55: 1.37093454 | R55: 1.37093454 | S55: 1.37093454 | T55: 1.37093454 | U55: 1.37093454 | V55: 0.587124 | W55: 0.587124 | X55: 0.587124 | Y55: 0.587124 | Z55: 0.587124 | AA55: 0.587124 | AB55: 0.587124 | AC55: 0.587124 | AD55: 0.587124 | AE55: 0.587124
F56: Discounted per unit Depreciation (INR Millions) | G56: =G55*G68/G52 -> 0.7604440073 | H56: =H55*H68/H52 -> 0.696315954 | I56: 0.6375958034 | J56: 0.5838275084 | K56: 0.5345934803 | L56: 0.4895113455 | M56: 0.4482309759 | N56: 0.4104317696 | O56: 0.3758201609 | P56: 0.3441273405 | Q56: 0.3151071678 | R56: 0.2885342589 | S56: 0.2642022369 | T56: 0.2419221282 | U56: 0.2215208955 | V56: 0.08686941913 | W56: 0.07954374269 | X56: 0.07283583872 | Y56: 0.06669361062 | Z56: 0.06106935508 | AA56: 0.05591939161 | AB56: 0.05120372327 | AC56: 0.04688572606 | AD56: 0.04293186448 | AE56: 0.03931143107 | AJ56: Depreciation | AK56: =SUM(G56:AE56)/$AF$68 -> 0.6840889267
F57: Interest on loan (INR Miilions) | G57: ='Interest rate & loan'!AI$8 -> 2.232231946 | H57: ='Interest rate & loan'!AJ$8 -> 2.166211332 | I57: ='Interest rate & loan'!AK$8 -> 2.09255089 | J57: ='Interest rate & loan'!AL$8 -> 2.010366547 | K57: ='Interest rate & loan'!AM$8 -> 1.918671928 | L57: ='Interest rate & loan'!AN$8 -> 1.816366514 | M57: ='Interest rate & loan'!AO$8 -> 1.702222436 | N57: ='Interest rate & loan'!AP$8 -> 1.574869739 | O57: ='Interest rate & loan'!AQ$8 -> 1.432779936 | P57: ='Interest rate & loan'!AR$8 -> 1.274247666 | Q57: ='Interest rate & loan'!AS$8 -> 1.097370227 | R57: ='Interest rate & loan'!AT$8 -> 0.9000247358 | S57: ='Interest rate & loan'!AU$8 -> 0.6798426543 | T57: ='Interest rate & loan'!AV$8 -> 0.4341813586 | U57: ='Interest rate & loan'!AW$8 -> 0.15374705 | V57: ='Interest rate & loan'!AX$8 -> 0 | W57: ='Interest rate & loan'!AY$8 -> 0 | X57: ='Interest rate & loan'!AZ$8 -> 0 | Y57: ='Interest rate & loan'!BA$8 -> 0 | Z57: ='Interest rate & loan'!BB$8 -> 0 | AA57: ='Interest rate & loan'!BC$8 -> 0 | AB57: ='Interest rate & loan'!BD$8 -> 0 | AC57: ='Interest rate & loan'!BE$8 -> 0 | AD57: ='Interest rate & loan'!BF$8 -> 0 | AE57: ='Interest rate & loan'!BG$8 -> 0
F58: Discounted per unit Interest on loan (INR Miilions) | G58: =G57*G68/G52 -> 1.238197271 | H58: =H57*H68/H52 -> 1.100247653 | I58: 0.9732059604 | J58: 0.8561366409 | K58: 0.7481826983 | L58: 0.6485590596 | M58: 0.5565465028 | N58: 0.4714860958 | O58: 0.3927741043 | P58: 0.3198573292 | Q58: 0.2522288366 | R58: 0.189424048 | S58: 0.13101716 | T58: 0.07661786557 | U58: 0.02484304188 | V58: 0 | W58: 0 | X58: 0 | Y58: 0 | Z58: 0 | AA58: 0 | AB58: 0 | AC58: 0 | AD58: 0 | AE58: 0 | AJ58: Interest on loan | AK58: =SUM(G58:AE58)/$AF$68 -> 0.7565111016
F59: O&M expenses (INR Millions) | G59: =$C$31*((1+$C$32)^(G$50-1)) -> 0.7 | H59: 0.73675 | I59: 0.775429375 | J59: 0.8161394172 | K59: 0.8589867366 | L59: 0.9040835403 | M59: 0.9515479261 | N59: 1.001504192 | O59: 1.054083162 | P59: 1.109422528 | Q59: 1.167667211 | R59: 1.22896974 | S59: 1.293490651 | T59: 1.36139891 | U59: 1.432872353 | V59: 1.508098152 | W59: 1.587273304 | X59: 1.670605153 | Y59: 1.758311923 | Z59: 1.850623299 | AA59: 1.947781023 | AB59: 2.050039526 | AC59: 2.157666602 | AD59: 2.270944098 | AE59: 2.390168663
F60: Discounted per unit O&M expenses (INR Millions) | G60: =G59*G68/G52 -> 0.3882831671 | H60: =H59*H68/H52 -> 0.3742051602 | I60: 0.3606375803 | J60: 0.3475619211 | K60: 0.3349603469 | L60: 0.3228156687 | M60: 0.3111113209 | N60: 0.2998313383 | O60: 0.2889603348 | P60: 0.2784834819 | Q60: 0.268386489 | R60: 0.2586555833 | S60: 0.2492774917 | T60: 0.2402394221 | U60: 0.2315290464 | V60: 0.2231344834 | W60: 0.2150442825 | X60: 0.2072474085 | Y60: 0.1997332263 | Z60: 0.1924914863 | AA60: 0.1855123105 | AB60: 0.1787861791 | AC60: 0.1723039174 | AD60: 0.1660566835 | AE60: 0.160035956 | AJ60: O&M expenses | AK60: =SUM(G60:AE60)/$AF$68 -> 0.6120185197
F61: Interest on working capital (INR Millions) | G61: =((G$51/365*$C$33*$AF$70)+(G$59/12)+(G$59*$C$35))*$C$36 -> 0.1071256373 | H61: 0.1081975123 | I61: 0.1093256607 | J61: 0.110513037 | K61: 0.1117627504 | L61: 0.1130780739 | M61: 0.1144624518 | N61: 0.1159195096 | O61: 0.1174530629 | P61: 0.1190671277 | Q61: 0.1207659309 | R61: 0.1225539214 | S61: 0.1244357813 | T61: 0.1264164388 | U61: 0.1285010809 | V61: 0.1306951667 | W61: 0.133004442 | X61: 0.1354349542 | Y61: 0.1379930684 | Z61: 0.1406854835 | AA61: 0.1435192504 | AB61: 0.1465017901 | AC61: 0.1496409132 | AD61: 0.1529448401 | AE61: 0.1564222233
F62: Discounted per unit Interest on working capital (INR Millions) | G62: =G61*G68/G52 -> 0.05942154533 | H62: =H61*H68/H52 -> 0.05495496086 | I62: 0.05084530329 | J62: 0.04706318874 | K62: 0.04358168533 | L62: 0.0403761073 | M62: 0.03742382658 | N62: 0.03470410005 | O62: 0.03219791149 | P62: 0.02988782673 | Q62: 0.02775786104 | R62: 0.02579335763 | S62: 0.0239808764 | T62: 0.02230809206 | U62: 0.02076370074 | V62: 0.01933733456 | W62: 0.0180194833 | X62: 0.01680142267 | Y62: 0.01567514864 | Z62: 0.01463331723 | AA62: 0.01366918942 | AB62: 0.01277658062 | AC62: 0.01194981446 | AD62: 0.01118368037 | AE62: 0.0104733948 | AJ62: Interest on working capital | AK62: =SUM(G62:AE62)/$AF$68 -> 0.06594715978
F63: Land lease (INR Millions) | G63: =$C$38*$C$37/1000000*((1+$C$39)^(G$50-1)) -> 0.135 | H63: 0.13905 | I63: 0.1432215 | J63: 0.147518145 | K63: 0.1519436893 | L63: 0.156502 | M63: 0.16119706 | N63: 0.1660329718 | O63: 0.171013961 | P63: 0.1761443798 | Q63: 0.1814287112 | R63: 0.1868715725 | S63: 0.1924777197 | T63: 0.1982520513 | U63: 0.2041996129 | V63: 0.2103256012 | W63: 0.2166353693 | X63: 0.2231344304 | Y63: 0.2298284633 | Z63: 0.2367233172 | AA63: 0.2438250167 | AB63: 0.2511397672 | AC63: 0.2586739602 | AD63: 0.266434179 | AE63: 0.2744272044
F64: Discounted per unit Land lease (INR Millions) | G64: =G63*G68/G52 -> 0.07488318224 | H64: =H63*H68/H52 -> 0.07062535123 | I64: 0.06660961898 | J64: 0.06282221982 | K64: 0.05925017084 | L64: 0.05588122728 | M64: 0.05270384065 | N64: 0.04970711909 | O64: 0.04688079004 | P64: 0.04421516506 | Q64: 0.04170110656 | R64: 0.03932999653 | S64: 0.03709370697 | T64: 0.03498457204 | U64: 0.03299536176 | V64: 0.03111925727 | W64: 0.02934982742 | X64: 0.02768100671 | Y64: 0.02610707455 | Z64: 0.02462263561 | AA64: 0.02322260134 | AB64: 0.02190217252 | AC64: 0.02065682281 | AD64: 0.01948228324 | AE64: 0.01837452757 | AJ64: Land lease | AK64: =SUM(G64:AE64)/$AF$68 -> 0.09596574229
F65: Total (INR Millions) | G65: =SUM(G53,G55,G57,G59,G61,G63) -> 6.039246321 | H65: =SUM(H53,H55,H57,H59,H61,H63) -> 6.015097583 | I65: 5.985416164 | J65: 5.949425885 | K65: 5.906253842 | L65: 5.854918866 | M65: 5.794318613 | N65: 5.723215151 | O65: 5.640218861 | P65: 5.543770441 | Q65: 5.432120818 | R65: 5.303308708 | S65: 5.155135545 | T65: 4.985137497 | U65: 4.784208835 | V65: 3.930197118 | W65: 4.017991314 | X65: 4.110252736 | Y65: 4.207211654 | Z65: 4.309110299 | AA65: 4.817362109 | AB65: 4.929917903 | AC65: 5.048218294 | AD65: 5.172559936 | AE65: 5.30325491
F66: Annuity Payments (INR millions) | G66: =IF(G50<=$C$44,IF($C$40="Yes",$C$47,0),0) -> 0 | H66: 0 | I66: 0 | J66: 0 | K66: 0 | L66: 0 | M66: 0 | N66: 0 | O66: 0 | P66: 0 | Q66: 0 | R66: 0 | S66: 0 | T66: 0 | U66: 0 | V66: 0 | W66: 0 | X66: 0 | Y66: 0 | Z66: 0 | AA66: 0 | AB66: 0 | AC66: 0 | AD66: 0 | AE66: 0
F67: Total cost per unit (INR/kWh) | G67: =(G65-G66)/G52 -> 3.349910984 | H67: 3.336515914 | I67: 3.320051921 | J67: 3.300088465 | K67: 3.276141354 | L67: 3.247666344 | M67: 3.214051975 | N67: 3.174611579 | O67: 3.128574347 | P67: 3.075075349 | Q67: 3.013144394 | R67: 2.941693574 | S67: 2.859503366 | T67: 2.765207109 | U67: 2.653753941 | V67: 2.180041978 | W67: 2.228740562 | X67: 2.279917072 | Y67: 2.333699237 | Z67: 2.39022142 | AA67: 2.672143738 | AB67: 2.734577339 | AC67: 2.800197411 | AD67: 2.869168506 | AE67: 2.941663732
F68: Discount factor | G68: =1/((1+$C$30)^(G$50-1)) -> 1 | H68: 0.9156702496 | I68: 0.8384520059 | J68: 0.7677455575 | K68: 0.7030017663 | L68: 0.6437178027 | M68: 0.5894332411 | N68: 0.539726483 | O68: 0.4942114834 | P68: 0.4525347523 | Q68: 0.4143726096 | R68: 0.3794286708 | S68: 0.3474315457 | T68: 0.3181327302 | U68: 0.2913046764 | V68: 0.2667390258 | W68: 0.2442449903 | X68: 0.2236478712 | Y68: 0.204787702 | Z68: 0.1875180062 | AA68: 0.1717046596 | AB68: 0.1572248485 | AC68: 0.1439661162 | AD68: 0.1318254896 | AE68: 0.1207086789 | AF68: =SUM(G68:AE68) -> 10.54753096
F69: Total cost per unit - discounted (INR/kWh) | G69: =G$67*G$68 -> 3.349910984 | H69: =H$67*H$68 -> 3.05514836 | I69: 2.783704193 | J69: 2.533628258 | K69: 2.303133158 | L69: 2.090580643 | M69: 1.894469073 | N69: 1.713421942 | O69: 1.546177369 | P69: 1.391578462 | Q69: 1.248564506 | R69: 1.116162883 | S69: 0.9934816745 | T69: 0.879702887 | U69: 0.7730509331 | V69: 0.5815022733 | W69: 0.5443587168 | X69: 0.5098985996 | Y69: 0.4779129039 | Z69: 0.4482095552 | AA69: 0.4588195309 | AB69: 0.4299435077 | AC69: 0.4031335459 | AD69: 0.378229543 | AE69: 0.355084343 | AF69: =SUM(G69:AE69) -> 32.25980784
AF70: =AF69/AF68 -> 3.058517482
W72: Module Price | Y72: Component A | Z72: Component C
H73: O&M expenses | I73: Comp A | J73: Comp C | M73: LandRent | N73: Comp A | O73: Comp C | R73: Grid_Unavailability | S73: Comp A | T73: Comp C | W73: DCR | X73: non-DCR | Y73: non-DCR | Z73: DCR | AD73: CUF | AE73: Comp A | AF73: Comp C
H74: =OnM_low*0.1 -> 0.4 | I74: 2.867396346 | J74: 2.784260784 | M74: =LandRent_low -> 10000 | N74: 3.076653738 | O74: 2.993518176 | R74: =GridUnavail_low -> 0.01 | S74: 3.105555508 | T74: 2.984787821 | W74: ='Tariff Calculation'!K167 -> 1 | X74: ='Tariff Calculation'!Q167 -> 0.4 | Y74: 2.546550369 | Z74: 2.206450048 | AD74: =CUF_low -> 0.17 | AE74: 3.73360712 | AF74: 3.367580392
H75: =H74+(H$82-H$74)/8 -> 0.475 | I75: 2.935960521 | J75: 2.852824959 | M75: =M74+(M$82-M$74)/8 -> 15000 | N75: 3.092903565 | O75: 3.009768003 | R75: =R74+(R$82-R$74)/8 -> 0.015 | S75: 3.122395712 | T75: 3.000179455 | W75: =W74+(($X$82-$X$74)/8) -> 1.175 | X75: 0.575 | Y75: 2.714420399 | Z75: 2.374320078 | AD75: =AD74+(($AD$82-$AD$74)/8) -> 0.1775 | AE75: 3.575849073 | AF75: 3.225288263
H76: 0.55 | I76: 3.004524695 | J76: 2.921389133 | M76: 20000 | N76: 3.109153391 | O76: 3.026017829 | R76: 0.02 | S76: 3.139410495 | T76: 3.015730652 | W76: 1.35 | X76: 0.75 | Y76: 2.88229043 | Z76: 2.542190108 | AD76: 0.185 | AE76: 3.430882218 | AF76: 3.094533333
H77: 0.625 | I77: 3.07308887 | J77: 2.989953308 | M77: 25000 | N77: 3.125403218 | O77: 3.042267656 | R77: 0.025 | S77: 3.156602587 | T77: 3.031443905 | W77: 1.525 | X77: 0.925 | Y77: 3.05016046 | Z77: 2.710060139 | AD77: 0.1925 | AE77: 3.297211483 | AF77: 2.9739671
H78: 0.7 | I78: 3.141653044 | J78: 3.058517482 | M78: 30000 | N78: 3.141653044 | O78: 3.058517482 | R78: 0.03 | S78: 3.173974774 | T78: 3.047321762 | W78: 1.7 | X78: 1.1 | Y78: 3.21803049 | Z78: 2.877930169 | AD78: 0.2 | AE78: 3.173566052 | AF78: 2.862443333
H79: 0.775 | I79: 3.210217219 | J79: 3.127081657 | M79: 35000 | N79: 3.157902871 | O79: 3.074767309 | R79: 0.035 | S79: 3.191529901 | T79: 3.063366822 | W79: 1.875 | X79: 1.275 | Y79: 3.385900521 | Z79: 3.0458002 | AD79: 0.2075 | AE79: 3.058858845 | AF79: 2.758981526
H80: 0.85 | I80: 3.278781393 | J80: 3.195645831 | M80: 40000 | N80: 3.174152697 | O80: 3.091017135 | R80: 0.04 | S80: 3.209270871 | T80: 3.079581741 | W80: 2.05 | X80: 1.45 | Y80: 3.553770551 | Z80: 3.21367023 | AD80: 0.215 | AE80: 2.952154467 | AF80: 2.662737984
H81: 0.925 | I81: 3.347345567 | J81: 3.264210006 | M81: 45000 | N81: 3.190402524 | O81: 3.107266962 | R81: 0.045 | S81: 3.227200654 | T81: 3.095969229 | W81: 2.225 | X81: 1.625 | Y81: 3.721640581 | Z81: 3.38154026 | AD81: 0.2225 | AE81: 2.852643642 | AF81: 2.572982771
H82: =OnM_high*0.1 -> 1 | I82: 3.415909742 | J82: 3.33277418 | M82: =LandRent_high -> 50000 | N82: 3.20665235 | O82: 3.123516788 | R82: =GridUnavail_high -> 0.05 | S82: 3.245322277 | T82: 3.112532057 | W82: ='Tariff Calculation'!K161 -> 2 | X82: ='Tariff Calculation'!Q161 -> 1.8 | Y82: 3.889510612 | Z82: 3.165707364 | AD82: =CUF_High -> 0.23 | AE82: 2.759622654 | AF82: 2.489081159

Sheet Capital cost (hidden)
C1: Pre-GST | D1: Post GST
A2: Module prices (INR Millions) | B2: International | C2: =LOOKUP(2,1/(Monthly_data[International modules (after duty)]>0),Monthly_data[International modules (after duty)])/10 -> 0.929 | D2: =C2*(1+(0.12*0.7+0.18*0.3)) -> 1.057202
B3: Domestic | D3: =LOOKUP(2,1/(Monthly_data[Domestic modules]>0),Monthly_data[Domestic modules])/10 -> 1.773
A4: Inverter (INR Millions) | C4: 0.22 | D4: =C4*(1+(0.12*0.7+0.18*0.3)) -> 0.25036
A5: Mounting structure | C5: 0.35 | D5: =C5*(1+(0.12*0.7+0.18*0.3)) -> 0.3983
A6: BOS and civil costs | C6: 0.7 | D6: =C6*(1+(0.12*0.7+0.18*0.3)) -> 0.7966
A7: Connectivity (11 kV side) | D7: 0.2
A8: Connectivity (33 kV side) | D8: 0.3

Sheet Interest rate & loan (hidden)
A1: Month | B1: rate | C1: Average rate | E1: KUSUM A | Q1: No Subsidy | Z1: KUSUM C | AJ1: Yearly interest on loan (Component A)
A2: 2019-07-01 | B2: 0.084 | E2: Amount | F2: =LCOE!$C$12 -> 21.28536648 | H2: Month | I2: Opening Balanace | J2: Principal Payment | K2: Closing Balance | L2: Interest Payment | M2: Interest paid by govt | N2: Interest paid by developer | P2: Amount | Q2: =LCOE!$C$12 -> 21.28536648 | S2: Month | T2: Opening Balanace | U2: Principal Payment | V2: Closing Balance | W2: Interest Payment | Y2: Amount | Z2: =LCOE!$C$13 -> 20.54934 | AB2: Year | AC2: Opening Balanace | AD2: Principal Payment | AE2: Closing Balance | AF2: Interest Payment | AI2: 1 | AJ2: 2 | AK2: 3 | AL2: 4 | AM2: 5 | AN2: 6 | AO2: 7 | AP2: 8 | AQ2: 9 | AR2: 10 | AS2: 11 | AT2: 12 | AU2: 13 | AV2: 14 | AW2: 15 | AX2: 16 | AY2: 17 | AZ2: 18 | BA2: 19 | BB2: 20 | BC2: 21 | BD2: 22 | BE2: 23 | BF2: 24 | BG2: 25
A3: 2019-08-01 | B3: 0.0825 | E3: Interest rate | F3: =LCOE!C17 -> 0.11 | H3: 1 | I3: =F2 -> 21.28536648 | J3: =-PPMT($F$3/12,$H3,$F$4,$F$2) -> 0.04681296352 | K3: =I3-J3 -> 21.23855352 | L3: =-IPMT($F$3/12,$H3,$F$4,$F$2) -> 0.1951158594 | M3: =MIN(20,I3)*$F$5/12 -> 0 | N3: =L3-M3 -> 0.1951158594 | P3: Interest rate | Q3: =LCOE!C17 -> 0.11 | S3: 1 | T3: =Q2 -> 21.28536648 | U3: =-PPMT($Q$3/12,$S3,$Q$4,$Q$2) -> 0.04681296352 | V3: =T3-U3 -> 21.23855352 | W3: =-IPMT($Q$3/12,$S3,$Q$4,$Q$2) -> 0.1951158594 | Y3: Interest rate | Z3: =LCOE!C17 -> 0.11 | AB3: 1 | AC3: =Z2 -> 20.54934 | AD3: =-PPMT($Z$3/12,$AB3,$Z$4,$Z$2) -> 0.04519421851 | AE3: =AC3-AD3 -> 20.50414578 | AF3: =-IPMT($Z$3/12,$AB3,$Z$4,$Z$2) -> 0.18836895 | AI3: =SUMIFS($N$3:$N$180,$H$3:$H$180,">0",$H$3:$H$180,"<=12") -> 2.312184967 | AJ3: =SUMIFS($N$3:$N$180,$H$3:$H$180,">12",$H$3:$H$180,"<=24") -> 2.243799658 | AK3: =SUMIFS($N$3:$N$180,$H$3:$H$180,">24",$H$3:$H$180,"<=36") -> 2.167500882 | AL3: =SUMIFS($N$3:$N$180,$H$3:$H$180,">36",$H$3:$H$180,"<=48") -> 2.082372899 | AM3: =SUMIFS($N$3:$N$180,$H$3:$H$180,">48",$H$3:$H$180,"<=60") -> 1.987394006 | AN3: =SUMIFS($N$3:$N$180,$H$3:$H$180,">60",$H$3:$H$180,"<=72") -> 1.881424265 | AO3: =SUMIFS($N$3:$N$180,$H$3:$H$180,">72",$H$3:$H$180,"<=84") -> 1.763191829 | AP3: =SUMIFS($N$3:$N$180,$H$3:$H$180,">84",$H$3:$H$180,"<=96") -> 1.631277674 | AQ3: =SUMIFS($N$3:$N$180,$H$3:$H$180,">96",$H$3:$H$180,"<=108") -> 1.484098566 | AR3: =SUMIFS($N$3:$N$180,$H$3:$H$180,">108",$H$3:$H$180,"<=120") -> 1.319888063 | AS3: =SUMIFS($N$3:$N$180,$H$3:$H$180,">120",$H$3:$H$180,"<=132") -> 1.136675311 | AT3: =SUMIFS($N$3:$N$180,$H$3:$H$180,">132",$H$3:$H$180,"<=144") -> 0.9322613934 | AU3: =SUMIFS($N$3:$N$180,$H$3:$H$180,">144",$H$3:$H$180,"<=156") -> 0.7041929349 | AV3: =SUMIFS($N$3:$N$180,$H$3:$H$180,">156",$H$3:$H$180,"<=168") -> 0.4497326599 | AW3: =SUMIFS($N$3:$N$180,$H$3:$H$180,">168",$H$3:$H$180,"<=180") -> 0.1592538886 | AX3: =SUMIFS($N$3:$N$180,$H$3:$H$180,">180",$H$3:$H$180,"<=192") -> 0 | AY3: =SUMIFS($N$3:$N$180,$H$3:$H$180,">192",$H$3:$H$180,"<=204") -> 0 | AZ3: =SUMIFS($N$3:$N$180,$H$3:$H$180,">204",$H$3:$H$180,"<=216") -> 0 | BA3: =SUMIFS($N$3:$N$180,$H$3:$H$180,">216",$H$3:$H$180,"<=228") -> 0 | BB3: =SUMIFS($N$3:$N$180,$H$3:$H$180,">228",$H$3:$H$180,"<=240") -> 0 | BC3: =SUMIFS($N$3:$N$180,$H$3:$H$180,">240",$H$3:$H$180,"<=252") -> 0 | BD3: =SUMIFS($N$3:$N$180,$H$3:$H$180,">252",$H$3:$H$180,"<=264") -> 0 | BE3: =SUMIFS($N$3:$N$180,$H$3:$H$180,">264",$H$3:$H$180,"<=276") -> 0 | BF3: =SUMIFS($N$3:$N$180,$H$3:$H$180,">276",$H$3:$H$180,"<=288") -> 0 | BG3: =SUMIFS($N$3:$N$180,$H$3:$H$180,">288",$H$3:$H$180,"<=300") -> 0 | BH3: =SUM(AI3:BG3) -> 22.255249
A4: 2019-09-01 | B4: 0.0815 | E4: Installments | F4: =12*LCOE!$C$14 -> 180 | H4: 2 | I4: =K3 -> 21.23855352 | J4: =-PPMT($F$3/12,$H4,$F$4,$F$2) -> 0.04724208235 | K4: =I4-J4 -> 21.19131143 | L4: =-IPMT($F$3/12,$H4,$F$4,$F$2) -> 0.1946867406 | M4: =MIN(20,I4)*$F$5/12 -> 0 | N4: =L4-M4 -> 0.1946867406 | P4: Installments | Q4: =12*LCOE!$C$14 -> 180 | S4: 2 | T4: =V3 -> 21.23855352 | U4: 0.04724208235 | V4: =T4-U4 -> 21.19131143 | W4: =-IPMT($Q$3/12,$S4,$Q$4,$Q$2) -> 0.1946867406 | Y4: Installments | Z4: =12*LCOE!C14 -> 180 | AB4: 2 | AC4: =AE3 -> 20.50414578 | AD4: 0.04560849885 | AE4: =AC4-AD4 -> 20.45853728 | AF4: 0.1879546697
A5: 2019-10-01 | B5: 0.0805 | E5: AIF | F5: =IF(LCOE!C16=1,3%,0) -> 0 | H5: 3 | I5: =K4 -> 21.19131143 | J5: 0.04767513477 | K5: 21.1436363 | L5: =-IPMT($F$3/12,$H5,$F$4,$F$2) -> 0.1942536881 | M5: 0 | N5: 0.1942536881 | S5: 3 | T5: =V4 -> 21.19131143 | U5: 0.04767513477 | V5: 21.1436363 | W5: 0.1942536881 | AB5: 3 | AC5: =AE4 -> 20.45853728 | AD5: 0.04602657675 | AE5: 20.41251071 | AF5: 0.1875365918
A6: 2019-11-01 | B6: 0.08 | H6: 4 | I6: 21.1436363 | J6: 0.04811215684 | K6: 21.09552414 | L6: =-IPMT($F$3/12,$H6,$F$4,$F$2) -> 0.1938166661 | M6: 0 | N6: 0.1938166661 | S6: 4 | T6: 21.1436363 | U6: 0.04811215684 | V6: 21.09552414 | W6: 0.1938166661 | AB6: 4 | AC6: 20.41251071 | AD6: 0.04644848704 | AE6: 20.36606222 | AF6: 0.1871146815 | AI6: Yearly interest on loan (Component C)
A7: 2019-12-01 | B7: 0.079 | F7: =IF(LCOE!C16=1,LCOE!C18,LCOE!C17) -> 0.11 | H7: 5 | I7: 21.09552414 | J7: 0.04855318495 | K7: 21.04697096 | L7: =-IPMT($F$3/12,$H7,$F$4,$F$2) -> 0.193375638 | M7: 0 | N7: 0.193375638 | S7: 5 | T7: 21.09552414 | U7: 0.04855318495 | V7: 21.04697096 | W7: 0.193375638 | AB7: 5 | AC7: 20.36606222 | AD7: 0.04687426484 | AE7: 20.31918795 | AF7: 0.1866889037 | AI7: 1 | AJ7: 2 | AK7: 3 | AL7: 4 | AM7: 5 | AN7: 6 | AO7: 7 | AP7: 8 | AQ7: 9 | AR7: 10 | AS7: 11 | AT7: 12 | AU7: 13 | AV7: 14 | AW7: 15 | AX7: 16 | AY7: 17 | AZ7: 18 | BA7: 19 | BB7: 20 | BC7: 21 | BD7: 22 | BE7: 23 | BF7: 24 | BG7: 25
A8: 2020-01-01 | B8: 0.079 | C8: =AVERAGE(B2:B7) -> 0.08125 | H8: 6 | I8: 21.04697096 | J8: 0.04899825581 | K8: 20.9979727 | L8: 0.1929305671 | M8: 0 | N8: 0.1929305671 | S8: 6 | T8: 21.04697096 | U8: 0.04899825581 | V8: 20.9979727 | W8: 0.1929305671 | AB8: 6 | AC8: 20.31918795 | AD8: 0.0473039456 | AE8: 20.27188401 | AF8: 0.1862592229 | AI8: =SUMIFS($AF$3:$AF$180,$AB$3:$AB$180,">0",$AB$3:$AB$180,"<=12") -> 2.232231946 | AJ8: =SUMIFS($AF$3:$AF$180,$AB$3:$AB$180,">12",$AB$3:$AB$180,"<=24") -> 2.166211332 | AK8: =SUMIFS($AF$3:$AF$180,$AB$3:$AB$180,">24",$AB$3:$AB$180,"<=36") -> 2.09255089 | AL8: =SUMIFS($AF$3:$AF$180,$AB$3:$AB$180,">36",$AB$3:$AB$180,"<=48") -> 2.010366547 | AM8: =SUMIFS($AF$3:$AF$180,$AB$3:$AB$180,">48",$AB$3:$AB$180,"<=60") -> 1.918671928 | AN8: =SUMIFS($AF$3:$AF$180,$AB$3:$AB$180,">60",$AB$3:$AB$180,"<=72") -> 1.816366514 | AO8: =SUMIFS($AF$3:$AF$180,$AB$3:$AB$180,">72",$AB$3:$AB$180,"<=84") -> 1.702222436 | AP8: =SUMIFS($AF$3:$AF$180,$AB$3:$AB$180,">84",$AB$3:$AB$180,"<=96") -> 1.574869739 | AQ8: =SUMIFS($AF$3:$AF$180,$AB$3:$AB$180,">96",$AB$3:$AB$180,"<=108") -> 1.432779936 | AR8: =SUMIFS($AF$3:$AF$180,$AB$3:$AB$180,">108",$AB$3:$AB$180,"<=120") -> 1.274247666 | AS8: =SUMIFS($AF$3:$AF$180,$AB$3:$AB$180,">120",$AB$3:$AB$180,"<=132") -> 1.097370227 | AT8: =SUMIFS($AF$3:$AF$180,$AB$3:$AB$180,">132",$AB$3:$AB$180,"<=144") -> 0.9000247358 | AU8: =SUMIFS($AF$3:$AF$180,$AB$3:$AB$180,">144",$AB$3:$AB$180,"<=156") -> 0.6798426543 | AV8: =SUMIFS($AF$3:$AF$180,$AB$3:$AB$180,">156",$AB$3:$AB$180,"<=168") -> 0.4341813586 | AW8: =SUMIFS($AF$3:$AF$180,$AB$3:$AB$180,">168",$AB$3:$AB$180,"<=180") -> 0.15374705 | AX8: =SUMIFS($AF$3:$AF$158,$AB$3:$AB$158,">180",$AB$3:$AB$158,"<=192") -> 0 | AY8: =SUMIFS($AF$3:$AF$158,$AB$3:$AB$158,">192",$AB$3:$AB$158,"<=204") -> 0 | AZ8: =SUMIFS($AF$3:$AF$158,$AB$3:$AB$158,">204",$AB$3:$AB$158,"<=216") -> 0 | BA8: =SUMIFS($AF$3:$AF$158,$AB$3:$AB$158,">216",$AB$3:$AB$158,"<=228") -> 0 | BB8: =SUMIFS($AF$3:$AF$158,$AB$3:$AB$158,">228",$AB$3:$AB$158,"<=240") -> 0 | BC8: =SUMIFS($AF$3:$AF$158,$AB$3:$AB$158,">240",$AB$3:$AB$158,"<=252") -> 0 | BD8: =SUMIFS($AF$3:$AF$158,$AB$3:$AB$158,">252",$AB$3:$AB$158,"<=264") -> 0 | BE8: =SUMIFS($AF$3:$AF$158,$AB$3:$AB$158,">264",$AB$3:$AB$158,"<=276") -> 0 | BF8: =SUMIFS($AF$3:$AF$158,$AB$3:$AB$158,">276",$AB$3:$AB$158,"<=288") -> 0 | BG8: =SUMIFS($AF$3:$AF$158,$AB$3:$AB$158,">288",$AB$3:$AB$158,"<=300") -> 0 | BH8: =SUM(AI8:BG8) -> 21.48568496
A9: 2020-02-01 | B9: 0.0785 | C9: 0.08041666667 | H9: 7 | I9: 20.9979727 | J9: 0.04944740649 | K9: 20.9485253 | L9: 0.1924814164 | M9: 0 | N9: 0.1924814164 | S9: 7 | T9: 20.9979727 | U9: 0.04944740649 | V9: 20.9485253 | W9: 0.1924814164 | AB9: 7 | AC9: 20.27188401 | AD9: 0.0477375651 | AE9: 20.22414644 | AF9: 0.1858256034
A10: 2020-03-01 | B10: 0.0775 | C10: 0.07975 | H10: 8 | I10: 20.9485253 | J10: 0.04990067438 | K10: 20.89862462 | L10: 0.1920281485 | M10: 0 | N10: 0.1920281485 | S10: 8 | T10: 20.9485253 | U10: 0.04990067438 | V10: 20.89862462 | W10: 0.1920281485 | AB10: 8 | AC10: 20.22414644 | AD10: 0.04817515945 | AE10: 20.17597128 | AF10: 0.1853880091
A11: 2020-04-01 | B11: 0.074 | C11: 0.07908333333 | H11: 9 | I11: 20.89862462 | J11: 0.05035809723 | K11: 20.84826652 | L11: 0.1915707257 | M11: 0 | N11: 0.1915707257 | Q11: =W3/T3*12 -> 0.11 | S11: 9 | T11: 20.89862462 | U11: 0.05035809723 | V11: 20.84826652 | W11: 0.1915707257 | AB11: 9 | AC11: 20.17597128 | AD11: 0.04861676508 | AE11: 20.12735452 | AF11: 0.1849464034 | AI11: Yearly interest on loan (No Subsidy)
A12: 2020-05-01 | B12: 0.0725 | C12: 0.078 | H12: 10 | I12: 20.84826652 | J12: 0.05081971312 | K12: 20.79744681 | L12: 0.1911091098 | M12: 0 | N12: 0.1911091098 | S12: 10 | T12: 20.84826652 | U12: 0.05081971312 | V12: 20.79744681 | W12: 0.1911091098 | AB12: 10 | AC12: 20.12735452 | AD12: 0.04906241876 | AE12: 20.0782921 | AF12: 0.1845007498 | AI12: 1 | AJ12: 2 | AK12: 3 | AL12: 4 | AM12: 5 | AN12: 6 | AO12: 7 | AP12: 8 | AQ12: 9 | AR12: 10 | AS12: 11 | AT12: 12 | AU12: 13 | AV12: 14 | AW12: 15 | AX12: 16 | AY12: 17 | AZ12: 18 | BA12: 19 | BB12: 20 | BC12: 21 | BD12: 22 | BE12: 23 | BF12: 24 | BG12: 25
A13: 2020-06-01 | B13: 0.07 | C13: 0.07675 | H13: 11 | I13: 20.79744681 | J13: 0.05128556049 | K13: 20.74616125 | L13: 0.1906432624 | M13: 0 | N13: 0.1906432624 | S13: 11 | T13: 20.79744681 | U13: 0.05128556049 | V13: 20.74616125 | W13: 0.1906432624 | AB13: 11 | AC13: 20.0782921 | AD13: 0.04951215759 | AE13: 20.02877994 | AF13: 0.1840510109 | AI13: =SUMIFS($W$3:$W$180,$S$3:$S$180,">0",$S$3:$S$180,"<=12") -> 2.312184967 | AJ13: =SUMIFS($W$3:$W$180,$S$3:$S$180,">12",$S$3:$S$180,"<=24") -> 2.243799658 | AK13: =SUMIFS($W$3:$W$180,$S$3:$S$180,">24",$S$3:$S$180,"<=36") -> 2.167500882 | AL13: =SUMIFS($W$3:$W$180,$S$3:$S$180,">36",$S$3:$S$180,"<=48") -> 2.082372899 | AM13: =SUMIFS($W$3:$W$180,$S$3:$S$180,">48",$S$3:$S$180,"<=60") -> 1.987394006 | AN13: =SUMIFS($W$3:$W$180,$S$3:$S$180,">60",$S$3:$S$180,"<=72") -> 1.881424265 | AO13: =SUMIFS($W$3:$W$180,$S$3:$S$180,">72",$S$3:$S$180,"<=84") -> 1.763191829 | AP13: =SUMIFS($W$3:$W$180,$S$3:$S$180,">84",$S$3:$S$180,"<=96") -> 1.631277674 | AQ13: =SUMIFS($W$3:$W$180,$S$3:$S$180,">96",$S$3:$S$180,"<=108") -> 1.484098566 | AR13: =SUMIFS($W$3:$W$180,$S$3:$S$180,">108",$S$3:$S$180,"<=120") -> 1.319888063 | AS13: =SUMIFS($W$3:$W$180,$S$3:$S$180,">120",$S$3:$S$180,"<=132") -> 1.136675311 | AT13: =SUMIFS($W$3:$W$180,$S$3:$S$180,">132",$S$3:$S$180,"<=144") -> 0.9322613934 | AU13: =SUMIFS($W$3:$W$180,$S$3:$S$180,">144",$S$3:$S$180,"<=156") -> 0.7041929349 | AV13: =SUMIFS($W$3:$W$180,$S$3:$S$180,">156",$S$3:$S$180,"<=168") -> 0.4497326599 | AW13: =SUMIFS($W$3:$W$180,$S$3:$S$180,">168",$S$3:$S$180,"<=180") -> 0.1592538886 | AX13: =SUMIFS($W$3:$W$158,$S$3:$S$158,">180",$S$3:$S$158,"<=192") -> 0 | AY13: =SUMIFS($W$3:$W$158,$S$3:$S$158,">192",$S$3:$S$158,"<=204") -> 0 | AZ13: =SUMIFS($W$3:$W$158,$S$3:$S$158,">204",$S$3:$S$158,"<=216") -> 0 | BA13: =SUMIFS($W$3:$W$158,$S$3:$S$158,">216",$S$3:$S$158,"<=228") -> 0 | BB13: =SUMIFS($W$3:$W$158,$S$3:$S$158,">228",$S$3:$S$158,"<=240") -> 0 | BC13: =SUMIFS($W$3:$W$158,$S$3:$S$158,">240",$S$3:$S$158,"<=252") -> 0 | BD13: =SUMIFS($W$3:$W$158,$S$3:$S$158,">252",$S$3:$S$158,"<=264") -> 0 | BE13: =SUMIFS($W$3:$W$158,$S$3:$S$158,">264",$S$3:$S$158,"<=276") -> 0 | BF13: =SUMIFS($W$3:$W$158,$S$3:$S$158,">276",$S$3:$S$158,"<=288") -> 0 | BG13: =SUMIFS($W$3:$W$158,$S$3:$S$158,">288",$S$3:$S$158,"<=300") -> 0 | BH13: =SUM(AI13:BG13) -> 22.255249
A14: 2020-07-01 | B14: 0.07 | C14: 0.07525 | H14: 12 | I14: 20.74616125 | J14: 0.05175567813 | K14: 20.69440557 | L14: 0.1901731448 | M14: 0 | N14: 0.1901731448 | S14: 12 | T14: 20.74616125 | U14: 0.05175567813 | V14: 20.69440557 | W14: 0.1901731448 | AB14: 12 | AC14: 20.02877994 | AD14: 0.04996601904 | AE14: 19.97881392 | AF14: 0.1835971495
A15: 2020-08-01 | B15: 0.07 | C15: 0.07375 | H15: 13 | I15: 20.69440557 | J15: 0.05223010518 | K15: 20.64217547 | L15: 0.1896987177 | M15: 0 | N15: 0.1896987177 | S15: 13 | T15: 20.69440557 | U15: 0.05223010518 | V15: 20.64217547 | W15: 0.1896987177 | AB15: 13 | AC15: 19.97881392 | AD15: 0.05042404088 | AE15: 19.92838988 | AF15: 0.1831391276
A16: 2020-09-01 | B16: 0.07 | C16: 0.07233333333 | H16: 14 | I16: 20.64217547 | J16: 0.05270888114 | K16: 20.58946659 | L16: 0.1892199418 | M16: 0 | N16: 0.1892199418 | S16: 14 | T16: 20.64217547 | U16: 0.05270888114 | V16: 20.58946659 | W16: 0.1892199418 | AB16: 14 | AC16: 19.92838988 | AD16: 0.05088626126 | AE16: 19.87750362 | AF16: 0.1826769073
A17: 2020-10-01 | B17: 0.07 | C17: 0.07108333333 | H17: 15 | I17: 20.58946659 | J17: 0.05319204589 | K17: 20.53627454 | L17: 0.188736777 | M17: 0 | N17: 0.188736777 | S17: 15 | T17: 20.58946659 | U17: 0.05319204589 | V17: 20.53627454 | W17: 0.188736777 | AB17: 15 | AC17: 19.87750362 | AD17: 0.05135271865 | AE17: 19.8261509 | AF17: 0.1822104499
A18: 2020-11-01 | B18: 0.07 | C18: 0.07041666667 | H18: 16 | I18: 20.53627454 | J18: 0.05367963964 | K18: 20.4825949 | L18: 0.1882491833 | M18: 0 | N18: 0.1882491833 | S18: 16 | T18: 20.53627454 | U18: 0.05367963964 | V18: 20.4825949 | W18: 0.1882491833 | AB18: 16 | AC18: 19.8261509 | AD18: 0.0518234519 | AE18: 19.77432745 | AF18: 0.1817397166
A19: 2020-12-01 | B19: 0.07 | C19: 0.07 | H19: 17 | I19: 20.4825949 | J19: 0.054171703 | K19: 20.4284232 | L19: 0.1877571199 | M19: 0 | N19: 0.1877571199 | S19: 17 | T19: 20.4825949 | U19: 0.054171703 | V19: 20.4284232 | W19: 0.1877571199 | AB19: 17 | AC19: 19.77432745 | AD19: 0.05229850021 | AE19: 19.72202895 | AF19: 0.1812646683
A20: 2021-01-01 | B20: 0.07 | C20: 0.07 | H20: 18 | I20: 20.4284232 | J20: 0.05466827695 | K20: 20.37375492 | L20: 0.187260546 | M20: 0 | N20: 0.187260546 | S20: 18 | T20: 20.4284232 | U20: 0.05466827695 | V20: 20.37375492 | W20: 0.187260546 | AB20: 18 | AC20: 19.72202895 | AD20: 0.05277790313 | AE20: 19.66925105 | AF20: 0.1807852654
A21: 2021-02-01 | B21: 0.07 | C21: 0.07 | H21: 19 | I21: 20.37375492 | J21: 0.05516940282 | K21: 20.31858552 | L21: 0.1867594201 | M21: 0 | N21: 0.1867594201 | S21: 19 | T21: 20.37375492 | U21: 0.05516940282 | V21: 20.31858552 | W21: 0.1867594201 | AB21: 19 | AC21: 19.66925105 | AD21: 0.05326170058 | AE21: 19.61598935 | AF21: 0.1803014679
A22: 2021-03-01 | B22: 0.07 | C22: 0.07 | H22: 20 | I22: 20.31858552 | J22: 0.05567512235 | K22: 20.26291039 | L22: 0.1862537006 | M22: 0 | N22: 0.1862537006 | S22: 20 | T22: 20.31858552 | U22: 0.05567512235 | V22: 20.26291039 | W22: 0.1862537006 | AB22: 20 | AC22: 19.61598935 | AD22: 0.05374993283 | AE22: 19.56223941 | AF22: 0.1798132357
A23: 2021-04-01 | B23: 0.07 | C23: 0.07 | H23: 21 | I23: 20.26291039 | J23: 0.05618547763 | K23: 20.20672492 | L23: 0.1857433453 | M23: 0 | N23: 0.1857433453 | S23: 21 | T23: 20.26291039 | U23: 0.05618547763 | V23: 20.20672492 | W23: 0.1857433453 | AB23: 21 | AC23: 19.56223941 | AD23: 0.05424264055 | AE23: 19.50799677 | AF23: 0.179320528
A24: 2021-05-01 | B24: 0.07 | C24: 0.07 | H24: 22 | I24: 20.20672492 | J24: 0.05670051118 | K24: 20.15002441 | L24: 0.1852283117 | M24: 0 | N24: 0.1852283117 | S24: 22 | T24: 20.20672492 | U24: 0.05670051118 | V24: 20.15002441 | W24: 0.1852283117 | AB24: 22 | AC24: 19.50799677 | AD24: 0.05473986476 | AE24: 19.45325691 | AF24: 0.1788233038
A25: 2021-06-01 | B25: 0.07 | C25: 0.07 | H25: 23 | I25: 20.15002441 | J25: 0.05722026586 | K25: 20.09280414 | L25: 0.1847085571 | M25: 0 | N25: 0.1847085571 | S25: 23 | T25: 20.15002441 | U25: 0.05722026586 | V25: 20.09280414 | W25: 0.1847085571 | AB25: 23 | AC25: 19.45325691 | AD25: 0.05524164685 | AE25: 19.39801526 | AF25: 0.1783215217
A26: 2021-07-01 | B26: 0.07 | C26: 0.07 | H26: 24 | I26: 20.09280414 | J26: 0.05774478497 | K26: 20.03505936 | L26: 0.184184038 | M26: 0 | N26: 0.184184038 | S26: 24 | T26: 20.09280414 | U26: 0.05774478497 | V26: 20.03505936 | W26: 0.184184038 | AB26: 24 | AC26: 19.39801526 | AD26: 0.05574802861 | AE26: 19.34226723 | AF26: 0.1778151399
A27: 2021-08-01 | B27: 0.07 | C27: 0.07 | H27: 25 | I27: 20.03505936 | J27: 0.05827411216 | K27: 19.97678524 | L27: 0.1836547108 | M27: 0 | N27: 0.1836547108 | S27: 25 | T27: 20.03505936 | U27: 0.05827411216 | V27: 19.97678524 | W27: 0.1836547108 | AB27: 25 | AC27: 19.34226723 | AD27: 0.05625905221 | AE27: 19.28600818 | AF27: 0.1773041163
A28: 2021-09-01 | B28: 0.07 | C28: 0.07 | H28: 26 | I28: 19.97678524 | J28: 0.05880829153 | K28: 19.91797695 | L28: 0.1831205314 | M28: 0 | N28: 0.1831205314 | S28: 26 | T28: 19.97678524 | U28: 0.05880829153 | V28: 19.91797695 | W28: 0.1831205314 | AB28: 26 | AC28: 19.28600818 | AD28: 0.05677476019 | AE28: 19.22923342 | AF28: 0.1767884083
A29: 2021-10-01 | B29: 0.07 | C29: 0.07 | H29: 27 | I29: 19.91797695 | J29: 0.05934736753 | K29: 19.85862958 | L29: 0.1825814554 | M29: 0 | N29: 0.1825814554 | S29: 27 | T29: 19.91797695 | U29: 0.05934736753 | V29: 19.85862958 | W29: 0.1825814554 | AB29: 27 | AC29: 19.22923342 | AD29: 0.05729519549 | AE29: 19.17193823 | AF29: 0.176267973
A30: 2021-11-01 | B30: 0.07 | C30: 0.07 | H30: 28 | I30: 19.85862958 | J30: 0.05989138507 | K30: 19.7987382 | L30: 0.1820374379 | M30: 0 | N30: 0.1820374379 | S30: 28 | T30: 19.85862958 | U30: 0.05989138507 | V30: 19.7987382 | W30: 0.1820374379 | AB30: 28 | AC30: 19.17193823 | AD30: 0.05782040145 | AE30: 19.11411782 | AF30: 0.1757427671
A31: 2021-12-01 | B31: 0.07 | C31: 0.07 | H31: 29 | I31: 19.7987382 | J31: 0.06044038943 | K31: 19.73829781 | L31: 0.1814884335 | M31: 0 | N31: 0.1814884335 | S31: 29 | T31: 19.7987382 | U31: 0.06044038943 | V31: 19.73829781 | W31: 0.1814884335 | AB31: 29 | AC31: 19.11411782 | AD31: 0.05835042179 | AE31: 19.0557674 | AF31: 0.1752127467
A32: 2022-01-01 | B32: 0.07 | C32: 0.07 | H32: 30 | I32: 19.73829781 | J32: 0.06099442633 | K32: 19.67730338 | L32: 0.1809343966 | M32: 0 | N32: 0.1809343966 | S32: 30 | T32: 19.73829781 | U32: 0.06099442633 | V32: 19.67730338 | W32: 0.1809343966 | AB32: 30 | AC32: 19.0557674 | AD32: 0.05888530066 | AE32: 18.9968821 | AF32: 0.1746778679
A33: 2022-02-01 | B33: 0.07 | C33: 0.07 | H33: 31 | I33: 19.67730338 | J33: 0.06155354191 | K33: 19.61574984 | L33: 0.180375281 | M33: 0 | N33: 0.180375281 | S33: 31 | T33: 19.67730338 | U33: 0.06155354191 | V33: 19.61574984 | W33: 0.180375281 | AB33: 31 | AC33: 18.9968821 | AD33: 0.05942508258 | AE33: 18.93745702 | AF33: 0.1741380859
A34: 2022-03-01 | B34: 0.07 | C34: 0.07 | H34: 32 | I34: 19.61574984 | J34: 0.06211778271 | K34: 19.55363206 | L34: 0.1798110402 | M34: 0 | N34: 0.1798110402 | S34: 32 | T34: 19.61574984 | U34: 0.06211778271 | V34: 19.55363206 | W34: 0.1798110402 | AB34: 32 | AC34: 18.93745702 | AD34: 0.05996981251 | AE34: 18.87748721 | AF34: 0.173593356
A35: 2022-04-01 | B35: 0.071 | C35: 0.07 | H35: 33 | I35: 19.55363206 | J35: 0.06268719572 | K35: 19.49094486 | L35: 0.1792416272 | M35: 0 | N35: 0.1792416272 | S35: 33 | T35: 19.55363206 | U35: =-PPMT($Q$3/12,$S35,$Q$4,$Q$2) -> 0.06268719572 | V35: 19.49094486 | W35: 0.1792416272 | AB35: 33 | AC35: 18.87748721 | AD35: 0.06051953579 | AE35: 18.81696767 | AF35: 0.1730436327
A36: 2022-05-01 | B36: 0.072 | C36: 0.07016666667 | H36: 34 | I36: 19.49094486 | J36: 0.06326182834 | K36: 19.42768303 | L36: 0.1786669946 | M36: 0 | N36: 0.1786669946 | S36: 34 | T36: 19.49094486 | U36: 0.06326182834 | V36: 19.42768303 | W36: 0.1786669946 | AB36: 34 | AC36: 18.81696767 | AD36: 0.0610742982 | AE36: 18.75589337 | AF36: 0.1724888703
A37: 2022-06-01 | B37: 0.074 | C37: 0.0705 | H37: 35 | I37: 19.42768303 | J37: 0.06384172844 | K37: 19.36384131 | L37: 0.1780870945 | M37: 0 | N37: 0.1780870945 | S37: 35 | T37: 19.42768303 | U37: 0.06384172844 | V37: 19.36384131 | W37: 0.1780870945 | AB37: 35 | AC37: 18.75589337 | AD37: 0.06163414593 | AE37: 18.69425923 | AF37: 0.1719290226
A38: 2022-07-01 | B38: 0.075 | C38: 0.07116666667 | H38: 36 | I38: 19.36384131 | J38: 0.06442694428 | K38: 19.29941436 | L38: 0.1775018786 | M38: 0 | N38: 0.1775018786 | S38: 36 | T38: 19.36384131 | U38: 0.06442694428 | V38: 19.29941436 | W38: 0.1775018786 | AB38: 36 | AC38: 18.69425923 | AD38: 0.0621991256 | AE38: 18.6320601 | AF38: 0.1713640429
A39: 2022-08-01 | B39: 0.077 | C39: 0.072 | H39: 37 | I39: 19.29941436 | J39: 0.0650175246 | K39: 19.23439684 | L39: 0.1769112983 | M39: 0 | N39: 0.1769112983 | S39: 37 | T39: 19.29941436 | U39: 0.0650175246 | V39: 19.23439684 | W39: 0.1769112983 | AB39: 37 | AC39: 18.6320601 | AD39: 0.06276928425 | AE39: 18.56929082 | AF39: 0.1707938843
A40: 2022-09-01 | B40: 0.077 | C40: 0.07316666667 | H40: 38 | I40: 19.23439684 | J40: 0.06561351858 | K40: 19.16878332 | L40: 0.1763153043 | M40: 0 | N40: 0.1763153043 | S40: 38 | T40: 19.23439684 | U40: 0.06561351858 | V40: 19.16878332 | W40: 0.1763153043 | AB40: 38 | AC40: 18.56929082 | AD40: 0.06334466936 | AE40: 18.50594615 | AF40: 0.1702184992
A41: 2022-10-01 | B41: 0.0795 | C41: 0.07433333333 | H41: 39 | I41: 19.16878332 | J41: 0.06621497583 | K41: 19.10256834 | L41: 0.1757138471 | M41: 0 | N41: 0.1757138471 | S41: 39 | T41: 19.16878332 | U41: 0.06621497583 | V41: 19.10256834 | W41: 0.1757138471 | AB41: 39 | AC41: 18.50594615 | AD41: 0.06392532883 | AE41: 18.44202082 | AF41: 0.1696378397
A42: 2022-11-01 | B42: 0.0805 | C42: 0.07575 | H42: 40 | I42: 19.10256834 | J42: 0.06682194644 | K42: 19.0357464 | L42: 0.1751068765 | M42: 0 | N42: 0.1751068765 | S42: 40 | T42: 19.10256834 | U42: 0.06682194644 | V42: 19.0357464 | W42: 0.1751068765 | AB42: 40 | AC42: 18.44202082 | AD42: 0.06451131101 | AE42: 18.37750951 | AF42: 0.1690518575
A43: 2022-12-01 | B43: 0.083 | C43: 0.07716666667 | H43: 41 | I43: 19.0357464 | J43: 0.06743448095 | K43: 18.96831192 | L43: 0.174494342 | M43: 0 | N43: 0.174494342 | S43: 41 | T43: 19.0357464 | U43: 0.06743448095 | V43: 18.96831192 | W43: 0.174494342 | AB43: 41 | AC43: 18.37750951 | AD43: 0.06510266469 | AE43: 18.31240684 | AF43: 0.1684605038
A44: 2023-01-01 | B44: 0.084 | C44: 0.07866666667 | H44: 42 | I44: 18.96831192 | J44: 0.06805263036 | K44: 18.90025929 | L44: 0.1738761926 | M44: 0 | N44: 0.1738761926 | S44: 42 | T44: 18.96831192 | U44: 0.06805263036 | V44: 18.90025929 | W44: 0.1738761926 | AB44: 42 | AC44: 18.31240684 | AD44: 0.06569943912 | AE44: 18.2467074 | AF44: 0.1678637294
A45: 2023-02-01 | B45: 0.085 | C45: 0.08016666667 | H45: 43 | I45: 18.90025929 | J45: 0.06867644614 | K45: 18.83158284 | L45: 0.1732523768 | M45: 0 | N45: 0.1732523768 | S45: 43 | T45: 18.90025929 | U45: 0.06867644614 | V45: 18.83158284 | W45: 0.1732523768 | AB45: 43 | AC45: 18.2467074 | AD45: 0.06630168398 | AE45: 18.18040572 | AF45: 0.1672614845
A46: 2023-03-01 | B46: 0.085 | C46: 0.0815 | H46: 44 | I46: 18.83158284 | J46: 0.06930598023 | K46: 18.76227686 | L46: 0.1726228427 | M46: 0 | N46: 0.1726228427 | S46: 44 | T46: 18.83158284 | U46: 0.06930598023 | V46: 18.76227686 | W46: 0.1726228427 | AB46: 44 | AC46: 18.18040572 | AD46: 0.06690944942 | AE46: 18.11349627 | AF46: 0.1666537191
A47: 2023-04-01 | B47: 0.085 | C47: 0.08283333333 | H47: 45 | I47: 18.76227686 | J47: 0.06994128505 | K47: 18.69233557 | L47: 0.1719875379 | M47: 0 | N47: 0.1719875379 | S47: 45 | T47: 18.76227686 | U47: 0.06994128505 | V47: 18.69233557 | W47: 0.1719875379 | AB47: 45 | AC47: 18.11349627 | AD47: 0.06752278604 | AE47: 18.04597348 | AF47: 0.1660403825
A48: 2023-05-01 | B48: 0.085 | C48: 0.08375 | H48: 46 | I48: 18.69233557 | J48: 0.0705824135 | K48: 18.62175316 | L48: 0.1713464094 | M48: 0 | N48: 0.1713464094 | S48: 46 | T48: 18.69233557 | U48: 0.0705824135 | V48: 18.62175316 | W48: 0.1713464094 | AB48: 46 | AC48: 18.04597348 | AD48: 0.06814174491 | AE48: 17.97783174 | AF48: 0.1654214236
A49: 2023-06-01 | B49: 0.085 | C49: 0.0845 | H49: 47 | I49: 18.62175316 | J49: 0.07122941895 | K49: 18.55052374 | L49: 0.170699404 | M49: 0 | N49: 0.170699404 | S49: 47 | T49: 18.62175316 | U49: 0.07122941895 | V49: 18.55052374 | W49: 0.170699404 | AB49: 47 | AC49: 17.97783174 | AD49: 0.06876637757 | AE49: 17.90906536 | AF49: 0.1647967909
A50: 2023-07-01 | B50: 0.0855 | C50: 0.08483333333 | H50: 48 | I50: 18.55052374 | J50: 0.07188235529 | K50: 18.47864139 | L50: 0.1700464676 | M50: 0 | N50: 0.1700464676 | S50: 48 | T50: 18.55052374 | U50: 0.07188235529 | V50: 18.47864139 | W50: 0.1700464676 | AB50: 48 | AC50: 17.90906536 | AD50: 0.06939673603 | AE50: 17.83966863 | AF50: 0.1641664325
A51: 2023-08-01 | B51: 0.0855 | C51: 0.08508333333 | H51: 49 | I51: 18.47864139 | J51: 0.07254127688 | K51: 18.40610011 | L51: 0.169387546 | M51: 0 | N51: 0.169387546 | S51: 49 | T51: 18.47864139 | U51: 0.07254127688 | V51: 18.40610011 | W51: 0.169387546 | AB51: 49 | AC51: 17.83966863 | AD51: 0.07003287278 | AE51: 17.76963575 | AF51: 0.1635302957
A52: 2023-09-01 | B52: 0.0855 | C52: 0.08516666667 | H52: 50 | I52: 18.40610011 | J52: 0.07320623859 | K52: 18.33289387 | L52: 0.1687225843 | M52: 0 | N52: 0.1687225843 | S52: 50 | T52: 18.40610011 | U52: 0.07320623859 | V52: 18.33289387 | W52: 0.1687225843 | AB52: 50 | AC52: 17.76963575 | AD52: 0.07067484078 | AE52: 17.69896091 | AF52: 0.1628883277
A53: 2023-10-01 | B53: 0.0855 | C53: 0.08525 | H53: 51 | I53: 18.33289387 | J53: 0.07387729577 | K53: 18.25901657 | L53: 0.1680515271 | M53: 0 | N53: 0.1680515271 | S53: 51 | T53: 18.33289387 | U53: 0.07387729577 | V53: 18.25901657 | W53: 0.1680515271 | AB53: 51 | AC53: 17.69896091 | AD53: 0.07132269348 | AE53: 17.62763822 | AF53: 0.162240475
A54: 2023-11-01 | B54: 0.0855 | C54: 0.08533333333 | H54: 52 | I54: 18.25901657 | J54: 0.07455450432 | K54: 18.18446207 | L54: 0.1673743186 | M54: 0 | N54: 0.1673743186 | S54: 52 | T54: 18.25901657 | U54: 0.07455450432 | V54: 18.18446207 | W54: 0.1673743186 | AB54: 52 | AC54: 17.62763822 | AD54: 0.07197648484 | AE54: 17.55566173 | AF54: 0.1615866837
A55: 2023-12-01 | B55: 0.0865 | C55: 0.08541666667 | H55: 53 | I55: 18.18446207 | J55: 0.07523792061 | K55: 18.10922415 | L55: 0.1666909023 | M55: 0 | N55: 0.1666909023 | S55: 53 | T55: 18.18446207 | U55: 0.07523792061 | V55: 18.10922415 | W55: 0.1666909023 | AB55: 53 | AC55: 17.55566173 | AD55: 0.07263626929 | AE55: 17.48302546 | AF55: 0.1609268992
A56: 2024-01-01 | B56: 0.0865 | C56: 0.08566666667 | H56: 54 | I56: 18.10922415 | J56: 0.07592760155 | K56: 18.03329655 | L56: 0.1660012214 | M56: 0 | N56: 0.1660012214 | S56: 54 | T56: 18.10922415 | U56: 0.07592760155 | V56: 18.03329655 | W56: 0.1660012214 | AB56: 54 | AC56: 17.48302546 | AD56: 0.07330210175 | AE56: 17.40972336 | AF56: 0.1602610668
A57: 2024-02-01 | B57: 0.0865 | C57: 0.08583333333 | H57: 55 | I57: 18.03329655 | J57: 0.07662360456 | K57: 17.95667294 | L57: 0.1653052184 | M57: 0 | N57: 0.1653052184 | S57: 55 | T57: 18.03329655 | U57: 0.07662360456 | V57: 17.95667294 | W57: 0.1653052184 | AB57: 55 | AC57: 17.40972336 | AD57: 0.07397403769 | AE57: 17.33574932 | AF57: 0.1595891308
A58: 2024-03-01 | B58: 0.0865 | C58: 0.086 | H58: 56 | I58: 17.95667294 | J58: 0.0773259876 | K58: 17.87934696 | L58: 0.1646028353 | M58: 0 | N58: 0.1646028353 | S58: 56 | T58: 17.95667294 | U58: 0.0773259876 | V58: 17.87934696 | W58: 0.1646028353 | AB58: 56 | AC58: 17.33574932 | AD58: 0.07465213303 | AE58: 17.26109719 | AF58: 0.1589110355
A59: 2024-04-01 | B59: 0.0865 | C59: 0.08616666667 | H59: 57 | I59: 17.87934696 | J59: 0.07803480916 | K59: 17.80131215 | L59: 0.1638940138 | M59: 0 | N59: 0.1638940138 | S59: 57 | T59: 17.87934696 | U59: 0.07803480916 | V59: 17.80131215 | W59: 0.1638940138 | AB59: 57 | AC59: 17.26109719 | AD59: 0.07533644425 | AE59: 17.18576075 | AF59: 0.1582267243
H60: 58 | I60: 17.80131215 | J60: 0.07875012824 | K60: 17.72256202 | L60: 0.1631786947 | M60: 0 | N60: 0.1631786947 | S60: 58 | T60: 17.80131215 | U60: 0.07875012824 | V60: 17.72256202 | W60: 0.1631786947 | AB60: 58 | AC60: 17.18576075 | AD60: 0.07602702832 | AE60: 17.10973372 | AF60: 0.1575361402
H61: 59 | I61: =K60 -> 17.72256202 | J61: 0.07947200442 | K61: 17.64309001 | L61: 0.1624568185 | M61: 0 | N61: 0.1624568185 | S61: 59 | T61: =V60 -> 17.72256202 | U61: 0.07947200442 | V61: 17.64309001 | W61: 0.1624568185 | AB61: 59 | AC61: =AE60 -> 17.10973372 | AD61: 0.07672394275 | AE61: 17.03300978 | AF61: 0.1568392258
C62: =AVERAGE(C8:C59) -> 0.076125 | H62: 60 | I62: 17.64309001 | J62: 0.08020049779 | K62: 17.56288952 | L62: 0.1617283251 | M62: 0 | N62: 0.1617283251 | S62: 60 | T62: =V61 -> 17.64309001 | U62: 0.08020049779 | V62: 17.56288952 | W62: 0.1617283251 | AB62: 60 | AC62: =AE61 -> 17.03300978 | AD62: 0.07742724556 | AE62: 16.95558253 | AF62: 0.156135923
H63: 61 | I63: 17.56288952 | J63: 0.08093566902 | K63: 17.48195385 | L63: 0.1609931539 | M63: 0 | N63: 0.1609931539 | S63: 61 | T63: 17.56288952 | U63: 0.08093566902 | V63: 17.48195385 | W63: 0.1609931539 | AB63: 61 | AC63: 16.95558253 | AD63: 0.07813699531 | AE63: 16.87744554 | AF63: 0.1554261732
H64: 62 | I64: 17.48195385 | J64: 0.08167757932 | K64: 17.40027627 | L64: 0.1602512436 | M64: 0 | N64: 0.1602512436 | S64: 62 | T64: 17.48195385 | U64: 0.08167757932 | V64: 17.40027627 | W64: 0.1602512436 | AB64: 62 | AC64: 16.87744554 | AD64: 0.0788532511 | AE64: 16.79859228 | AF64: 0.1547099174
H65: 63 | I65: 17.40027627 | J65: 0.08242629046 | K65: 17.31784998 | L65: 0.1595025325 | M65: 0 | N65: 0.1595025325 | S65: 63 | T65: 17.40027627 | U65: 0.08242629046 | V65: 17.31784998 | W65: 0.1595025325 | AB65: 63 | AC65: 16.79859228 | AD65: 0.07957607257 | AE65: 16.71901621 | AF65: 0.1539870959
H66: 64 | I66: 17.31784998 | J66: 0.08318186479 | K66: 17.23466811 | L66: 0.1587469581 | M66: 0 | N66: 0.1587469581 | S66: 64 | T66: 17.31784998 | U66: 0.08318186479 | V66: 17.23466811 | W66: 0.1587469581 | AB66: 64 | AC66: 16.71901621 | AD66: 0.0803055199 | AE66: 16.63871069 | AF66: 0.1532576486
H67: 65 | I67: 17.23466811 | J67: 0.08394436522 | K67: 17.15072375 | L67: =-IPMT($F$3/12,$H67,$F$4,$F$2) -> 0.1579844577 | M67: 0 | N67: 0.1579844577 | S67: 65 | T67: 17.23466811 | U67: 0.08394436522 | V67: 17.15072375 | W67: 0.1579844577 | AB67: 65 | AC67: 16.63871069 | AD67: =-PPMT($Z$3/12,$AB67,$Z$4,$Z$2) -> 0.08104165383 | AE67: 16.55766904 | AF67: =-IPMT($Z$3/12,$AB67,$Z$4,$Z$2) -> 0.1525215147
H68: 66 | I68: 17.15072375 | J68: =-PPMT($F$3/12,$H68,$F$4,$F$2) -> 0.08471385523 | K68: =I68-J68 -> 17.06600989 | L68: 0.1572149677 | M68: =MIN(20,I68)*$F$5/12 -> 0 | N68: =L68-M68 -> 0.1572149677 | S68: 66 | T68: 17.15072375 | U68: =-PPMT($Q$3/12,$S68,$Q$4,$Q$2) -> 0.08471385523 | V68: =T68-U68 -> 17.06600989 | W68: =-IPMT($Q$3/12,$S68,$Q$4,$Q$2) -> 0.1572149677 | AB68: 66 | AC68: 16.55766904 | AD68: 0.08178453566 | AE68: =AC68-AD68 -> 16.4758845 | AF68: 0.1517786329
H69: 67 | I69: =K68 -> 17.06600989 | J69: 0.08549039891 | K69: 16.98051949 | L69: 0.156438424 | M69: 0 | N69: 0.156438424 | S69: 67 | T69: 17.06600989 | U69: 0.08549039891 | V69: 16.98051949 | W69: 0.156438424 | AB69: 67 | AC69: 16.4758845 | AD69: 0.08253422724 | AE69: 16.39335028 | AF69: 0.1510289413
H70: 68 | I70: 16.98051949 | J70: 0.0862740609 | K70: 16.89424543 | L70: 0.155654762 | M70: 0 | N70: 0.155654762 | S70: 68 | T70: 16.98051949 | U70: 0.0862740609 | V70: 16.89424543 | W70: 0.155654762 | AB70: 68 | AC70: 16.39335028 | AD70: 0.08329079099 | AE70: 16.31005948 | AF70: 0.1502723775
H71: 69 | I71: 16.89424543 | J71: 0.08706490646 | K71: 16.80718053 | L71: 0.1548639165 | M71: 0 | N71: 0.1548639165 | S71: 69 | T71: 16.89424543 | U71: 0.08706490646 | V71: 16.80718053 | W71: 0.1548639165 | AB71: 69 | AC71: 16.31005948 | AD71: 0.0840542899 | AE71: 16.22600519 | AF71: 0.1495088786
H72: 70 | I72: 16.80718053 | J72: 0.08786300143 | K72: 16.71931752 | L72: 0.1540658215 | M72: 0 | N72: 0.1540658215 | S72: 70 | T72: 16.80718053 | U72: 0.08786300143 | V72: 16.71931752 | W72: 0.1540658215 | AB72: 70 | AC72: 16.22600519 | AD72: 0.08482478756 | AE72: 16.14118041 | AF72: 0.148738381
H73: 71 | I73: 16.71931752 | J73: 0.08866841228 | K73: 16.63064911 | L73: 0.1532604106 | M73: 0 | N73: 0.1532604106 | S73: 71 | T73: 16.71931752 | U73: 0.08866841228 | V73: 16.63064911 | W73: 0.1532604106 | AB73: 71 | AC73: 16.14118041 | AD73: 0.08560234811 | AE73: 16.05557806 | AF73: 0.1479608204
H74: 72 | I74: 16.63064911 | J74: 0.08948120606 | K74: 16.54116791 | L74: 0.1524476169 | M74: 0 | N74: 0.1524476169 | S74: 72 | T74: 16.63064911 | U74: 0.08948120606 | V74: 16.54116791 | W74: 0.1524476169 | AB74: 72 | AC74: 16.05557806 | AD74: 0.08638703631 | AE74: 15.96919102 | AF74: 0.1471761322
H75: 73 | I75: 16.54116791 | J75: 0.09030145045 | K75: 16.45086646 | L75: 0.1516273725 | M75: 0 | N75: 0.1516273725 | S75: 73 | T75: 16.54116791 | U75: 0.09030145045 | V75: 16.45086646 | W75: 0.1516273725 | AB75: 73 | AC75: 15.96919102 | AD75: 0.08717891747 | AE75: 15.88201211 | AF75: 0.146384251
H76: 74 | I76: 16.45086646 | J76: 0.09112921374 | K76: 16.35973724 | L76: 0.1507996092 | M76: 0 | N76: 0.1507996092 | S76: 74 | T76: 16.45086646 | U76: 0.09112921374 | V76: 16.35973724 | W76: 0.1507996092 | AB76: 74 | AC76: 15.88201211 | AD76: 0.08797805755 | AE76: 15.79403405 | AF76: 0.145585111
H77: 75 | I77: 16.35973724 | J77: 0.09196456487 | K77: 16.26777268 | L77: 0.1499642581 | M77: 0 | N77: 0.1499642581 | S77: 75 | T77: 16.35973724 | U77: 0.09196456487 | V77: 16.26777268 | W77: 0.1499642581 | AB77: 75 | AC77: 15.79403405 | AD77: 0.08878452308 | AE77: 15.70524952 | AF77: 0.1447786454
H78: 76 | I78: 16.26777268 | J78: 0.09280757338 | K78: 16.1749651 | L78: 0.1491212495 | M78: 0 | N78: 0.1491212495 | S78: 76 | T78: 16.26777268 | U78: 0.09280757338 | V78: 16.1749651 | W78: 0.1491212495 | AB78: 76 | AC78: 15.70524952 | AD78: 0.0895983812 | AE78: 15.61565114 | AF78: 0.1439647873
H79: 77 | I79: 16.1749651 | J79: 0.09365830947 | K79: 16.08130679 | L79: 0.1482705135 | M79: 0 | N79: 0.1482705135 | S79: 77 | T79: 16.1749651 | U79: 0.09365830947 | V79: 16.08130679 | W79: 0.1482705135 | AB79: 77 | AC79: 15.61565114 | AD79: 0.0904196997 | AE79: 15.52523144 | AF79: 0.1431434688
H80: 78 | I80: 16.08130679 | J80: 0.09451684397 | K80: 15.98678995 | L80: 0.1474119789 | M80: 0 | N80: 0.1474119789 | S80: 78 | T80: 16.08130679 | U80: 0.09451684397 | V80: 15.98678995 | W80: 0.1474119789 | AB80: 78 | AC80: 15.52523144 | AD80: 0.09124854695 | AE80: 15.4339829 | AF80: 0.1423146216
H81: 79 | I81: 15.98678995 | J81: 0.09538324837 | K81: 15.8914067 | L81: 0.1465455745 | M81: 0 | N81: 0.1465455745 | S81: 79 | T81: 15.98678995 | U81: 0.09538324837 | V81: 15.8914067 | W81: 0.1465455745 | AB81: 79 | AC81: 15.4339829 | AD81: 0.09208499196 | AE81: 15.3418979 | AF81: 0.1414781766
H82: 80 | I82: 15.8914067 | J82: 0.09625759482 | K82: 15.79514911 | L82: 0.1456712281 | M82: 0 | N82: 0.1456712281 | S82: 80 | T82: 15.8914067 | U82: 0.09625759482 | V82: 15.79514911 | W82: 0.1456712281 | AB82: 80 | AC82: 15.3418979 | AD82: 0.09292910439 | AE82: 15.2489688 | AF82: 0.1406340641
H83: 81 | I83: 15.79514911 | J83: 0.0971399561 | K83: 15.69800915 | L83: 0.1447888668 | M83: 0 | N83: 0.1447888668 | S83: 81 | T83: 15.79514911 | U83: 0.0971399561 | V83: 15.69800915 | W83: 0.1447888668 | AB83: 81 | AC83: 15.2489688 | AD83: 0.09378095451 | AE83: 15.15518785 | AF83: 0.139782214
H84: 82 | I84: 15.69800915 | J84: 0.0980304057 | K84: 15.59997875 | L84: 0.1438984172 | M84: 0 | N84: 0.1438984172 | S84: 82 | T84: 15.69800915 | U84: 0.0980304057 | V84: 15.59997875 | W84: 0.1438984172 | AB84: 82 | AC84: 15.15518785 | AD84: 0.09464061326 | AE84: 15.06054723 | AF84: 0.1389225553
H85: 83 | I85: 15.59997875 | J85: 0.09892901775 | K85: 15.50104973 | L85: 0.1429998052 | M85: 0 | N85: 0.1429998052 | S85: 83 | T85: 15.59997875 | U85: 0.09892901775 | V85: 15.50104973 | W85: 0.1429998052 | AB85: 83 | AC85: 15.06054723 | AD85: 0.09550815221 | AE85: 14.96503908 | AF85: 0.1380550163
H86: 84 | I86: 15.50104973 | J86: 0.09983586708 | K86: 15.40121386 | L86: 0.1420929558 | M86: 0 | N86: 0.1420929558 | S86: 84 | T86: 15.50104973 | U86: 0.09983586708 | V86: 15.40121386 | W86: 0.1420929558 | AB86: 84 | AC86: 14.96503908 | AD86: 0.09638364361 | AE86: 14.86865544 | AF86: 0.1371795249
H87: 85 | I87: 15.40121386 | J87: 0.1007510292 | K87: 15.30046283 | L87: 0.1411777937 | N87: 0.1411777937 | S87: 85 | T87: 15.40121386 | U87: 0.1007510292 | V87: 15.30046283 | W87: 0.1411777937 | AB87: 85 | AC87: 14.86865544 | AD87: 0.09726716034 | AE87: 14.77138828 | AF87: 0.1362960082
H88: 86 | I88: 15.30046283 | J88: 0.1016745803 | K88: 15.19878825 | L88: 0.1402542426 | N88: 0.1402542426 | S88: 86 | T88: 15.30046283 | U88: 0.1016745803 | V88: 15.19878825 | W88: 0.1402542426 | AB88: 86 | AC88: 14.77138828 | AD88: 0.09815877598 | AE88: 14.6732295 | AF88: 0.1354043925
H89: 87 | I89: 15.19878825 | J89: 0.1026065973 | K89: 15.09618165 | L89: 0.1393222256 | N89: 0.1393222256 | S89: 87 | T89: 15.19878825 | U89: 0.1026065973 | V89: 15.09618165 | W89: 0.1393222256 | AB89: 87 | AC89: 14.6732295 | AD89: 0.09905856476 | AE89: 14.57417094 | AF89: 0.1345046038
H90: 88 | I90: 15.09618165 | J90: 0.1035471578 | K90: 14.9926345 | L90: 0.1383816652 | N90: 0.1383816652 | S90: 88 | T90: 15.09618165 | U90: 0.1035471578 | V90: 14.9926345 | W90: 0.1383816652 | AB90: 88 | AC90: 14.57417094 | AD90: 0.0999666016 | AE90: 14.47420433 | AF90: 0.1335965669
H91: 89 | I91: 14.9926345 | J91: 0.10449634 | K91: 14.88813816 | L91: 0.1374324829 | N91: 0.1374324829 | S91: 89 | T91: 14.9926345 | U91: 0.10449634 | V91: 14.88813816 | W91: 0.1374324829 | AB91: 89 | AC91: 14.47420433 | AD91: 0.1008829621 | AE91: 14.37332137 | AF91: 0.1326802064
H92: 90 | I92: 14.88813816 | J92: 0.1054542232 | K92: 14.78268393 | L92: 0.1364745998 | N92: 0.1364745998 | S92: 90 | T92: 14.88813816 | U92: 0.1054542232 | V92: 14.78268393 | W92: 0.1364745998 | AB92: 90 | AC92: 14.37332137 | AD92: 0.1018077226 | AE92: 14.27151365 | AF92: 0.1317554459
H93: 91 | I93: 14.78268393 | J93: 0.1064208869 | K93: 14.67626305 | L93: 0.1355079361 | N93: 0.1355079361 | S93: 91 | T93: 14.78268393 | U93: 0.1064208869 | V93: 14.67626305 | W93: 0.1355079361 | AB93: 91 | AC93: 14.27151365 | AD93: 0.1027409601 | AE93: 14.16877269 | AF93: 0.1308222085
H94: 92 | I94: 14.67626305 | J94: 0.1073964117 | K94: 14.56886663 | L94: 0.1345324113 | N94: 0.1345324113 | S94: 92 | T94: 14.67626305 | U94: 0.1073964117 | V94: 14.56886663 | W94: 0.1345324113 | AB94: 92 | AC94: 14.16877269 | AD94: 0.1036827522 | AE94: 14.06508994 | AF94: 0.1298804163
H95: 93 | I95: 14.56886663 | J95: 0.1083808788 | K95: 14.46048576 | L95: 0.1335479441 | N95: 0.1335479441 | S95: 93 | T95: 14.56886663 | U95: 0.1083808788 | V95: 14.46048576 | W95: 0.1335479441 | AB95: 93 | AC95: 14.06508994 | AD95: 0.1046331774 | AE95: 13.96045676 | AF95: 0.1289299911
H96: 94 | I96: 14.46048576 | J96: 0.1093743702 | K96: 14.35111139 | L96: 0.1325544528 | N96: 0.1325544528 | S96: 94 | T96: 14.46048576 | U96: 0.1093743702 | V96: 14.35111139 | W96: 0.1325544528 | AB96: 94 | AC96: 13.96045676 | AD96: 0.1055923149 | AE96: 13.85486444 | AF96: 0.1279708536
H97: 95 | I97: 14.35111139 | J97: 0.1103769686 | K97: 14.24073442 | L97: 0.1315518544 | N97: 0.1315518544 | S97: 95 | T97: 14.35111139 | U97: 0.1103769686 | V97: 14.24073442 | W97: 0.1315518544 | AB97: 95 | AC97: 13.85486444 | AD97: 0.1065602444 | AE97: 13.7483042 | AF97: 0.1270029241
H98: 96 | I98: 14.24073442 | J98: 0.1113887574 | K98: 14.12934566 | L98: 0.1305400655 | N98: 0.1305400655 | S98: 96 | T98: 14.24073442 | U98: 0.1113887574 | V98: 14.12934566 | W98: 0.1305400655 | AB98: 96 | AC98: 13.7483042 | AD98: 0.1075370467 | AE98: 13.64076715 | AF98: 0.1260261218
H99: 97 | I99: 14.12934566 | J99: 0.112409821 | K99: 14.01693584 | L99: 0.1295190019 | N99: 0.1295190019 | S99: 97 | T99: 14.12934566 | U99: 0.112409821 | V99: 14.01693584 | W99: 0.1295190019 | AB99: 97 | AC99: 13.64076715 | AD99: 0.1085228029 | AE99: 13.53224435 | AF99: 0.1250403656
H100: 98 | I100: 14.01693584 | J100: 0.1134402444 | K100: 13.90349559 | L100: 0.1284885785 | N100: 0.1284885785 | S100: 98 | T100: 14.01693584 | U100: 0.1134402444 | V100: 13.90349559 | W100: 0.1284885785 | AB100: 98 | AC100: 13.53224435 | AD100: 0.1095175953 | AE100: 13.42272676 | AF100: 0.1240455732
H101: 99 | I101: 13.90349559 | J101: 0.1144801133 | K101: 13.78901548 | L101: 0.1274487096 | N101: 0.1274487096 | S101: 99 | T101: 13.90349559 | U101: 0.1144801133 | V101: 13.78901548 | W101: 0.1274487096 | AB101: 99 | AC101: 13.42272676 | AD101: 0.1105215066 | AE101: 13.31220525 | AF101: 0.1230416619
H102: 100 | I102: 13.78901548 | J102: 0.1155295143 | K102: 13.67348597 | L102: 0.1263993086 | N102: 0.1263993086 | S102: 100 | T102: 13.78901548 | U102: 0.1155295143 | V102: 13.67348597 | W102: 0.1263993086 | AB102: 100 | AC102: 13.31220525 | AD102: 0.1115346204 | AE102: 13.20067063 | AF102: 0.1220285481
H103: 101 | I103: 13.67348597 | J103: 0.1165885349 | K103: 13.55689743 | L103: 0.125340288 | N103: 0.125340288 | S103: 101 | T103: 13.67348597 | U103: 0.1165885349 | V103: 13.55689743 | W103: 0.125340288 | AB103: 101 | AC103: 13.20067063 | AD103: 0.1125570211 | AE103: 13.08811361 | AF103: 0.1210061474
H104: 102 | I104: 13.55689743 | J104: 0.1176572631 | K104: 13.43924017 | L104: 0.1242715598 | N104: 0.1242715598 | S104: 102 | T104: 13.55689743 | U104: 0.1176572631 | V104: 13.43924017 | W104: 0.1242715598 | AB104: 102 | AC104: 13.08811361 | AD104: 0.1135887938 | AE104: 12.97452481 | AF104: 0.1199743747
H105: 103 | I105: 13.43924017 | J105: 0.118735788 | K105: 13.32050438 | L105: 0.1231930349 | N105: 0.1231930349 | S105: 103 | T105: 13.43924017 | U105: 0.118735788 | V105: 13.32050438 | W105: 0.1231930349 | AB105: 103 | AC105: 12.97452481 | AD105: 0.1146300244 | AE105: 12.85989479 | AF105: 0.1189331441
H106: 104 | I106: 13.32050438 | J106: 0.1198241994 | K106: 13.20068018 | L106: 0.1221046235 | N106: 0.1221046235 | S106: 104 | T106: 13.32050438 | U106: 0.1198241994 | V106: 13.20068018 | W106: 0.1221046235 | AB106: 104 | AC106: 12.85989479 | AD106: 0.1156807996 | AE106: 12.74421399 | AF106: 0.1178823689
H107: 105 | I107: 13.20068018 | J107: 0.1209225879 | K107: 13.07975759 | L107: 0.121006235 | N107: 0.121006235 | S107: 105 | T107: 13.20068018 | U107: 0.1209225879 | V107: 13.07975759 | W107: 0.121006235 | AB107: 105 | AC107: 12.74421399 | AD107: 0.1167412069 | AE107: 12.62747278 | AF107: 0.1168219616
H108: 106 | I108: 13.07975759 | J108: 0.122031045 | K108: 12.95772655 | L108: 0.1198977779 | N108: 0.1198977779 | S108: 106 | T108: 13.07975759 | U108: 0.122031045 | V108: 12.95772655 | W108: 0.1198977779 | AB108: 106 | AC108: 12.62747278 | AD108: 0.1178113347 | AE108: 12.50966145 | AF108: 0.1157518338
H109: 107 | I109: 12.95772655 | J109: 0.1231496629 | K109: 12.83457689 | L109: 0.11877916 | N109: 0.11877916 | S109: 107 | T109: 12.95772655 | U109: 0.1231496629 | V109: 12.83457689 | W109: 0.11877916 | AB109: 107 | AC109: 12.50966145 | AD109: 0.1188912719 | AE109: 12.39077018 | AF109: 0.1146718966
H110: 108 | I110: 12.83457689 | J110: 0.1242785348 | K110: 12.71029835 | L110: 0.1176502881 | N110: 0.1176502881 | S110: 108 | T110: 12.83457689 | U110: 0.1242785348 | V110: 12.71029835 | W110: 0.1176502881 | AB110: 108 | AC110: 12.39077018 | AD110: 0.1199811086 | AE110: 12.27078907 | AF110: 0.1135820599
H111: 109 | I111: 12.71029835 | J111: 0.1254177547 | K111: 12.5848806 | L111: 0.1165110682 | N111: 0.1165110682 | S111: 109 | T111: 12.71029835 | U111: 0.1254177547 | V111: 12.5848806 | W111: 0.1165110682 | AB111: 109 | AC111: 12.27078907 | AD111: 0.1210809354 | AE111: 12.14970813 | AF111: 0.1124822331
H112: 110 | I112: 12.5848806 | J112: 0.1265674175 | K112: 12.45831318 | L112: 0.1153614055 | N112: 0.1153614055 | S112: 110 | T112: 12.5848806 | U112: 0.1265674175 | V112: 12.45831318 | W112: 0.1153614055 | AB112: 110 | AC112: 12.14970813 | AD112: 0.122190844 | AE112: 12.02751729 | AF112: 0.1113723245
H113: 111 | I113: 12.45831318 | J113: 0.1277276188 | K113: 12.33058556 | L113: 0.1142012041 | N113: 0.1142012041 | S113: 111 | T113: 12.45831318 | U113: 0.1277276188 | V113: 12.33058556 | W113: 0.1142012041 | AB113: 111 | AC113: 12.02751729 | AD113: 0.1233109267 | AE113: 11.90420636 | AF113: 0.1102522418
H114: 112 | I114: 12.33058556 | J114: 0.1288984553 | K114: 12.2016871 | L114: 0.1130303676 | N114: 0.1130303676 | S114: 112 | T114: 12.33058556 | U114: 0.1288984553 | V114: 12.2016871 | W114: 0.1130303676 | AB114: 112 | AC114: 11.90420636 | AD114: 0.1244412769 | AE114: 11.77976508 | AF114: 0.1091218916
H115: 113 | I115: 12.2016871 | J115: 0.1300800245 | K115: 12.07160708 | L115: 0.1118487985 | N115: 0.1118487985 | S115: 113 | T115: 12.2016871 | U115: 0.1300800245 | V115: 12.07160708 | W115: 0.1118487985 | AB115: 113 | AC115: 11.77976508 | AD115: 0.1255819886 | AE115: 11.6541831 | AF115: 0.1079811799
H116: 114 | I116: 12.07160708 | J116: 0.1312724247 | K116: 11.94033465 | L116: 0.1106563982 | N116: 0.1106563982 | S116: 114 | T116: 12.07160708 | U116: 0.1312724247 | V116: 11.94033465 | W116: 0.1106563982 | AB116: 114 | AC116: 11.6541831 | AD116: 0.1267331568 | AE116: 11.52744994 | AF116: 0.1068300117
H117: 115 | I117: 11.94033465 | J117: 0.1324757553 | K117: 11.8078589 | L117: 0.1094530677 | N117: 0.1094530677 | S117: 115 | T117: 11.94033465 | U117: 0.1324757553 | V117: 11.8078589 | W117: 0.1094530677 | AB117: 115 | AC117: 11.52744994 | AD117: 0.1278948774 | AE117: 11.39955506 | AF117: 0.1056682911
H118: 116 | I118: 11.8078589 | J118: 0.1336901163 | K118: 11.67416878 | L118: 0.1082387066 | N118: 0.1082387066 | S118: 116 | T118: 11.8078589 | U118: 0.1336901163 | V118: 11.67416878 | W118: 0.1082387066 | AB118: 116 | AC118: 11.39955506 | AD118: 0.1290672471 | AE118: 11.27048781 | AF118: 0.1044959214
H119: 117 | I119: 11.67416878 | J119: 0.1349156091 | K119: 11.53925317 | L119: 0.1070132138 | N119: 0.1070132138 | S119: 117 | T119: 11.67416878 | U119: 0.1349156091 | V119: 11.53925317 | W119: 0.1070132138 | AB119: 117 | AC119: 11.27048781 | AD119: 0.1302503635 | AE119: 11.14023745 | AF119: 0.103312805
H120: 118 | I120: 11.53925317 | J120: 0.1361523355 | K120: 11.40310084 | L120: 0.1057764874 | N120: 0.1057764874 | S120: 118 | T120: 11.53925317 | U120: 0.1361523355 | V120: 11.40310084 | W120: 0.1057764874 | AB120: 118 | AC120: 11.14023745 | AD120: 0.1314443252 | AE120: 11.00879313 | AF120: 0.1021188433
H121: 119 | I121: 11.40310084 | J121: 0.1374003986 | K121: 11.26570044 | L121: 0.1045284244 | N121: 0.1045284244 | S121: 119 | T121: 11.40310084 | U121: 0.1374003986 | V121: 11.26570044 | W121: 0.1045284244 | AB121: 119 | AC121: 11.00879313 | AD121: 0.1326492315 | AE121: 10.87614389 | AF121: 0.100913937
H122: 120 | I122: 11.26570044 | J122: 0.1386599022 | K122: 11.12704054 | L122: 0.1032689207 | N122: 0.1032689207 | S122: 120 | T122: 11.26570044 | U122: 0.1386599022 | V122: 11.12704054 | W122: 0.1032689207 | AB122: 120 | AC122: 10.87614389 | AD122: 0.1338651828 | AE122: 10.74227871 | AF122: 0.0996979857
H123: 121 | I123: 11.12704054 | J123: 0.1399309513 | K123: 10.98710959 | L123: 0.1019978716 | N123: 0.1019978716 | S123: 121 | T123: 11.12704054 | U123: 0.1399309513 | V123: 10.98710959 | W123: 0.1019978716 | AB123: 121 | AC123: 10.74227871 | AD123: 0.1350922803 | AE123: 10.60718643 | AF123: 0.09847088819
H124: 122 | I124: 10.98710959 | J124: 0.1412136517 | K124: 10.84589593 | L124: 0.1007151712 | N124: 0.1007151712 | S124: 122 | T124: 10.98710959 | U124: 0.1412136517 | V124: 10.84589593 | W124: 0.1007151712 | AB124: 122 | AC124: 10.60718643 | AD124: 0.1363306262 | AE124: 10.47085581 | AF124: 0.09723254229
H125: 123 | I125: 10.84589593 | J125: 0.1425081102 | K125: 10.70338782 | L125: 0.09942071274 | N125: 0.09942071274 | S125: 123 | T125: 10.84589593 | U125: 0.1425081102 | V125: 10.70338782 | W125: 0.09942071274 | AB125: 123 | AC125: 10.47085581 | AD125: 0.1375803236 | AE125: 10.33327548 | AF125: 0.09598284488
H126: 124 | I126: 10.70338782 | J126: 0.1438144345 | K126: 10.55957339 | L126: 0.09811438839 | N126: 0.09811438839 | S126: 124 | T126: =V125 -> 10.70338782 | U126: 0.1438144345 | V126: 10.55957339 | W126: 0.09811438839 | AB126: 124 | AC126: =AE125 -> 10.33327548 | AD126: 0.1388414766 | AE126: 10.194434 | AF126: 0.09472169191
H127: 125 | I127: 10.55957339 | J127: 0.1451327335 | K127: 10.41444066 | L127: 0.09679608941 | N127: 0.09679608941 | S127: 125 | T127: 10.55957339 | U127: 0.1451327335 | V127: 10.41444066 | W127: 0.09679608941 | AB127: 125 | AC127: 10.194434 | AD127: 0.1401141901 | AE127: 10.05431981 | AF127: 0.09344897838
H128: 126 | I128: 10.41444066 | J128: 0.1464631169 | K128: 10.26797754 | L128: 0.09546570602 | N128: 0.09546570602 | S128: 126 | T128: 10.41444066 | U128: 0.1464631169 | V128: 10.26797754 | W128: 0.09546570602 | AB128: 126 | AC128: 10.05431981 | AD128: 0.1413985702 | AE128: 9.912921244 | AF128: 0.0921645983
H129: 127 | I129: 10.26797754 | J129: 0.1478056955 | K129: 10.12017184 | L129: 0.09412312745 | N129: 0.09412312745 | S129: 127 | T129: 10.26797754 | U129: 0.1478056955 | V129: 10.12017184 | W129: 0.09412312745 | AB129: 127 | AC129: 9.912921244 | AD129: 0.1426947238 | AE129: 9.770226521 | AF129: 0.09086844474
H130: 128 | I130: 10.12017184 | J130: 0.149160581 | K130: 9.971011263 | L130: 0.09276824191 | N130: 0.09276824191 | S130: 128 | T130: 10.12017184 | U130: 0.149160581 | V130: 9.971011263 | W130: 0.09276824191 | AB130: 128 | AC130: 9.770226521 | AD130: 0.1440027587 | AE130: 9.626223762 | AF130: 0.08956040977
H131: 129 | I131: 9.971011263 | J131: 0.1505278863 | K131: 9.820483377 | L131: =-IPMT($F$3/12,$H131,$F$4,$F$2) -> 0.09140093658 | N131: 0.09140093658 | S131: 129 | T131: 9.971011263 | U131: 0.1505278863 | V131: 9.820483377 | W131: 0.09140093658 | AB131: 129 | AC131: 9.626223762 | AD131: =-PPMT($Z$3/12,$AB131,$Z$4,$Z$2) -> 0.145322784 | AE131: 9.480900978 | AF131: =-IPMT($Z$3/12,$AB131,$Z$4,$Z$2) -> 0.08824038448
H132: 130 | I132: 9.820483377 | J132: =-PPMT($F$3/12,$H132,$F$4,$F$2) -> 0.1519077253 | K132: =I132-J132 -> 9.668575652 | L132: 0.09002109762 | N132: =L132-M132 -> 0.09002109762 | S132: 130 | T132: 9.820483377 | U132: =-PPMT($Q$3/12,$S132,$Q$4,$Q$2) -> 0.1519077253 | V132: =T132-U132 -> 9.668575652 | W132: =-IPMT($Q$3/12,$S132,$Q$4,$Q$2) -> 0.09002109762 | AB132: 130 | AC132: 9.480900978 | AD132: 0.1466549095 | AE132: =AC132-AD132 -> 9.334246068 | AF132: 0.08690825896
H133: 131 | I133: =K132 -> 9.668575652 | J133: 0.1533002128 | K133: 9.515275439 | L133: 0.08862861014 | N133: 0.08862861014 | S133: 131 | T133: 9.668575652 | U133: 0.1533002128 | V133: 9.515275439 | W133: 0.08862861014 | AB133: 131 | AC133: 9.334246068 | AD133: 0.1479992462 | AE133: 9.186246822 | AF133: 0.08556392229
H134: 132 | I134: 9.515275439 | J134: 0.1547054647 | K134: 9.360569974 | L134: 0.08722335819 | N134: 0.08722335819 | S134: 132 | T134: 9.515275439 | U134: 0.1547054647 | V134: 9.360569974 | W134: 0.08722335819 | AB134: 132 | AC134: 9.186246822 | AD134: 0.149355906 | AE134: 9.036890916 | AF134: 0.08420726254
H135: 133 | I135: 9.360569974 | J135: 0.1561235982 | K135: 9.204446376 | L135: 0.08580522476 | N135: 0.08580522476 | S135: 133 | T135: 9.360569974 | U135: 0.1561235982 | V135: 9.204446376 | W135: 0.08580522476 | AB135: 133 | AC135: 9.036890916 | AD135: 0.1507250018 | AE135: 8.886165914 | AF135: 0.08283816673
H136: 134 | I136: 9.204446376 | J136: 0.1575547311 | K136: 9.046891645 | L136: 0.08437409178 | N136: 0.08437409178 | S136: 134 | T136: 9.204446376 | U136: 0.1575547311 | V136: 9.046891645 | W136: 0.08437409178 | AB136: 134 | AC136: 8.886165914 | AD136: 0.1521066476 | AE136: 8.734059267 | AF136: 0.08145652088
H137: 135 | I137: 9.046891645 | J137: 0.1589989828 | K137: 8.887892662 | L137: 0.08292984008 | N137: 0.08292984008 | S137: 135 | T137: 9.046891645 | U137: 0.1589989828 | V137: 8.887892662 | W137: 0.08292984008 | AB137: 135 | AC137: 8.734059267 | AD137: 0.1535009586 | AE137: 8.580558308 | AF137: 0.08006220995
H138: 136 | I138: 8.887892662 | J138: 0.1604564735 | K138: 8.727436188 | L138: 0.0814723494 | N138: 0.0814723494 | S138: 136 | T138: 8.887892662 | U138: 0.1604564735 | V138: 8.727436188 | W138: 0.0814723494 | AB138: 136 | AC138: 8.580558308 | AD138: 0.1549080507 | AE138: 8.425650258 | AF138: 0.07865511783
H139: 137 | I139: 8.727436188 | J139: 0.1619273245 | K139: 8.565508864 | L139: 0.08000149839 | N139: 0.08000149839 | S139: 137 | T139: 8.727436188 | U139: 0.1619273245 | V139: 8.565508864 | W139: 0.08000149839 | AB139: 137 | AC139: 8.425650258 | AD139: 0.1563280412 | AE139: 8.269322216 | AF139: 0.07723512736
H140: 138 | I140: 8.565508864 | J140: 0.1634116583 | K140: 8.402097206 | L140: 0.07851716459 | N140: 0.07851716459 | S140: 138 | T140: 8.565508864 | U140: 0.1634116583 | V140: 8.402097206 | W140: 0.07851716459 | AB140: 138 | AC140: 8.269322216 | AD140: 0.1577610482 | AE140: 8.111561168 | AF140: 0.07580212032
H141: 139 | I141: 8.402097206 | J141: 0.1649095985 | K141: 8.237187607 | L141: 0.07701922438 | N141: 0.07701922438 | S141: 139 | T141: 8.402097206 | U141: 0.1649095985 | V141: 8.237187607 | W141: 0.07701922438 | AB141: 139 | AC141: 8.111561168 | AD141: 0.1592071911 | AE141: 7.952353977 | AF141: 0.07435597737
H142: 140 | I142: 8.237187607 | J142: 0.1664212699 | K142: 8.070766337 | L142: 0.07550755306 | N142: 0.07550755306 | S142: 140 | T142: 8.237187607 | U142: 0.1664212699 | V142: 8.070766337 | W142: 0.07550755306 | AB142: 140 | AC142: 7.952353977 | AD142: 0.1606665904 | AE142: 7.791687387 | AF142: 0.07289657812
H143: 141 | I143: 8.070766337 | J143: 0.1679467982 | K143: 7.902819539 | L143: 0.07398202476 | N143: 0.07398202476 | S143: 141 | T143: 8.070766337 | U143: 0.1679467982 | V143: 7.902819539 | W143: 0.07398202476 | AB143: 141 | AC143: 7.791687387 | AD143: 0.1621393675 | AE143: 7.629548019 | AF143: 0.07142380104
H144: 142 | I144: 7.902819539 | J144: 0.1694863105 | K144: 7.733333228 | L144: 0.07244251244 | N144: 0.07244251244 | S144: 142 | T144: 7.902819539 | U144: 0.1694863105 | V144: 7.733333228 | W144: 0.07244251244 | AB144: 142 | AC144: 7.629548019 | AD144: 0.163625645 | AE144: 7.465922374 | AF144: 0.06993752351
H145: 143 | I145: 7.733333228 | J145: 0.171039935 | K145: 7.562293294 | L145: 0.07088888793 | N145: 0.07088888793 | S145: 143 | T145: 7.733333228 | U145: 0.171039935 | V145: 7.562293294 | W145: 0.07088888793 | AB145: 143 | AC145: 7.465922374 | AD145: 0.1651255467 | AE145: 7.300796827 | AF145: 0.06843762176
H146: 144 | I146: 7.562293294 | J146: 0.1726078011 | K146: 7.389685492 | L146: 0.06932102186 | N146: 0.06932102186 | S146: 144 | T146: 7.562293294 | U146: 0.1726078011 | V146: 7.389685492 | W146: 0.06932102186 | AB146: 144 | AC146: 7.300796827 | AD146: 0.1666391976 | AE146: 7.13415763 | AF146: 0.06692397092
H147: 145 | I147: 7.389685492 | J147: 0.1741900392 | K147: 7.215495453 | L147: 0.06773878368 | N147: 0.06773878368 | S147: 145 | T147: 7.389685492 | U147: 0.1741900392 | V147: 7.215495453 | W147: 0.06773878368 | AB147: 145 | AC147: 7.13415763 | AD147: 0.1681667236 | AE147: 6.965990906 | AF147: 0.06539644494
H148: 146 | I148: 7.215495453 | J148: 0.1757867813 | K148: 7.039708672 | L148: 0.06614204165 | N148: 0.06614204165 | S148: 146 | T148: 7.215495453 | U148: 0.1757867813 | V148: 7.039708672 | W148: 0.06614204165 | AB148: 146 | AC148: 6.965990906 | AD148: 0.1697082519 | AE148: 6.796282654 | AF148: 0.06385491664
H149: 147 | I149: 7.039708672 | J149: 0.1773981601 | K149: 6.862310512 | L149: 0.06453066283 | N149: 0.06453066283 | S149: 147 | T149: 7.039708672 | U149: 0.1773981601 | V149: 6.862310512 | W149: 0.06453066283 | AB149: 147 | AC149: 6.796282654 | AD149: 0.1712639108 | AE149: 6.625018744 | AF149: 0.06229925767
H150: 148 | I150: 6.862310512 | J150: 0.1790243099 | K150: 6.683286202 | L150: 0.06290451303 | N150: 0.06290451303 | S150: 148 | T150: 6.862310512 | U150: 0.1790243099 | V150: 6.683286202 | W150: 0.06290451303 | AB150: 148 | AC150: 6.625018744 | AD150: 0.17283383 | AE150: 6.452184914 | AF150: 0.06072933848
H151: 149 | I151: 6.683286202 | J151: 0.1806653661 | K151: 6.502620836 | L151: 0.06126345685 | N151: 0.06126345685 | S151: 149 | T151: 6.683286202 | U151: 0.1806653661 | V151: 6.502620836 | W151: 0.06126345685 | AB151: 149 | AC151: 6.452184914 | AD151: 0.1744181401 | AE151: 6.277766773 | AF151: 0.05914502837
H152: 150 | I152: 6.502620836 | J152: 0.1823214653 | K152: 6.320299371 | L152: 0.05960735766 | N152: 0.05960735766 | S152: 150 | T152: 6.502620836 | U152: 0.1823214653 | V152: 6.320299371 | W152: 0.05960735766 | AB152: 150 | AC152: 6.277766773 | AD152: 0.1760169731 | AE152: 6.1017498 | AF152: 0.05754619542
H153: 151 | I153: 6.320299371 | J153: 0.1839927454 | K153: 6.136306625 | L153: 0.05793607756 | N153: 0.05793607756 | S153: 151 | T153: 6.320299371 | U153: 0.1839927454 | V153: 6.136306625 | W153: 0.05793607756 | AB153: 151 | AC153: 6.1017498 | AD153: 0.177630462 | AE153: 5.924119338 | AF153: 0.0559327065
H154: 152 | I154: 6.136306625 | J154: 0.1856793455 | K154: 5.95062728 | L154: 0.0562494774 | N154: 0.0562494774 | S154: 152 | T154: 6.136306625 | U154: 0.1856793455 | V154: 5.95062728 | W154: 0.0562494774 | AB154: 152 | AC154: 5.924119338 | AD154: 0.1792587412 | AE154: 5.744860597 | AF154: 0.05430442727
H155: 153 | I155: 5.95062728 | J155: 0.1873814062 | K155: 5.763245874 | L155: 0.05454741673 | N155: 0.05454741673 | S155: 153 | T155: 5.95062728 | U155: 0.1873814062 | V155: 5.763245874 | W155: 0.05454741673 | AB155: 153 | AC155: 5.744860597 | AD155: 0.1809019464 | AE155: 5.563958651 | AF155: 0.05266122214
H156: 154 | I156: 5.763245874 | J156: 0.1890990691 | K156: 5.574146804 | L156: 0.05282975384 | N156: 0.05282975384 | S156: 154 | T156: 5.763245874 | U156: 0.1890990691 | V156: 5.574146804 | W156: 0.05282975384 | AB156: 154 | AC156: 5.563958651 | AD156: 0.1825602142 | AE156: 5.381398436 | AF156: 0.0510029543
H157: 155 | I157: 5.574146804 | J157: 0.1908324772 | K157: 5.383314327 | L157: 0.05109634571 | N157: 0.05109634571 | S157: 155 | T157: 5.574146804 | U157: 0.1908324772 | V157: 5.383314327 | W157: 0.05109634571 | AB157: 155 | AC157: 5.381398436 | AD157: 0.1842336828 | AE157: 5.197164754 | AF157: 0.04932948567
H158: 156 | I158: 5.383314327 | J158: 0.1925817749 | K158: 5.190732552 | L158: 0.049347048 | N158: 0.049347048 | S158: 156 | T158: 5.383314327 | U158: 0.1925817749 | V158: 5.190732552 | W158: 0.049347048 | AB158: 156 | AC158: 5.197164754 | AD158: 0.1859224916 | AE158: 5.011242262 | AF158: 0.04764067691
H159: 157 | I159: 5.190732552 | J159: 0.1943471079 | K159: 4.996385444 | L159: 0.04758171506 | N159: 0.04758171506 | S159: 157 | T159: 5.190732552 | U159: 0.1943471079 | V159: 4.996385444 | W159: 0.04758171506 | AB159: 157 | AC159: 5.011242262 | AD159: 0.1876267811 | AE159: 4.823615481 | AF159: 0.0459363874
H160: 158 | I160: 4.996385444 | J160: 0.196128623 | K160: 4.800256821 | L160: 0.04580019991 | N160: 0.04580019991 | S160: 158 | T160: 4.996385444 | U160: 0.196128623 | V160: 4.800256821 | W160: 0.04580019991 | AB160: 158 | AC160: 4.823615481 | AD160: 0.1893466933 | AE160: 4.634268788 | AF160: 0.04421647524
H161: 159 | I161: 4.800256821 | J161: 0.1979264687 | K161: 4.602330353 | L161: 0.0440023542 | N161: 0.0440023542 | S161: 159 | T161: 4.800256821 | U161: 0.1979264687 | V161: 4.602330353 | W161: 0.0440023542 | AB161: 159 | AC161: 4.634268788 | AD161: 0.1910823713 | AE161: 4.443186416 | AF161: 0.04248079722
H162: 160 | I162: 4.602330353 | J162: 0.1997407947 | K162: 4.402589558 | L162: 0.04218802823 | N162: 0.04218802823 | S162: 160 | T162: 4.602330353 | U162: 0.1997407947 | V162: 4.402589558 | W162: 0.04218802823 | AB162: 160 | AC162: 4.443186416 | AD162: 0.1928339597 | AE162: 4.250352457 | AF162: 0.04072920882
H163: 161 | I163: 4.402589558 | J163: 0.201571752 | K163: 4.201017806 | L163: 0.04035707095 | N163: 0.04035707095 | S163: 161 | T163: 4.402589558 | U163: 0.201571752 | V163: 4.201017806 | W163: 0.04035707095 | AB163: 161 | AC163: 4.250352457 | AD163: 0.1946016043 | AE163: 4.055750852 | AF163: 0.03896156419
H164: 162 | I164: 4.201017806 | J164: 0.203419493 | K164: 3.997598313 | L164: 0.03850932989 | N164: 0.03850932989 | S164: 162 | T164: 4.201017806 | U164: 0.203419493 | V164: 3.997598313 | W164: 0.03850932989 | AB164: 162 | AC164: 4.055750852 | AD164: 0.1963854524 | AE164: 3.8593654 | AF164: 0.03717771615
H165: 163 | I165: 3.997598313 | J165: 0.2052841717 | K165: 3.792314141 | L165: 0.0366446512 | N165: 0.0366446512 | S165: 163 | T165: 3.997598313 | U165: 0.2052841717 | V165: 3.792314141 | W165: 0.0366446512 | AB165: 163 | AC165: 3.8593654 | AD165: 0.1981856523 | AE165: 3.661179748 | AF165: 0.03537751617
H166: 164 | I166: 3.792314141 | J166: 0.2071659433 | K166: 3.585148198 | L166: 0.03476287963 | N166: 0.03476287963 | S166: 164 | T166: 3.792314141 | U166: 0.2071659433 | V166: 3.585148198 | W166: 0.03476287963 | AB166: 164 | AC166: 3.661179748 | AD166: 0.2000023542 | AE166: 3.461177393 | AF166: 0.03356081435
H167: 165 | I167: 3.585148198 | J167: 0.2090649644 | K167: 3.376083234 | L167: 0.03286385848 | N167: 0.03286385848 | S167: 165 | T167: 3.585148198 | U167: 0.2090649644 | V167: 3.376083234 | W167: 0.03286385848 | AB167: 165 | AC167: 3.461177393 | AD167: 0.2018357091 | AE167: 3.259341684 | AF167: 0.03172745944
H168: 166 | I168: 3.376083234 | J168: 0.2109813933 | K168: 3.16510184 | L168: 0.03094742964 | N168: 0.03094742964 | S168: 166 | T168: 3.376083234 | U168: 0.2109813933 | V168: 3.16510184 | W168: 0.03094742964 | AB168: 166 | AC168: 3.259341684 | AD168: 0.2036858697 | AE168: 3.055655815 | AF168: 0.02987729877
H169: 167 | I169: 3.16510184 | J169: 0.2129153894 | K169: 2.952186451 | L169: 0.02901343354 | N169: 0.02901343354 | S169: 167 | T169: 3.16510184 | U169: 0.2129153894 | V169: 2.952186451 | W169: 0.02901343354 | AB169: 167 | AC169: 3.055655815 | AD169: 0.2055529902 | AE169: 2.850102824 | AF169: 0.0280101783
H170: 168 | I170: 2.952186451 | J170: 0.2148671138 | K170: 2.737319337 | L170: 0.02706170913 | N170: 0.02706170913 | S170: 168 | T170: 2.952186451 | U170: 0.2148671138 | V170: 2.737319337 | W170: 0.02706170913 | AB170: 168 | AC170: 2.850102824 | AD170: 0.207437226 | AE170: 2.642665598 | AF170: 0.02612594256
H171: 169 | I171: 2.737319337 | J171: 0.216836729 | K171: 2.520482608 | L171: 0.02509209392 | N171: 0.02509209392 | S171: 169 | T171: 2.737319337 | U171: 0.216836729 | V171: 2.520482608 | W171: 0.02509209392 | AB171: 169 | AC171: 2.642665598 | AD171: 0.2093387339 | AE171: 2.433326865 | AF171: 0.02422443465
H172: 170 | I172: 2.520482608 | J172: 0.218824399 | K172: 2.301658209 | L172: 0.02310442391 | N172: 0.02310442391 | S172: 170 | T172: 2.520482608 | U172: 0.218824399 | V172: 2.301658209 | W172: 0.02310442391 | AB172: 170 | AC172: 2.433326865 | AD172: 0.2112576723 | AE172: 2.222069192 | AF172: 0.02230549626
H173: 171 | I173: 2.301658209 | J173: 0.2208302893 | K173: 2.08082792 | L173: 0.02109853358 | N173: 0.02109853358 | S173: 171 | T173: 2.301658209 | U173: 0.2208302893 | V173: 2.08082792 | W173: 0.02109853358 | AB173: 171 | AC173: 2.222069192 | AD173: 0.2131942009 | AE173: 2.008874991 | AF173: 0.0203689676
H174: 172 | I174: 2.08082792 | J174: 0.222854567 | K174: 1.857973353 | L174: 0.01907425593 | N174: 0.01907425593 | S174: 172 | T174: 2.08082792 | U174: 0.222854567 | V174: 1.857973353 | W174: 0.01907425593 | AB174: 172 | AC174: 2.008874991 | AD174: 0.2151484811 | AE174: 1.79372651 | AF174: 0.01841468742
H175: 173 | I175: 1.857973353 | J175: 0.2248974005 | K175: 1.633075952 | L175: 0.0170314224 | N175: 0.0170314224 | S175: 173 | T175: 1.857973353 | U175: 0.2248974005 | V175: 1.633075952 | W175: 0.0170314224 | AB175: 173 | AC175: 1.79372651 | AD175: 0.2171206755 | AE175: 1.576605835 | AF175: 0.01644249301
H176: 174 | I176: 1.633075952 | J176: 0.22695896 | K176: 1.406116992 | L176: 0.0149698629 | N176: 0.0149698629 | S176: 174 | T176: 1.633075952 | U176: 0.22695896 | V176: 1.406116992 | W176: 0.0149698629 | AB176: 174 | AC176: 1.576605835 | AD176: 0.2191109484 | AE176: 1.357494887 | AF176: 0.01445222015
H177: 175 | I177: 1.406116992 | J177: 0.2290394172 | K177: 1.177077575 | L177: 0.01288940576 | N177: 0.01288940576 | S177: 175 | T177: 1.406116992 | U177: 0.2290394172 | V177: 1.177077575 | W177: 0.01288940576 | AB177: 175 | AC177: 1.357494887 | AD177: 0.2211194654 | AE177: 1.136375421 | AF177: 0.01244370313
H178: 176 | I178: 1.177077575 | J178: 0.2311389451 | K178: 0.94593863 | L178: 0.01078987777 | N178: 0.01078987777 | S178: 176 | T178: 1.177077575 | U178: 0.2311389451 | V178: 0.94593863 | W178: 0.01078987777 | AB178: 176 | AC178: 1.136375421 | AD178: 0.2231463938 | AE178: 0.9132290273 | AF178: 0.01041677469
H179: 177 | I179: 0.94593863 | J179: 0.2332577188 | K179: 0.7126809112 | L179: 0.008671104108 | N179: 0.008671104108 | S179: 177 | T179: 0.94593863 | U179: 0.2332577188 | V179: 0.7126809112 | W179: 0.008671104108 | AB179: 177 | AC179: 0.9132290273 | AD179: 0.2251919024 | AE179: 0.6880371249 | AF179: 0.008371266084
H180: 178 | I180: 0.7126809112 | J180: 0.2353959146 | K180: 0.4772849966 | L180: 0.006532908352 | N180: 0.006532908352 | S180: 178 | T180: 0.7126809112 | U180: 0.2353959146 | V180: 0.4772849966 | W180: 0.006532908352 | AB180: 178 | AC180: 0.6880371249 | AD180: 0.2272561615 | AE180: 0.4607809633 | AF180: 0.006307006978
H181: 179 | I181: 0.4772849966 | J181: 0.2375537105 | K181: 0.2397312861 | L181: 0.004375112469 | N181: 0.004375112469 | S181: 179 | T181: 0.4772849966 | U181: 0.2375537105 | V181: 0.2397312861 | W181: 0.004375112469 | AB181: 179 | AC181: 0.4607809633 | AD181: 0.229339343 | AE181: 0.2314416203 | AF181: 0.004223825497
H182: 180 | I182: 0.2397312861 | J182: 0.2397312861 | K182: -1.915134717e-15 | L182: 0.00219753679 | N182: 0.00219753679 | S182: 180 | T182: 0.2397312861 | U182: 0.2397312861 | V182: -1.915134717e-15 | W182: 0.00219753679 | AB182: 180 | AC182: 0.2314416203 | AD182: 0.2314416203 | AE182: 1.437738817e-14 | AF182: 0.002121548186
H183: 181 | I183: -1.915134717e-15 | S183: 181 | T183: -1.915134717e-15 | AB183: 181 | AC183: 1.437738817e-14
H184: 182 | S184: 182 | AB184: 182
H185: 183 | S185: 183 | AB185: 183
H186: 184 | S186: 184 | AB186: 184
H187: 185 | S187: 185 | AB187: 185
H188: 186 | S188: 186 | AB188: 186
H189: 187 | S189: 187 | AB189: 187
H190: 188 | S190: 188 | T190: =V189 ->  | AB190: 188 | AC190: =AE189 -> 
H191: 189 | S191: 189 | AB191: 189
H192: 190 | S192: 190 | AB192: 190
H193: 191 | S193: 191 | AB193: 191
H194: 192 | S194: 192 | AB194: 192
H195: 193 | L195: =-IPMT($F$3/12,$H195,$F$4,$F$2) ->  | S195: 193 | AB195: 193 | AD195: =-PPMT($Z$3/12,$AB195,$Z$4,$Z$2) ->  | AF195: =-IPMT($Z$3/12,$AB195,$Z$4,$Z$2) -> 
H196: 194 | J196: =-PPMT($F$3/12,$H196,$F$4,$F$2) ->  | K196: =I196-J196 ->  | N196: =L196-M196 ->  | S196: 194 | U196: =-PPMT($Q$3/12,$S196,$Q$4,$Q$2) ->  | V196: =T196-U196 ->  | W196: =-IPMT($Q$3/12,$S196,$Q$4,$Q$2) ->  | AB196: 194 | AE196: =AC196-AD196 -> 
H197: 195 | I197: =K196 ->  | S197: 195 | AB197: 195
H198: 196 | S198: 196 | AB198: 196
H199: 197 | S199: 197 | AB199: 197
H200: 198 | S200: 198 | AB200: 198
... 102 more rows

Sheet Monthly-data (hidden)
A1: Month | B1: International modules (after duty) | C1: Domestic modules | D1: Interest rate (6-month-average) | G1: Month | H1: International Modules (INR crores/MW) | I1: Domestic Modules (INR crores/MW)
A2: Jan-25 | B2: 21.1 | D2: 0.0813 | G2: 2020-01-01 | H2: =Monthly_data[[#This Row],[International modules (after duty)]]/10 -> 2.11
A3: Feb-25 | B3: 20.3 | D3: 0.0804 | G3: 2020-02-01 | H3: =Monthly_data[[#This Row],[International modules (after duty)]]/10 -> 2.03
A4: Mar-25 | B4: 18.2 | D4: 0.0798 | G4: 2020-03-01 | H4: =Monthly_data[[#This Row],[International modules (after duty)]]/10 -> 1.82
A5: Apr-25 | B5: 16.4 | D5: 0.0791 | G5: 2020-04-01 | H5: =Monthly_data[[#This Row],[International modules (after duty)]]/10 -> 1.64
A6: May-25 | B6: 16.1 | D6: 0.078 | G6: 2020-05-01 | H6: =Monthly_data[[#This Row],[International modules (after duty)]]/10 -> 1.61
A7: Jun-25 | B7: 15.2 | D7: 0.0768 | G7: 2020-06-01 | H7: =Monthly_data[[#This Row],[International modules (after duty)]]/10 -> 1.52
A8: Jul-25 | B8: 16.3 | D8: 0.0753 | G8: 2020-07-01 | H8: =Monthly_data[[#This Row],[International modules (after duty)]]/10 -> 1.63
A9: Aug-25 | B9: 16.3 | D9: 0.0738 | G9: 2020-08-01 | H9: =Monthly_data[[#This Row],[International modules (after duty)]]/10 -> 1.63
A10: Sep-25 | B10: 17.8 | D10: 0.0723 | G10: 2020-09-01 | H10: =Monthly_data[[#This Row],[International modules (after duty)]]/10 -> 1.78
A11: Oct-25 | B11: 20.1 | D11: 0.0711 | G11: 2020-10-01 | H11: =Monthly_data[[#This Row],[International modules (after duty)]]/10 -> 2.01
A12: Nov-25 | B12: 20.4 | D12: 0.0704 | G12: 2020-11-01 | H12: =Monthly_data[[#This Row],[International modules (after duty)]]/10 -> 2.04
A13: Dec-25 | B13: 19.7 | D13: 0.07 | G13: 2020-12-01 | H13: =Monthly_data[[#This Row],[International modules (after duty)]]/10 -> 1.97
A14: Jan-25 | B14: 18.6 | D14: 0.07 | G14: 2021-01-01 | H14: =Monthly_data[[#This Row],[International modules (after duty)]]/10 -> 1.86
A15: Feb-25 | B15: 19.3 | D15: 0.07 | G15: 2021-02-01 | H15: =Monthly_data[[#This Row],[International modules (after duty)]]/10 -> 1.93
A16: Mar-25 | B16: 19.5 | C16: 25.6 | D16: 0.07 | G16: 2021-03-01 | H16: =Monthly_data[[#This Row],[International modules (after duty)]]/10 -> 1.95 | I16: =Monthly_data[[#This Row],[Domestic modules]]/10 -> 2.56
A17: Apr-25 | B17: 19.8 | C17: 25.6 | D17: 0.07 | G17: 2021-04-01 | H17: =Monthly_data[[#This Row],[International modules (after duty)]]/10 -> 1.98 | I17: =Monthly_data[[#This Row],[Domestic modules]]/10 -> 2.56
A18: May-25 | B18: 19.8 | C18: 26 | D18: 0.07 | G18: 2021-05-01 | H18: =Monthly_data[[#This Row],[International modules (after duty)]]/10 -> 1.98 | I18: =Monthly_data[[#This Row],[Domestic modules]]/10 -> 2.6
A19: Jun-25 | B19: 21.1 | C19: 28 | D19: 0.07 | G19: 2021-06-01 | H19: =Monthly_data[[#This Row],[International modules (after duty)]]/10 -> 2.11 | I19: =Monthly_data[[#This Row],[Domestic modules]]/10 -> 2.8
A20: Jul-25 | B20: 21.2 | C20: 28 | D20: 0.07 | G20: 2021-07-01 | H20: =Monthly_data[[#This Row],[International modules (after duty)]]/10 -> 2.12 | I20: =Monthly_data[[#This Row],[Domestic modules]]/10 -> 2.8
A21: Aug-25 | B21: 21.1 | C21: 28 | D21: 0.07 | G21: 2021-08-01 | H21: =Monthly_data[[#This Row],[International modules (after duty)]]/10 -> 2.11 | I21: =Monthly_data[[#This Row],[Domestic modules]]/10 -> 2.8
A22: Sep-25 | B22: 21.9 | C22: 29 | D22: 0.07 | G22: 2021-09-01 | H22: =Monthly_data[[#This Row],[International modules (after duty)]]/10 -> 2.19 | I22: =Monthly_data[[#This Row],[Domestic modules]]/10 -> 2.9
A23: Oct-25 | B23: 23.6 | C23: 28 | D23: 0.07 | G23: 2021-10-01 | H23: =Monthly_data[[#This Row],[International modules (after duty)]]/10 -> 2.36 | I23: =Monthly_data[[#This Row],[Domestic modules]]/10 -> 2.8
A24: Nov-25 | B24: 24 | C24: 28 | D24: 0.07 | G24: 2021-11-01 | H24: =Monthly_data[[#This Row],[International modules (after duty)]]/10 -> 2.4 | I24: =Monthly_data[[#This Row],[Domestic modules]]/10 -> 2.8
A25: Dec-25 | B25: 23.9 | C25: 29 | D25: 0.07 | G25: 2021-12-01 | H25: =Monthly_data[[#This Row],[International modules (after duty)]]/10 -> 2.39 | I25: =Monthly_data[[#This Row],[Domestic modules]]/10 -> 2.9
A26: Jan-25 | B26: 23.6 | C26: 31 | D26: 0.07 | G26: 2022-01-01 | H26: =Monthly_data[[#This Row],[International modules (after duty)]]/10 -> 2.36 | I26: =Monthly_data[[#This Row],[Domestic modules]]/10 -> 3.1
A27: Feb-25 | B27: 23.9 | C27: 32 | D27: 0.07 | G27: 2022-02-01 | H27: =Monthly_data[[#This Row],[International modules (after duty)]]/10 -> 2.39 | I27: =Monthly_data[[#This Row],[Domestic modules]]/10 -> 3.2
A28: Mar-25 | B28: 24.3 | C28: 32 | D28: 0.07 | G28: 2022-03-01 | H28: =Monthly_data[[#This Row],[International modules (after duty)]]/10 -> 2.43 | I28: =Monthly_data[[#This Row],[Domestic modules]]/10 -> 3.2
A29: Apr-25 | B29: 30.4 | C29: 34.7 | D29: 0.07 | G29: 2022-04-01 | H29: =Monthly_data[[#This Row],[International modules (after duty)]]/10 -> 3.04 | I29: =Monthly_data[[#This Row],[Domestic modules]]/10 -> 3.47
A30: May-25 | B30: 30.8 | C30: 35.2 | D30: 0.0702 | G30: 2022-05-01 | H30: =Monthly_data[[#This Row],[International modules (after duty)]]/10 -> 3.08 | I30: =Monthly_data[[#This Row],[Domestic modules]]/10 -> 3.52
A31: Jun-25 | B31: 31.3 | C31: 35.2 | D31: 0.0705 | G31: 2022-06-01 | H31: =Monthly_data[[#This Row],[International modules (after duty)]]/10 -> 3.13 | I31: =Monthly_data[[#This Row],[Domestic modules]]/10 -> 3.52
A32: Jul-25 | B32: 30.9 | C32: 34.4 | D32: 0.0712 | G32: 2022-07-01 | H32: =Monthly_data[[#This Row],[International modules (after duty)]]/10 -> 3.09 | I32: =Monthly_data[[#This Row],[Domestic modules]]/10 -> 3.44
A33: Aug-25 | B33: 30.3 | C33: 34.7 | D33: 0.072 | G33: 2022-08-01 | H33: =Monthly_data[[#This Row],[International modules (after duty)]]/10 -> 3.03 | I33: =Monthly_data[[#This Row],[Domestic modules]]/10 -> 3.47
A34: Sep-25 | B34: 29.7 | C34: 34.5 | D34: 0.0732 | G34: 2022-09-01 | H34: =Monthly_data[[#This Row],[International modules (after duty)]]/10 -> 2.97 | I34: =Monthly_data[[#This Row],[Domestic modules]]/10 -> 3.45
A35: Oct-25 | B35: 29.3 | C35: 34.5 | D35: 0.0743 | G35: 2022-10-01 | H35: =Monthly_data[[#This Row],[International modules (after duty)]]/10 -> 2.93 | I35: =Monthly_data[[#This Row],[Domestic modules]]/10 -> 3.45
A36: Nov-25 | B36: 28.4 | C36: 34.2 | D36: 0.0758 | G36: 2022-11-01 | H36: =Monthly_data[[#This Row],[International modules (after duty)]]/10 -> 2.84 | I36: =Monthly_data[[#This Row],[Domestic modules]]/10 -> 3.42
A37: Dec-25 | B37: 28.1 | C37: 32.6 | D37: 0.0772 | G37: 2022-12-01 | H37: =Monthly_data[[#This Row],[International modules (after duty)]]/10 -> 2.81 | I37: =Monthly_data[[#This Row],[Domestic modules]]/10 -> 3.26
A38: Jan-25 | B38: 25.9 | C38: 32.6 | D38: 0.0787 | G38: 2023-01-01 | H38: =Monthly_data[[#This Row],[International modules (after duty)]]/10 -> 2.59 | I38: =Monthly_data[[#This Row],[Domestic modules]]/10 -> 3.26
A39: Feb-25 | B39: 25.5 | C39: 31.8 | D39: 0.0802 | G39: 2023-02-01 | H39: =Monthly_data[[#This Row],[International modules (after duty)]]/10 -> 2.55 | I39: =Monthly_data[[#This Row],[Domestic modules]]/10 -> 3.18
A40: Mar-25 | B40: 24.8 | C40: 30.8 | D40: 0.0815 | G40: 2023-03-01 | H40: =Monthly_data[[#This Row],[International modules (after duty)]]/10 -> 2.48 | I40: =Monthly_data[[#This Row],[Domestic modules]]/10 -> 3.08
A41: Apr-25 | B41: 24.1 | C41: 30.1 | D41: 0.0828 | G41: 2023-04-01 | H41: =Monthly_data[[#This Row],[International modules (after duty)]]/10 -> 2.41 | I41: =Monthly_data[[#This Row],[Domestic modules]]/10 -> 3.01
A42: May-25 | B42: 23.8 | C42: 28.5 | D42: 0.0838 | G42: 2023-05-01 | H42: =Monthly_data[[#This Row],[International modules (after duty)]]/10 -> 2.38 | I42: =Monthly_data[[#This Row],[Domestic modules]]/10 -> 2.85
A43: Jun-25 | B43: 21.6 | C43: 26.6 | D43: 0.0845 | G43: 2023-06-01 | H43: =Monthly_data[[#This Row],[International modules (after duty)]]/10 -> 2.16 | I43: =Monthly_data[[#This Row],[Domestic modules]]/10 -> 2.66
A44: Jul-25 | B44: 19.4 | C44: 25.7 | D44: 0.0848 | G44: 2023-07-01 | H44: =Monthly_data[[#This Row],[International modules (after duty)]]/10 -> 1.94 | I44: =Monthly_data[[#This Row],[Domestic modules]]/10 -> 2.57
A45: Aug-25 | B45: 18.5 | C45: 24.8 | D45: 0.0851 | G45: 2023-08-01 | H45: =Monthly_data[[#This Row],[International modules (after duty)]]/10 -> 1.85 | I45: =Monthly_data[[#This Row],[Domestic modules]]/10 -> 2.48
A46: Sep-25 | B46: 18.1 | C46: 24.2 | D46: 0.0852 | G46: 2023-09-01 | H46: =Monthly_data[[#This Row],[International modules (after duty)]]/10 -> 1.81 | I46: =Monthly_data[[#This Row],[Domestic modules]]/10 -> 2.42
A47: Oct-25 | B47: 16.1 | C47: 23.5 | D47: 0.0853 | G47: 2023-10-01 | H47: =Monthly_data[[#This Row],[International modules (after duty)]]/10 -> 1.61 | I47: =Monthly_data[[#This Row],[Domestic modules]]/10 -> 2.35
A48: Nov-25 | B48: 14.9 | C48: 21.5 | D48: 0.0853 | G48: 2023-11-01 | H48: =Monthly_data[[#This Row],[International modules (after duty)]]/10 -> 1.49 | I48: =Monthly_data[[#This Row],[Domestic modules]]/10 -> 2.15
A49: Dec-25 | B49: 13.9 | C49: 21.3 | D49: 0.0854 | G49: 2023-12-01 | H49: =Monthly_data[[#This Row],[International modules (after duty)]]/10 -> 1.39 | I49: =Monthly_data[[#This Row],[Domestic modules]]/10 -> 2.13
A50: Jan-25 | B50: 12.9 | C50: 19.4 | D50: 0.0857 | G50: 2024-01-01 | H50: =Monthly_data[[#This Row],[International modules (after duty)]]/10 -> 1.29 | I50: =Monthly_data[[#This Row],[Domestic modules]]/10 -> 1.94
A51: Feb-25 | B51: 12.5 | C51: 19.3 | D51: 0.0858 | G51: 2024-02-01 | H51: =Monthly_data[[#This Row],[International modules (after duty)]]/10 -> 1.25 | I51: =Monthly_data[[#This Row],[Domestic modules]]/10 -> 1.93
A52: Mar-25 | B52: 12.5 | C52: 19.3 | D52: 0.086 | G52: 2024-03-01 | H52: =Monthly_data[[#This Row],[International modules (after duty)]]/10 -> 1.25 | I52: =Monthly_data[[#This Row],[Domestic modules]]/10 -> 1.93
A53: Apr-25 | B53: 12.6 | C53: 16.8 | D53: 0.0862 | G53: 2024-04-01 | H53: =Monthly_data[[#This Row],[International modules (after duty)]]/10 -> 1.26 | I53: =Monthly_data[[#This Row],[Domestic modules]]/10 -> 1.68
A54: May-25 | B54: 11.4 | C54: 16.4 | D54: 0.0863 | G54: 2024-05-01 | H54: =Monthly_data[[#This Row],[International modules (after duty)]]/10 -> 1.14 | I54: =Monthly_data[[#This Row],[Domestic modules]]/10 -> 1.64
A55: Jun-25 | B55: 11.2 | C55: 16.2 | D55: 0.0865 | G55: 2024-06-01 | H55: =Monthly_data[[#This Row],[International modules (after duty)]]/10 -> 1.12 | I55: =Monthly_data[[#This Row],[Domestic modules]]/10 -> 1.62
A56: Jul-25 | B56: 11 | C56: 15.7 | D56: 0.0867 | G56: 2024-07-01 | H56: =Monthly_data[[#This Row],[International modules (after duty)]]/10 -> 1.1 | I56: =Monthly_data[[#This Row],[Domestic modules]]/10 -> 1.57
A57: Aug-25 | B57: 10.9 | C57: 15.55 | D57: 0.087 | G57: 2024-08-01 | H57: =Monthly_data[[#This Row],[International modules (after duty)]]/10 -> 1.09 | I57: =Monthly_data[[#This Row],[Domestic modules]]/10 -> 1.555
A58: Sep-25 | B58: 11.5 | C58: 16.9 | D58: 0.0875 | G58: 2024-09-01 | H58: =Monthly_data[[#This Row],[International modules (after duty)]]/10 -> 1.15 | I58: =Monthly_data[[#This Row],[Domestic modules]]/10 -> 1.69
A59: Oct-25 | B59: 10.7 | C59: 16.7 | D59: 0.088 | G59: 2024-10-01 | H59: =Monthly_data[[#This Row],[International modules (after duty)]]/10 -> 1.07 | I59: =Monthly_data[[#This Row],[Domestic modules]]/10 -> 1.67
A60: Nov-25 | B60: 10.3 | C60: 17 | D60: 0.0885 | G60: 2024-11-01 | H60: =Monthly_data[[#This Row],[International modules (after duty)]]/10 -> 1.03 | I60: =Monthly_data[[#This Row],[Domestic modules]]/10 -> 1.7
A61: Dec-25 | B61: 9.99 | C61: 17.5 | D61: 0.0891 | G61: 2024-12-01 | H61: =Monthly_data[[#This Row],[International modules (after duty)]]/10 -> 0.999 | I61: =Monthly_data[[#This Row],[Domestic modules]]/10 -> 1.75
A62: Jan-25 | B62: 9.5 | C62: 17.5 | D62: 0.0895 | G62: 2025-01-01 | H62: =Monthly_data[[#This Row],[International modules (after duty)]]/10 -> 0.95 | I62: =Monthly_data[[#This Row],[Domestic modules]]/10 -> 1.75
A63: Feb-25 | B63: 9.61 | C63: 17.5 | D63: 0.0898 | G63: 2025-02-01 | H63: =Monthly_data[[#This Row],[International modules (after duty)]]/10 -> 0.961 | I63: =Monthly_data[[#This Row],[Domestic modules]]/10 -> 1.75
A64: Mar-25 | B64: 9.39 | C64: 17.7 | D64: 0.0899 | G64: 2025-03-01 | H64: =Monthly_data[[#This Row],[International modules (after duty)]]/10 -> 0.939 | I64: =Monthly_data[[#This Row],[Domestic modules]]/10 -> 1.77
A65: Apr-25 | B65: 9.29 | C65: 17.73 | D65: 0.09 | G65: 2025-04-01 | H65: =Monthly_data[[#This Row],[International modules (after duty)]]/10 -> 0.929 | I65: =Monthly_data[[#This Row],[Domestic modules]]/10 -> 1.773
